Workbook

Sheet How to
A1: How to use this dataset | J1: Methodology
A2: This dataset is split into two main sections, investment (grey tabs) and credit (green tabs). The first three tabs in each section contain basic dashboard-style summaries of the investors/creditors in the meat sector, dairy sector and by individual company. These are followed by tabs containing the underlying data behind these summaries. The red tab at the end of the dataset 'Scope' was used to automatically exclude entities within an overall group that are non-meat and dairy related (i.e. Cargill's salmon buisness Nova Austral). For contractual reasons, this information cannot be made available to other users and so is included for reference only. Please let us know if you are using the data via hello@feedbackglobal.org, or if you have a project for which support in analysis would be helpful. The data can be cited as Feedback (2020). Butchering the Planet: Dataset. https://feedbackglobal.org/butchering-the-planet/ Feedback observes the greatest possible care in collecting information and drafting publications but cannot guarantee that this dataset and tied report are complete. It relies heavily on secondary sources reproduced here in good faith. Feedback assumes no responsibility for errors in the sources used and makes no claim that any named financial institution knowingly finances any wrongdoing or is guilty of any breech in policy, or that any named business committed any wrongdoing. This dataset has been modified using an automated process from the original used in 'Butchering the Planet' so some variation between the results in that report and this dataset may be possible. | J2: Feedback commissioned the not-for-profit research firm Profundo (https://profundo.nl/) to map the financial backers of the thirty-five of the world’s largest meat and dairy companies, as defined by production volume. These data came from IATP & GRAIN 2016 Emissions Impossible. Alongside the companies named in this report, Profundo mapped finance of the group level holding companies, group financing vehicles, and their relevant subsidiaries. The financial research utilised Refinitiv, Bloomberg, IJGlobal, Trade Finance Analytics, company publications, company registers and media archives to identify financial relationships. - Shareholding data was obtained for 31 December 2016, 31 December 2018, and 31 March 2020. - Bondholding data was obtained for the most recent filing date at the time the research is conducted, i.e. April 2020. - Loans for the selected companies are most complete for the period 1 January 2015 to 31 December 2019. More data ranging from 1 January 2011 to 31 December 2014 is additionally concluded within the dataset. - The bond and share issuances of the selected companies have been ana lysed for the period 1 January 2015 to 31 December 2019. The databases relied on for this research do not always include details on how individual banks contribute to a financial deal. For syndicated loans and underwriting, we include this information where possible. When this information is not available, we calculate this amount drawing on the total value of a loan or issuance, as well as the number of banks involved. When the fee is known a ratio of an institution’s management fee to the management fees received by all institutions is calculated. When the fee is unknown for one or more participants in a deal, a second method is used, called the ‘bookratio’. This determines the commitment distribution of bookrunners and other managers. This spreadsheet calculates these figures automatically - full details and bookratio's can be found in the report 'Butchering the Planet'.
A21: Full report: feedbackglobal.org/butchering-the-planet/

Sheet Investors - Meat
B1: Investors in Meat companies (last filing date April 2020, US$ mln)
B4: In scope? (Yes/No) | C4: Yes
B5: Reporting date (Shareholdings) | C5: (Multiple Items)
B6: Sector | C6: Meat
B8: Sum of Per Investor Value (in mln US$) | D8: Type of financing | M8: Investments by type of financing | R8: Top investing countries in Meat companies | U8: Top investing countries in Meat companies (last filing date April 2020, US$ mln)
B9: Investor Parent | C9: Investor Parent Country | D9: Bondholding | E9: Shareholding | F9: Grand Total | H9: Investor (Country) | I9: =D9 -> Bondholding | J9: =E9 -> Shareholding | K9: =F9 -> Grand Total | N9: Bondholding | O9: Shareholding | P9: Total Value | R9: Country | S9: Total Value | U9: Country | V9: Total Value | W9: %
B10: Vanguard | C10: United States | D10: 656.774 | E10: 4095.611978 | F10: 4752.385978 | H10: =B10&" ("&C10&")" -> Vanguard (United States) | I10: 656.774 | J10: 4095.611978 | K10: 4752.385978 | M10: Value | N10: =D1743 -> 14372.245 | O10: =E1743 -> 46184.0979 | P10: =N10+O10 -> 60556.3429 | R10: United States | S10: =SUMIF($C$10:$C$1742,R10,$F$10:$F$1742) -> 37304.87724 | U10: =R10 -> United States | V10: =S10 -> 37304.87724 | W10: =V10/$V$19 -> 0.6160358347
B11: BlackRock | C11: United States | D11: 485.162 | E11: 3644.683693 | F11: 4129.845693 | H11: BlackRock (United States) | I11: 485.162 | J11: 3644.683693 | K11: 4129.845693 | M11: % | N11: =N10/$P$10 -> 0.2373367399 | O11: =O10/$P$10 -> 0.7626632601 | P11: =P10/$P$10 -> 1 | R11: Brazil | S11: =SUMIF($C$10:$C$1742,R11,$F$10:$F$1742) -> 6791.101867 | U11: =R11 -> Brazil | V11: 6791.101867 | W11: 0.1121451782
B12: BNDES | C12: Brazil | E12: 3733.884801 | F12: 3733.884801 | H12: BNDES (Brazil) | I12: 0 | J12: 3733.884801 | K12: 3733.884801 | R12: China | S12: 2682.850748 | U12: China | V12: 2682.850748 | W12: 0.04430338127
B13: State Street | C13: United States | D13: 154.796 | E13: 2535.124435 | F13: 2689.920435 | H13: State Street (United States) | I13: 154.796 | J13: 2535.124435 | K13: 2689.920435 | M13: Investments by type of financing | R13: Japan | S13: 2444.669574 | U13: Japan | V13: 2444.669574 | W13: 0.04037016533
B14: T. Rowe Price | C14: United States | D14: 85.062 | E14: 1923.072656 | F14: 2008.134656 | H14: T. Rowe Price (United States) | I14: 85.062 | J14: 1923.072656 | K14: 2008.134656 | R14: United Kingdom | S14: 2270.844759 | U14: United Kingdom | V14: 2270.844759 | W14: 0.03749970112
B15: Invesco | C15: United States | D15: 53.521 | E15: 1042.258637 | F15: 1095.779637 | H15: Invesco (United States) | I15: 53.521 | J15: 1042.258637 | K15: 1095.779637 | R15: Canada | S15: 1613.936141 | U15: Canada | V15: 1613.936141 | W15: 0.02665180993
B16: Capital Group | C16: United States | D16: 3.432 | E16: 1085.319602 | F16: 1088.751602 | H16: Capital Group (United States) | I16: 3.432 | J16: 1085.319602 | K16: 1088.751602 | R16: Germany | S16: 1038.660403 | U16: Germany | V16: 1038.660403 | W16: 0.01715196713
B17: Fidelity Investments | C17: United States | D17: 486.636 | E17: 340.7595748 | F17: 827.3955747 | H17: Fidelity Investments (United States) | I17: 486.636 | J17: 340.7595748 | K17: 827.3955747 | R17: Switzerland | S17: 968.0529944 | U17: =R17 -> Switzerland | V17: =S17 -> 968.0529944 | W17: 0.01598598839
B18: Mondrian Investment Partners | C18: United Kingdom | D18: 0.25 | E18: 757.733671 | F18: 757.983671 | H18: Mondrian Investment Partners (United Kingdom) | I18: 0.25 | J18: 757.733671 | K18: 757.983671 | R18: Norway | S18: 908.7905977 | U18: Others | V18: =SUM(S18:S55) -> 5441.349165 | W18: 0.08985597388
B19: Norwegian Government Pension Fund - Global | C19: Norway | E19: 725.3966256 | F19: 725.3966256 | H19: Norwegian Government Pension Fund - Global (Norway) | I19: 0 | J19: 725.3966256 | K19: 725.3966256 | R19: Netherlands | S19: 846.8078116 | U19: Total | V19: =SUM(V10:V18) -> 60556.3429 | W19: 1
B20: Principal Financial Group | C20: United States | D20: 196.591 | E20: 426.1948422 | F20: 622.7858422 | H20: Principal Financial Group (United States) | I20: 196.591 | J20: 426.1948422 | K20: 622.7858422 | R20: France | S20: 745.1579597
B21: Prudential Financial (US) | C21: United States | D21: 458.56 | E21: 152.3789652 | F21: 610.9389652 | H21: Prudential Financial (US) (United States) | I21: 458.56 | J21: 152.3789652 | K21: 610.9389652 | R21: Australia | S21: 614.2616392 | U21: Top investing countries in Meat companies (last filing date April 2020, US$ mln)
B22: Geode Capital Holdings | C22: United States | E22: 583.4040394 | F22: 583.4040394 | H22: Geode Capital Holdings (United States) | I22: 0 | J22: 583.4040394 | K22: 583.4040394 | R22: Bermuda | S22: 420.659347
B23: Dimensional Fund Advisors | C23: United States | D23: 13.296 | E23: 550.6641312 | F23: 563.9601312 | H23: Dimensional Fund Advisors (United States) | I23: 13.296 | J23: 550.6641312 | K23: 563.9601312 | R23: Taiwan | S23: 381.5230342
B24: Macquarie Group | C24: Australia | D24: 405.816 | E24: 150.9582399 | F24: 556.7742399 | H24: Macquarie Group (Australia) | I24: 405.816 | J24: 150.9582399 | K24: 556.7742399 | R24: Thailand | S24: 354.4996817
B25: AQR Capital Management | C25: United States | D25: 24.718 | E25: 529.5608068 | F25: 554.2788068 | R25: Singapore | S25: 242.1664888
B26: Northern Trust | C26: United States | D26: 18.675 | E26: 475.848435 | F26: 494.523435 | R26: Italy | S26: 176.4444912
B27: Aristotle Capital Management | C27: United States | E27: 485.0577174 | F27: 485.0577174 | H27: Top 15 investors in Meat companies (last filing date April 2020, US$ mln) | R27: Sweden | S27: 133.6657307
B28: Allianz | C28: Germany | D28: 389.38 | E28: 94.70265728 | F28: 484.0826573 | R28: South Korea | S28: 103.7456889
B29: APG Group | C29: Netherlands | E29: 478.4367759 | F29: 478.4367759 | R29: Spain | S29: 90.6279856
B30: MMS Participacoes (Marfrig) | C30: Brazil | E30: 462.4153958 | F30: 462.4153958 | R30: Finland | S30: 82.68947721
B31: E Fund Management | C31: China | E31: 437.6681348 | F31: 437.6681348 | R31: Denmark | S31: 66.28629296
B32: Ameriprise Financial | C32: United States | D32: 99.915 | E32: 335.8315907 | F32: 435.7465907 | R32: South Africa | S32: 63.23920003
B33: Sumitomo Mitsui Trust | C33: Japan | D33: 0.383 | E33: 428.1159687 | F33: 428.4989687 | R33: Luxembourg | S33: 51.97092114
B34: JPMorgan Chase | C34: United States | D34: 265.034 | E34: 143.5246989 | F34: 408.5586989 | R34: Belgium | S34: 49.45909835
B35: Nomura | C35: Japan | D35: 37.721 | E35: 364.8309841 | F35: 402.5519841 | R35: Chile | S35: 22.34771854
B36: TIAA | C36: United States | D36: 139.568 | E36: 257.2834664 | F36: 396.8514664 | R36: Mexico | S36: 21.59839172
B37: Goldman Sachs | C37: United States | D37: 123.694 | E37: 255.6909281 | F37: 379.3849281 | R37: Israel | S37: 16.30225588
B38: MetLife | C38: United States | D38: 358.036 | E38: 13.13837747 | F38: 371.1743775 | R38: Bulgaria | S38: 10.374
B39: American International Group (AIG) | C39: United States | D39: 353.252 | E39: 13.22610611 | F39: 366.4781061 | R39: Liechtenstein | S39: 10.20483142
B40: Orix Corporation | C40: Japan | D40: 30.974 | E40: 329.7155672 | F40: 360.6895672 | R40: Austria | S40: 7.50721693
B41: LSV Asset Management | C41: United States | D41: 0.175 | E41: 355.786203 | F41: 355.961203 | R41: Hong Kong | S41: 6.43815479
B42: Wells Fargo | C42: United States | D42: 26.938 | E42: 328.0062298 | F42: 354.9442298 | R42: Malaysia | S42: 6.19089293
B43: Nationwide Mutual Insurance | C43: United States | D43: 352.377 | F43: 352.377 | R43: Czech Republic | S43: 4
B44: UBS | C44: Switzerland | D44: 61.117 | E44: 261.7221976 | F44: 322.8391976 | R44: India | S44: 2.02225685
B45: Northwestern Mutual Life Insurance | C45: United States | D45: 311.893 | E45: 6.98672782 | F45: 318.8797278 | R45: Peru | S45: 0.87727103
B46: Deutsche Bank | C46: Germany | D46: 154.399 | E46: 164.2977631 | F46: 318.6967631 | R46: Bahrain | S46: 0.54849479
B47: New York Life Insurance | C47: United States | D47: 281.227 | E47: 33.02476645 | F47: 314.2517664 | R47: Andorra | S47: 0.41807789
B48: Equitable Holdings | C48: United States | D48: 132.502 | E48: 171.9291961 | F48: 304.4311961 | R48: Trinidad And Tobago | S48: 0.28962135
B49: Allstate | C49: United States | D49: 288.713 | E49: 0.83413818 | F49: 289.5471382 | R49: Ireland | S49: 0.21449736
B50: Crédit Agricole | C50: France | D50: 179.465 | E50: 104.5751553 | F50: 284.0401553 | R50: Portugal | S50: 0.01250279
B51: China Southern Asset Management (CSAM) | C51: China | E51: 274.1253668 | F51: 274.1253668 | R51: Russia | S51: 0.007535
B52: Petros | C52: Brazil | E52: 269.9678103 | F52: 269.9678103 | S52: 0
B53: Bank of New York Mellon | C53: United States | D53: 23.502 | E53: 246.198233 | F53: 269.7002329 | S53: 0
B54: California Public Employees' Retirement System (CalPERS) | C54: United States | E54: 262.3807061 | F54: 262.3807061 | S54: 0
B55: Mitsubishi UFJ Financial | C55: Japan | E55: 260.1781289 | F55: 260.1781289 | S55: 0
B56: Power Financial Corporation | C56: Canada | D56: 112.092 | E56: 145.9556988 | F56: 258.0476988
B57: Legal & General | C57: United Kingdom | D57: 30.761 | E57: 226.0330812 | F57: 256.7940812
B58: BMO Financial Group | C58: Canada | D58: 25.537 | E58: 225.1255369 | F58: 250.6625369
B59: Thrivent Financial | C59: United States | D59: 241.681 | E59: 1.70883119 | F59: 243.3898312
B60: Caixa de Previdência dos Funcionários do Banco do Brasil | C60: Brazil | E60: 235.2010217 | F60: 235.2010217
B61: MassMutual Financial | C61: United States | D61: 219.378 | E61: 13.97344842 | F61: 233.3514484
B62: HSBC | C62: United Kingdom | D62: 24.231 | E62: 208.487951 | F62: 232.718951
B63: Legg Mason | C63: United States | D63: 197.216 | E63: 34.89602261 | F63: 232.1120226
B64: Morgan Stanley | C64: United States | D64: 10.686 | E64: 220.5318527 | F64: 231.2178527
B65: Lord, Abbett & Co | C65: United States | D65: 230.859 | F65: 230.859
B66: GIC | C66: Singapore | E66: 228.7557318 | F66: 228.7557318
B67: Waddell & Reed Financial | C67: United States | D67: 190.618 | E67: 33.34339565 | F67: 223.9613956
B68: Grupo J&F | C68: Brazil | E68: 222.0401884 | F68: 222.0401884
B69: Eaton Vance | C69: United States | D69: 42.989 | E69: 176.4839704 | F69: 219.4729704
B70: Mairs and Power | C70: United States | E70: 211.9345386 | F70: 211.9345386
B71: Credit Suisse | C71: Switzerland | D71: 10.676 | E71: 197.9789905 | F71: 208.6549905
B72: Kapitalo Investimentos | C72: Brazil | E72: 205.2013311 | F72: 205.2013311
B73: Charles Schwab | C73: United States | D73: 5.17 | E73: 196.5772703 | F73: 201.7472703
B74: Itaú Unibanco | C74: Brazil | E74: 200.3307009 | F74: 200.3307009
B75: Royal Bank of Canada | C75: Canada | D75: 104.103 | E75: 87.99614245 | F75: 192.0991425
B76: Florida State Board of Administration | C76: United States | E76: 186.6485533 | F76: 186.6485533
B77: Schweizerische Nationalbank | C77: Switzerland | E77: 184.5440294 | F77: 184.5440294
B78: Wellington Management | C78: United States | D78: 168.529 | E78: 13.82170221 | F78: 182.3507022
B79: Sun Life Financial | C79: Canada | D79: 152.858 | E79: 19.54716605 | F79: 172.4051661
B80: Prudential (UK) | C80: United Kingdom | D80: 141.959 | E80: 28.99829769 | F80: 170.9572977
B81: Liberty Mutual Insurance | C81: United States | D81: 168.23 | F81: 168.23
B82: Fidelity International | C82: Bermuda | D82: 73.751 | E82: 93.45605643 | F82: 167.2070564
B83: Voya Financial | C83: United States | D83: 129.834 | E83: 34.73184599 | F83: 164.565846
B84: Victory Capital | C84: United States | D84: 0.195 | E84: 163.8032697 | F84: 163.9982697
B85: Social Security Office | C85: Thailand | E85: 159.3041646 | F85: 159.3041646
B86: Baird | C86: United States | D86: 143.95 | E86: 10.5444927 | F86: 154.4944927
B87: Manulife Financial | C87: Canada | D87: 102.044 | E87: 50.45396455 | F87: 152.4979645
B88: Hyakujushi Bank | C88: Japan | E88: 151.5080511 | F88: 151.5080511
B89: Meiji Yasuda Life Insurance | C89: Japan | E89: 149.7196915 | F89: 149.7196915
B90: Safra Group | C90: Brazil | E90: 145.5446934 | F90: 145.5446934
B91: Pacific Century Group | C91: China | D91: 138.469 | E91: 7.04710529 | F91: 145.5161053
B92: BTG Pactual | C92: Brazil | D92: 0.006 | E92: 144.9049628 | F92: 144.9109628
B93: Harvest Fund Management | C93: China | E93: 142.1686833 | F93: 142.1686833
B94: Bank of America | C94: United States | D94: 0.733 | E94: 140.8858399 | F94: 141.6188399
B95: Guggenheim Capital | C95: United States | D95: 112.797 | E95: 26.4342162 | F95: 139.2312162
B96: Western & Southern Financial | C96: United States | D96: 138.575 | F96: 138.575
B97: Cathay Financial | C97: Taiwan | D97: 137.227 | E97: 0.94486078 | F97: 138.1718608
B98: Yuanta Financial | C98: Taiwan | D98: 136.128 | E98: 1.42787587 | F98: 137.5558759
B99: Grantham Mayo Van Otterloo & Co | C99: United States | E99: 136.9020104 | F99: 136.9020104
B100: State Farm | C100: United States | D100: 136.104 | F100: 136.104
B101: Aegon | C101: Netherlands | D101: 128.419 | E101: 6.69654332 | F101: 135.1155433
B102: DZ Bank | C102: Germany | D102: 5.287 | E102: 128.5452293 | F102: 133.8322293
B103: Iridian Asset Management | C103: United States | E103: 132.2764104 | F103: 132.2764104
B104: Franklin Resources | C104: United States | D104: 34.795 | E104: 96.34671968 | F104: 131.1417197
B105: Industrial and Commercial Bank of China | C105: China | E105: 130.8621025 | F105: 130.8621025
B106: Daiwa Securities | C106: Japan | E106: 128.1008978 | F106: 128.1008978
B107: Norinchukin Bank | C107: Japan | E107: 127.0189306 | F107: 127.0189306
B108: White Mountains Insurance | C108: Bermuda | D108: 125.925 | F108: 125.925
B109: Matthews International Capital Management | C109: United States | E109: 125.3514837 | F109: 125.3514837
B110: Nippon Life Insurance | C110: Japan | E110: 124.8243627 | F110: 124.8243627
B111: BNP Paribas | C111: France | D111: 3.948 | E111: 120.62524 | F111: 124.57324
B112: American Equity Investment Life Holding | C112: United States | D112: 122.971 | F112: 122.971
B113: Scotiabank | C113: Canada | E113: 122.5707074 | F113: 122.5707074
B114: DNB | C114: Norway | D114: 0.5 | E114: 120.6885693 | F114: 121.1885693
B115: BPCE Group | C115: France | D115: 100.485 | E115: 20.57457139 | F115: 121.0595714
B116: China Merchants Group | C116: China | E116: 119.8616654 | F116: 119.8616654
B117: Janus Henderson | C117: United Kingdom | D117: 10.562 | E117: 107.7391074 | F117: 118.3011074
B118: Guardian Life Insurance Company of America | C118: United States | D118: 117.68 | E118: 0.11574308 | F118: 117.7957431
B119: Fullgoal Fund Management | C119: China | E119: 115.601273 | F119: 115.601273
B120: Schroders | C120: United Kingdom | D120: 84.445 | E120: 26.68458276 | F120: 111.1295828
B121: Renaissance Technologies | C121: United States | E121: 110.8289629 | F121: 110.8289629
B122: ProFund Advisors | C122: United States | D122: 1.932 | E122: 107.2291766 | F122: 109.1611766
B123: Aviva | C123: United Kingdom | D123: 89.455 | E123: 19.57530603 | F123: 109.030306
B124: CITIC | C124: China | E124: 107.6752361 | F124: 107.6752361
B125: SMBC Group | C125: Japan | D125: 4.164 | E125: 103.4061565 | F125: 107.5701565
B126: Opportunity Asset Management | C126: Brazil | E126: 106.8134843 | F126: 106.8134843
B127: Rongtong Fund Management | C127: China | E127: 106.1342918 | F127: 106.1342918
B128: Muzinich & Co | C128: United States | D128: 105.974 | F128: 105.974
B129: New York State Common Retirement Fund | C129: United States | E129: 105.1018662 | F129: 105.1018662
B130: Huatai-PineBridge Fund Management | C130: China | E130: 102.918783 | F130: 102.918783
B131: United Services Automobile Association | C131: United States | D131: 93.281 | E131: 7.83495262 | F131: 101.1159526
B132: American Family | C132: United States | D132: 99.54 | F132: 99.54
B133: American Financial Group | C133: United States | D133: 97.997 | F133: 97.997
B134: TCW Group | C134: Netherlands | D134: 96.808 | E134: 0.3990151 | F134: 97.2070151
B135: China Universal Asset Management | C135: China | E135: 96.11693891 | F135: 96.11693891
B136: TA Associates | C136: United States | E136: 92.99107558 | F136: 92.99107558
B137: GF Securities | C137: China | E137: 91.76200275 | F137: 91.76200275
B138: Bradesco | C138: Brazil | E138: 91.39924507 | F138: 91.39924507
B139: Unum Group | C139: United States | D139: 91 | F139: 91
B140: Citigroup | C140: United States | E140: 90.83072282 | F140: 90.83072282
B141: Barclays | C141: United Kingdom | E141: 88.92021645 | F141: 88.92021645
B142: US Bancorp | C142: United States | E142: 86.59884021 | F142: 86.59884021
B143: Van Eck Global | C143: United States | D143: 6.435 | E143: 80.01176015 | F143: 86.44676015
B144: CNO Financial Group | C144: United States | D144: 84.838 | F144: 84.838
B145: Banco do Brasil | C145: Brazil | D145: 0.012 | E145: 84.81455302 | F145: 84.82655302
B146: Oaktree Capital | C146: United States | D146: 84.429 | F146: 84.429
B147: Baoying Fund Management | C147: China | E147: 82.29426476 | F147: 82.29426476
B148: RhumbLine Advisers | C148: United States | E148: 80.43696231 | F148: 80.43696231
B149: Nordea | C149: Finland | D149: 44.088 | E149: 35.06816748 | F149: 79.15616748
B150: Standard Life Aberdeen | C150: United Kingdom | D150: 36.496 | E150: 42.52984642 | F150: 79.02584642
B151: Caixa Econômica Federal | C151: Brazil | E151: 78.26078031 | F151: 78.26078031
B152: Globe Life | C152: United States | D152: 76.21 | F152: 76.21
B153: Knights of Columbus | C153: United States | D153: 71.046 | E153: 3.6566235 | F153: 74.7026235
B154: Grupo XP | C154: Brazil | D154: 0.026 | E154: 73.26622138 | F154: 73.29222138
B155: AJO | C155: United States | E155: 73.11412724 | F155: 73.11412724
B156: AXA | C156: France | D156: 54.372 | E156: 17.14780804 | F156: 71.51980804
B157: Intesa Sanpaolo | C157: Italy | D157: 3.42 | E157: 67.7907276 | F157: 71.2107276
B158: STERLING CAPITAL MANAGEMENT | C158: United States | D158: 4.97 | E158: 66.08354662 | F158: 71.05354662
B159: China Development Financial Holding | C159: Taiwan | D159: 64.33 | E159: 5.8964952 | F159: 70.2264952
B160: Brandywine Global Investment Management | C160: United States | D160: 10.234 | E160: 59.62618089 | F160: 69.86018089
B161: Pacific Asset Management | C161: United States | D161: 68.036 | F161: 68.036
B162: Polaris Capital Management | C162: United States | E162: 66.27937905 | F162: 66.27937905
B163: Toronto-Dominion Bank | C163: Canada | D163: 8.755 | E163: 56.9566945 | F163: 65.7116945
B164: National Mutual Insurance Federation of Agricultural Cooperatives | C164: Japan | E164: 64.85734777 | F164: 64.85734777
B165: Westwood Holdings Group | C165: United States | D165: 0.67 | E165: 64.15318008 | F165: 64.82318008
B166: First Trust Advisors | C166: United States | D166: 11.484 | E166: 52.89433725 | F166: 64.37833725
B167: Loews Corporation | C167: United States | D167: 63.295 | F167: 63.295
B168: Lazard | C168: Bermuda | D168: 1.149 | E168: 61.39267463 | F168: 62.54167463
B169: Genesis Asset Management | C169: United States | E169: 60.88098078 | F169: 60.88098078
B170: Aperio Group | C170: United States | E170: 60.53920084 | F170: 60.53920084
B171: Carmignac Gestion | C171: France | D171: 57.812 | E171: 2.55195126 | F171: 60.36395126
B172: Man Group | C172: United Kingdom | E172: 60.09635406 | F172: 60.09635406
B173: Tianhong Asset Management | C173: China | E173: 59.10015711 | F173: 59.10015711
B174: Unigestion | C174: Switzerland | E174: 58.77371365 | F174: 58.77371365
B175: SEI | C175: United States | D175: 1.422 | E175: 57.11073547 | F175: 58.53273547
B176: MFC Asset Management | C176: Thailand | E176: 57.50282209 | F176: 57.50282209
B177: Brandes Investment Partners | C177: United States | D177: 4.02 | E177: 53.44721082 | F177: 57.46721082
B178: California State Teachers' Retirement System (CalSTRS) | C178: United States | E178: 56.97944742 | F178: 56.97944742
B179: Auto-Owners Insurance | C179: United States | D179: 56.093 | F179: 56.093
B180: Compass Group | C180: United States | E180: 55.56720058 | F180: 55.56720058
B181: Storebrand | C181: Norway | E181: 53.88536396 | F181: 53.88536396
B182: AGF Management | C182: Canada | D182: 1.31 | E182: 52.48969328 | F182: 53.79969328
B183: National Life Group | C183: United States | D183: 53.173 | F183: 53.173
B184: Apollo Global Management | C184: United States | D184: 52.839 | F184: 52.839
B185: Strategic Income Management | C185: United States | D185: 52.231 | F185: 52.231
B186: Bahia Asset | C186: Brazil | E186: 51.8460042 | F186: 51.8460042
B187: Stifel Financial | C187: United States | E187: 51.53155986 | F187: 51.53155986
B188: Martingale Asset Management | C188: United States | E188: 51.41240548 | F188: 51.41240548
B189: WoodmenLife | C189: United States | D189: 50.71 | F189: 50.71
B190: Envestnet | C190: United States | E190: 50.25245741 | F190: 50.25245741
B191: Dai-Ichi Life | C191: Japan | D191: 46.897 | E191: 3.04421441 | F191: 49.94121441
B192: Siam Commercial Bank | C192: Thailand | E192: 49.92971156 | F192: 49.92971156
B193: Safari Capital Gestão de Recursos | C193: Brazil | E193: 48.87971649 | F193: 48.87971649
B194: Sjunde AP-fonden (AP7) | C194: Sweden | E194: 48.80529412 | F194: 48.80529412
B195: Caisse de dépôt et placement du Québec | C195: Canada | E195: 47.91772856 | F195: 47.91772856
B196: Minnesota Mutual Companies | C196: United States | D196: 44.828 | E196: 2.95166033 | F196: 47.77966033
B197: National Pension Service | C197: South Korea | E197: 47.33144877 | F197: 47.33144877
B198: Investec Group | C198: South Africa | E198: 46.96777663 | F198: 46.96777663
B199: Royal London Group | C199: United Kingdom | D199: 16.763 | E199: 30.11322679 | F199: 46.87622679
B200: Clark Capital Management Group | C200: United States | D200: 46.49 | F200: 46.49
B201: CPP Investment Board | C201: Canada | E201: 46.3747851 | F201: 46.3747851
B202: Yinhua Fund Management | C202: China | E202: 46.15127736 | F202: 46.15127736
B203: Banco Mediolanum | C203: Italy | E203: 46.1182331 | F203: 46.1182331
... 1540 more rows

Sheet Investors - Dairy
B1: Investors in Dairy companies (last filing date April 2020, US$ mln)
B4: In scope? (Yes/No) | C4: Yes
B5: Reporting date (Shareholdings) | C5: (Multiple Items)
B6: Sector | C6: Dairy
B8: Sum of Per Investor Value (in mln US$) | D8: Type of financing | H8: Top 15 investors in Dairy companies (last filing date April 2020, US$ mln) | M8: Investments by type of financing | R8: Top investing countries in Dairy companies | U8: Top investing countries in Dairy companies (last filing date April 2020, US$ mln)
B9: Investor Parent | C9: Investor Parent Country | D9: Bondholding | E9: Shareholding | F9: Grand Total | H9: Investor (Country) | I9: =D9 -> Bondholding | J9: =E9 -> Shareholding | K9: =F9 -> Grand Total | N9: Bondholding | O9: Shareholding | P9: Total Value | R9: Country | S9: Total Value | U9: Country | V9: Total Value | W9: %
B10: BlackRock | C10: United States | D10: 282.933 | E10: 23166.65486 | F10: 23449.58786 | H10: =B10&" ("&C10&")" -> BlackRock (United States) | I10: 282.933 | J10: 23166.65486 | K10: 23449.58786 | M10: Value | N10: =D1291 -> 6069.644 | O10: =E1291 -> 159245.6749 | P10: =N10+O10 -> 165315.3189 | R10: United States | S10: =SUMIF($C$10:$C$1290,R10,$F$10:$F$1290) -> 91181.87902 | U10: =R10 -> United States | V10: =S10 -> 91181.87902 | W10: =V10/$V$18 -> 0.5515633981
B11: Capital Group | C11: United States | D11: 116.7 | E11: 17954.94148 | F11: 18071.64148 | H11: Capital Group (United States) | I11: 116.7 | J11: 17954.94148 | K11: 18071.64148 | M11: % | N11: =N10/$P$10 -> 0.03671555692 | O11: =O10/$P$10 -> 0.9632844431 | P11: =P10/$P$10 -> 1 | R11: Canada | S11: =SUMIF($C$10:$C$1290,R11,$F$10:$F$1290) -> 16825.14695 | U11: =R11 -> Canada | V11: =S11 -> 16825.14695 | W11: 0.1017760911
B12: Vanguard | C12: United States | D12: 213.969 | E12: 10964.70294 | F12: 11178.67194 | H12: Vanguard (United States) | I12: 213.969 | J12: 10964.70294 | K12: 11178.67194 | R12: Switzerland | S12: 16712.1583 | U12: Switzerland | V12: 16712.1583 | W12: 0.1010926176
B13: Sun Life Financial | C13: Canada | D13: 47.519 | E13: 10586.78929 | F13: 10634.30829 | H13: Sun Life Financial (Canada) | I13: 47.519 | J13: 10586.78929 | K13: 10634.30829 | M13: Investments by type of financing | R13: Norway | S13: 9554.920879 | U13: Norway | V13: 9554.920879 | W13: 0.05779815776
B14: Norwegian Government Pension Fund - Global | C14: Norway | E14: 9157.047385 | F14: 9157.047385 | H14: Norwegian Government Pension Fund - Global (Norway) | I14: 0 | J14: 9157.047385 | K14: 9157.047385 | R14: France | S14: 6775.429295 | U14: France | V14: 6775.429295 | W14: 0.04098488477
B15: UBS | C15: Switzerland | D15: 132.395 | E15: 5417.382414 | F15: 5549.777414 | H15: UBS (Switzerland) | I15: 132.395 | J15: 5417.382414 | K15: 5549.777414 | R15: Germany | S15: 6523.387429 | U15: Germany | V15: 6523.387429 | W15: 0.03946027189
B16: Credit Suisse | C16: Switzerland | D16: 122.373 | E16: 3952.192124 | F16: 4074.565124 | H16: Credit Suisse (Switzerland) | I16: 122.373 | J16: 3952.192124 | K16: 4074.565124 | R16: United Kingdom | S16: 5243.30794 | U16: United Kingdom | V16: 5243.30794 | W16: 0.03171701192
B17: Third Point | C17: United States | E17: 3848.871443 | F17: 3848.871443 | H17: Third Point (United States) | I17: 0 | J17: 3848.871443 | K17: 3848.871443 | R17: Netherlands | S17: 2283.556409 | U17: Others | V17: =SUM(S17:S55) -> 12499.08904 | W17: 0.07560756698
B18: Fidelity Investments | C18: United States | D18: 0.501 | E18: 2849.855297 | F18: 2850.356297 | H18: Fidelity Investments (United States) | I18: 0.501 | J18: 2849.855297 | K18: 2850.356297 | R18: India | S18: 1472.265858 | U18: Total | V18: =SUM(V10:V17) -> 165315.3189 | W18: 1
B19: Zürcher Kantonalbank | C19: Switzerland | D19: 62.561 | E19: 2683.01084 | F19: 2745.57184 | H19: Zürcher Kantonalbank (Switzerland) | I19: 62.561 | J19: 2683.01084 | K19: 2745.57184 | R19: Bermuda | S19: 1446.111076
B20: Crédit Agricole | C20: France | D20: 30.74 | E20: 2372.831308 | F20: 2403.571308 | H20: Crédit Agricole (France) | I20: 30.74 | J20: 2372.831308 | K20: 2403.571308 | R20: Sweden | S20: 1097.848883 | U20: Top investing countries in Dairy companies (last filing date April 2020, US$ mln)
B21: Wellington Management | C21: United States | D21: 67.538 | E21: 2223.208162 | F21: 2290.746162 | H21: Wellington Management (United States) | I21: 67.538 | J21: 2223.208162 | K21: 2290.746162 | R21: Italy | S21: 886.1410009
B22: Deutsche Bank | C22: Germany | D22: 54.545 | E22: 2185.809226 | F22: 2240.354226 | H22: Deutsche Bank (Germany) | I22: 54.545 | J22: 2185.809226 | K22: 2240.354226 | R22: Finland | S22: 682.6801143
B23: First Eagle Investment Management | C23: United States | E23: 2102.491916 | F23: 2102.491916 | H23: First Eagle Investment Management (United States) | I23: 0 | J23: 2102.491916 | K23: 2102.491916 | R23: Australia | S23: 621.0979185
B24: Flossbach & von Storch | C24: Germany | D24: 8.175 | E24: 1771.647827 | F24: 1779.822827 | H24: Flossbach & von Storch (Germany) | I24: 8.175 | J24: 1771.647827 | K24: 1779.822827 | R24: Japan | S24: 616.6966193
B25: Pictet | C25: Switzerland | D25: 25.9 | E25: 1741.179177 | F25: 1767.079177 | R25: Denmark | S25: 508.7708255
B26: State Street | C26: United States | D26: 38.584 | E26: 1432.784267 | F26: 1471.368267 | R26: Belgium | S26: 471.1480186
B27: Affiliated Managers Group | C27: United States | E27: 1428.485763 | F27: 1428.485763 | H27: Top 15 investors in Dairy companies (last filing date April 2020, US$ mln) | R27: South Africa | S27: 437.1023785
B28: Geode Capital Holdings | C28: United States | E28: 1395.583315 | F28: 1395.583315 | R28: Luxembourg | S28: 338.3786585
B29: California Public Employees' Retirement System (CalPERS) | C29: United States | E29: 1386.464266 | F29: 1386.464266 | R29: Malaysia | S29: 277.9324221
B30: Gardner Russo & Gardner | C30: United States | E30: 1280.763456 | F30: 1280.763456 | R30: Spain | S30: 272.6062379
B31: Schroders | C31: United Kingdom | D31: 2.419 | E31: 1232.949777 | F31: 1235.368777 | R31: Singapore | S31: 262.3749553
B32: T. Rowe Price | C32: United States | D32: 21.01 | E32: 1207.271337 | F32: 1228.281337 | R32: Portugal | S32: 208.3015211
B33: JPMorgan Chase | C33: United States | D33: 7.687 | E33: 1180.097756 | F33: 1187.784756 | R33: Brazil | S33: 137.7484445
B34: TIAA | C34: United States | D34: 21.205 | E34: 1142.993921 | F34: 1164.198921 | R34: Liechtenstein | S34: 134.4492954
B35: APG Group | C35: Netherlands | E35: 1138.936699 | F35: 1138.936699 | R35: South Korea | S35: 84.10545889
B36: BPCE Group | C36: France | D36: 18.21 | E36: 1078.625838 | F36: 1096.835838 | R36: Austria | S36: 69.70643617
B37: DZ Bank | C37: Germany | D37: 19.537 | E37: 1006.874508 | F37: 1026.411508 | R37: China | S37: 63.23528451
B38: CPP Investment Board | C38: Canada | E38: 866.3483399 | F38: 866.3483399 | R38: Taiwan | S38: 55.71003795
B39: Caisse des Dépôts et Consignations | C39: France | E39: 792.6390857 | F39: 792.6390857 | R39: Chile | S39: 16.8154012
B40: Invesco | C40: United States | D40: 38.686 | E40: 753.0737855 | F40: 791.7597855 | R40: Hong Kong | S40: 12.89335764
B41: Fidelity International | C41: Bermuda | D41: 3.157 | E41: 781.23603 | F41: 784.39303 | R41: Mexico | S41: 8.63057493
B42: Caisse de dépôt et placement du Québec | C42: Canada | E42: 782.7409564 | F42: 782.7409564 | R42: Bulgaria | S42: 7.75
B43: Dimensional Fund Advisors | C43: United States | D43: 112.835 | E43: 662.9428791 | F43: 775.7778791 | R43: Andorra | S43: 7.43832685
B44: State Farm | C44: United States | D44: 553.67 | E44: 153.9673723 | F44: 707.6373723 | R44: Ireland | S44: 6.17838921
B45: Charles Schwab | C45: United States | E45: 698.7943762 | F45: 698.7943762 | R45: Jamaica | S45: 3.64739671
B46: Janus Henderson | C46: United Kingdom | D46: 19.114 | E46: 630.6314287 | F46: 649.7454287 | R46: Egypt | S46: 3.21828888
B47: BNP Paribas | C47: France | D47: 9.22 | E47: 639.313577 | F47: 648.533577 | R47: Greece | S47: 1.11705206
B48: Standard Life Aberdeen | C48: United Kingdom | D48: 25.775 | E48: 616.1389841 | F48: 641.9139841 | R48: United Arab Emirates | S48: 0.92873065
B49: Eaton Vance | C49: United States | E49: 633.7098926 | F49: 633.7098926 | R49: Malta | S49: 0.85150574
B50: Bank of New York Mellon | C50: United States | D50: 4.817 | E50: 608.2339271 | F50: 613.0509271 | R50: Israel | S50: 0.49152311
B51: Société Générale | C51: France | D51: 9.984 | E51: 598.3440118 | F51: 608.3280118 | R51: Russia | S51: 0.40512833
B52: Life Insurance Corporation of India | C52: India | E52: 598.5163225 | F52: 598.5163225 | R52: Monaco | S52: 0.34158734
B53: Power Financial Corporation | C53: Canada | D53: 10.306 | E53: 571.5227224 | F53: 581.8287224 | R53: Jordan | S53: 0.3
B54: Artisan Partners | C54: United States | E54: 542.1429146 | F54: 542.1429146 | R54: Bahrain | S54: 0.1098073
B55: Manulife Financial | C55: Canada | D55: 94.964 | E55: 443.2945573 | F55: 538.2585573 | R55: Poland | S55: 0.0041196
B56: Nordea | C56: Finland | D56: 8.174 | E56: 527.7887519 | F56: 535.9627519
B57: Allianz | C57: Germany | D57: 212.135 | E57: 316.1084272 | F57: 528.2434272
B58: PGGM | C58: Netherlands | E58: 524.6001294 | F58: 524.6001294
B59: American Century Investments | C59: United States | E59: 490.4998796 | F59: 490.4998796
B60: Toronto-Dominion Bank | C60: Canada | D60: 9.05 | E60: 452.1106822 | F60: 461.1606822
B61: Principal Financial Group | C61: United States | D61: 55.155 | E61: 387.9340107 | F61: 443.0890107
B62: WCM Investment Management | C62: United States | E62: 440.9557934 | F62: 440.9557934
B63: First Manhattan | C63: United States | E63: 433.8323045 | F63: 433.8323045
B64: Northern Trust | C64: United States | E64: 433.1966458 | F64: 433.1966458
B65: Legg Mason | C65: United States | D65: 101.676 | E65: 326.3665214 | F65: 428.0425214
B66: Equitable Holdings | C66: United States | D66: 39.023 | E66: 388.5733204 | F66: 427.5963204
B67: Florida State Board of Administration | C67: United States | E67: 426.5751416 | F67: 426.5751416
B68: Macquarie Group | C68: Australia | D68: 157.868 | E68: 244.2634278 | F68: 402.1314278
B69: CI Financial | C69: Canada | D69: 0.173 | E69: 399.4520995 | F69: 399.6250995
B70: Fisher Investments | C70: United States | E70: 390.5097534 | F70: 390.5097534
B71: Prudential Financial (US) | C71: United States | D71: 285.52 | E71: 101.2670032 | F71: 386.7870032
B72: Investec Group | C72: South Africa | E72: 385.6664376 | F72: 385.6664376
B73: Vontobel | C73: Switzerland | D73: 7.812 | E73: 373.6680894 | F73: 381.4800894
B74: Deka Group | C74: Germany | D74: 11.951 | E74: 366.3141265 | F74: 378.2651265
B75: New York Life Insurance | C75: United States | D75: 125.242 | E75: 245.3106502 | F75: 370.5526502
B76: Mawer Investment Management | C76: Canada | D76: 54.315 | E76: 307.1666785 | F76: 361.4816785
B77: Orix Corporation | C77: Japan | D77: 20.665 | E77: 320.5540316 | F77: 341.2190316
B78: BMO Financial Group | C78: Canada | D78: 41.593 | E78: 299.3745794 | F78: 340.9675794
B79: Fiduciary Management | C79: United States | E79: 340.9526592 | F79: 340.9526592
B80: Troy Asset Management | C80: United Kingdom | E80: 336.6130977 | F80: 336.6130977
B81: Goldman Sachs | C81: United States | D81: 25.525 | E81: 307.1873784 | F81: 332.7123784
B82: Sjunde AP-fonden (AP7) | C82: Sweden | E82: 319.2458434 | F82: 319.2458434
B83: State Bank of India | C83: India | E83: 317.6755045 | F83: 317.6755045
B84: Athora | C84: Bermuda | D84: 1.769 | E84: 315.4094552 | F84: 317.1784552
B85: HSBC | C85: United Kingdom | D85: 15.386 | E85: 300.6820447 | F85: 316.0680447
B86: Legal & General | C86: United Kingdom | D86: 27.86 | E86: 285.2285318 | F86: 313.0885318
B87: Royal London Group | C87: United Kingdom | D87: 23.487 | E87: 288.5818954 | F87: 312.0688954
B88: Baillie Gifford | C88: United Kingdom | E88: 299.330774 | F88: 299.330774
B89: NN Group | C89: Netherlands | E89: 293.8524349 | F89: 293.8524349
B90: Ameriprise Financial | C90: United States | D90: 0.5 | E90: 288.5622604 | F90: 289.0622604
B91: Scotiabank | C91: Canada | E91: 282.048103 | F91: 282.048103
B92: Axis Bank | C92: India | E92: 268.5352153 | F92: 268.5352153
B93: Ackermans & van Haaren | C93: Belgium | D93: 1.635 | E93: 257.534487 | F93: 259.169487
B94: Intesa Sanpaolo | C94: Italy | D94: 2.136 | E94: 255.2820547 | F94: 257.4180547
B95: AXA | C95: France | D95: 11.606 | E95: 239.591597 | F95: 251.197597
B96: Lazard | C96: Bermuda | D96: 0.131 | E96: 247.7262349 | F96: 247.8572349
B97: Anima | C97: Italy | E97: 227.3061384 | F97: 227.3061384
B98: Danske Bank | C98: Denmark | D98: 5.76 | E98: 213.3071142 | F98: 219.0671142
B99: Swedbank | C99: Sweden | E99: 214.6923128 | F99: 214.6923128
B100: CIBC | C100: Canada | E100: 214.5248728 | F100: 214.5248728
B101: M&G | C101: United Kingdom | D101: 15.17 | E101: 198.4820725 | F101: 213.6520724
B102: Royal Bank of Canada | C102: Canada | D102: 10.447 | E102: 193.1013434 | F102: 203.5483434
B103: Franklin Resources | C103: United States | D103: 0.26 | E103: 198.2065202 | F103: 198.4665202
B104: Crédit Mutuel CIC Group | C104: France | D104: 6.691 | E104: 189.8719606 | F104: 196.5629606
B105: Allstate | C105: United States | D105: 193.45 | F105: 193.45
B106: Thornburg Investment Management | C106: United States | E106: 188.7534674 | F106: 188.7534674
B107: MetLife | C107: United States | D107: 163.895 | E107: 24.34900055 | F107: 188.2440006
B108: Fiera Capital | C108: Canada | D108: 1.914 | E108: 184.7841209 | F108: 186.6981209
B109: Lombard Odier | C109: Switzerland | D109: 1.711 | E109: 184.2578532 | F109: 185.9688532
B110: Waddell & Reed Financial | C110: United States | D110: 24.281 | E110: 161.2852733 | F110: 185.5662733
B111: Banque Degroof Petercam | C111: Belgium | D111: 11.332 | E111: 172.3374205 | F111: 183.6694205
B112: DNB | C112: Norway | D112: 4.36 | E112: 178.0877206 | F112: 182.4477206
B113: GQG Partners | C113: United States | E113: 179.0527215 | F113: 179.0527215
B114: Union Bancaire Privée | C114: Switzerland | E114: 177.3043082 | F114: 177.3043082
B115: International Value Advisors | C115: United States | E115: 171.8237403 | F115: 171.8237403
B116: Grantham Mayo Van Otterloo & Co | C116: United States | E116: 166.3927212 | F116: 166.3927212
B117: ARISAIG Partners | C117: Singapore | E117: 162.3181261 | F117: 162.3181261
B118: Nationwide Mutual Insurance | C118: United States | D118: 158 | F118: 158
B119: La Caixa Group | C119: Portugal | D119: 0.1 | E119: 157.029289 | F119: 157.129289
B120: Tredje AP-Fonden (AP3) | C120: Sweden | E120: 155.4363673 | F120: 155.4363673
B121: Storebrand | C121: Norway | D121: 2 | E121: 152.3534525 | F121: 154.3534525
B122: Svenska Handelsbanken | C122: Sweden | D122: 2.18 | E122: 148.8396515 | F122: 151.0196515
B123: Aviva | C123: United Kingdom | D123: 4.5 | E123: 144.0161927 | F123: 148.5161927
B124: GAM Holding | C124: Switzerland | D124: 6.287 | E124: 140.1319017 | F124: 146.4189017
B125: Causeway Capital Holdings | C125: United States | E125: 144.1539176 | F125: 144.1539176
B126: Guardian Capital Group | C126: Canada | E126: 133.2689196 | F126: 133.2689196
B127: Leith Wheeler Investment Counsel | C127: United States | D127: 3.465 | E127: 128.8517728 | F127: 132.3167728
B128: Pioneer Holding | C128: Luxembourg | E128: 131.8827189 | F128: 131.8827189
B129: Confluence Investment Management | C129: United States | E129: 131.7161768 | F129: 131.7161768
B130: Skandinaviska Enskilda Banken | C130: Sweden | D130: 4.031 | E130: 126.9133258 | F130: 130.9443258
B131: Safra Group | C131: Brazil | D131: 3.017 | E131: 126.1617689 | F131: 129.1787689
B132: British Columbia Investment Management | C132: Canada | E132: 127.053384 | F132: 127.053384
B133: Voya Financial | C133: United States | D133: 29.679 | E133: 97.16470964 | F133: 126.8437096
B134: Public Bank | C134: Malaysia | E134: 126.7792495 | F134: 126.7792495
B135: BankInvest | C135: Denmark | E135: 126.5340264 | F135: 126.5340264
B136: Reuss Private Group | C136: Switzerland | E136: 126.4667262 | F136: 126.4667262
B137: OLZ & Partners Asset and Liability Management | C137: Switzerland | E137: 113.8128857 | F137: 113.8128857
B138: Travelers | C138: United States | D138: 111.444 | F138: 111.444
B139: United Services Automobile Association | C139: United States | D139: 89.5 | E139: 21.19677387 | F139: 110.6967739
B140: E-L Financial Corporation | C140: Canada | D140: 13.456 | E140: 96.28437074 | F140: 109.7403707
B141: Valiant Bank | C141: Switzerland | E141: 107.9210101 | F141: 107.9210101
B142: Eleva Capital | C142: France | E142: 107.1258882 | F142: 107.1258882
B143: AQR Capital Management | C143: United States | D143: 4.635 | E143: 102.0147053 | F143: 106.6497053
B144: Unit Trust of India | C144: India | E144: 106.0334402 | F144: 106.0334402
B145: Banco Mediolanum | C145: Italy | E145: 105.6964278 | F145: 105.6964278
B146: AGF Management | C146: Canada | D146: 11.437 | E146: 93.46595884 | F146: 104.9029588
B147: La Banque Postale | C147: France | D147: 1.887 | E147: 101.7674815 | F147: 103.6544815
B148: DJE Kapital | C148: Germany | E148: 102.5207208 | F148: 102.5207208
B149: Guardian Life Insurance Company of America | C149: United States | D149: 100.7 | F149: 100.7
B150: Foord Asset Management | C150: United States | E150: 100.65972 | F150: 100.65972
B151: Banque Cantonale de Genève | C151: Switzerland | D151: 2.124 | E151: 97.47243461 | F151: 99.59643461
B152: KWAP Retirement Fund | C152: Malaysia | E152: 99.43133333 | F152: 99.43133333
B153: American International Group (AIG) | C153: United States | D153: 47.546 | E153: 50.49134246 | F153: 98.03734246
B154: Jarislowsky Fraser | C154: Canada | E154: 97.73432228 | F154: 97.73432228
B155: Gabelli Funds | C155: United States | E155: 97.63759492 | F155: 97.63759492
B156: Nippon Life Insurance | C156: Japan | E156: 97.25063812 | F156: 97.25063812
B157: Aegon | C157: Netherlands | D157: 0.223 | E157: 92.95780656 | F157: 93.18080656
B158: Graubundner Kantonalbank | C158: Switzerland | D158: 2.886 | E158: 86.83357046 | F158: 89.71957046
B159: White Mountains Insurance | C159: Bermuda | D159: 89.115 | F159: 89.115
B160: Commonwealth Bank of Australia | C160: Australia | E160: 88.57500537 | F160: 88.57500537
B161: Douglass Winthrop Advisors | C161: United States | E161: 87.62811459 | F161: 87.62811459
B162: Brightsphere | C162: United Kingdom | E162: 87.42439587 | F162: 87.42439587
B163: Finreon | C163: Switzerland | E163: 85.43860046 | F163: 85.43860046
B164: Azimut | C164: Italy | D164: 3.165 | E164: 80.44825232 | F164: 83.61325232
B165: Federated Investors | C165: United States | D165: 4.773 | E165: 77.85908906 | F165: 82.63208906
B166: American Equity Investment Life Holding | C166: United States | D166: 82.414 | F166: 82.414
B167: Morgan Stanley | C167: United States | D167: 1.042 | E167: 81.235649 | F167: 82.277649
B168: Thrivent Financial | C168: United States | D168: 36.475 | E168: 45.31167923 | F168: 81.78667923
B169: Hemenway & Barnes | C169: United States | E169: 81.6956897 | F169: 81.6956897
B170: Lofoten Asset Management | C170: United Kingdom | E170: 81.55981469 | F170: 81.55981469
B171: Aargauische Kantonalbank | C171: Switzerland | D171: 6.284 | E171: 74.57182766 | F171: 80.85582766
B172: AG2R La Mondiale | C172: France | E172: 80.75640915 | F172: 80.75640915
B173: Oversea-Chinese Banking Corporation | C173: Singapore | E173: 80.22293785 | F173: 80.22293785
B174: BPER Banca | C174: Italy | E174: 78.73411157 | F174: 78.73411157
B175: Unigestion | C175: Switzerland | E175: 78.54436665 | F175: 78.54436665
B176: Landesbank Baden-Württemberg (LBBW) | C176: Germany | D176: 2.18 | E176: 75.98231373 | F176: 78.16231373
B177: QV Investors | C177: Canada | D177: 9.862 | E177: 68.12315217 | F177: 77.98515217
B178: Nomura | C178: Japan | D178: 0.01 | E178: 77.38962454 | F178: 77.39962454
B179: Mirae Asset Financial Group | C179: South Korea | D179: 10.913 | E179: 65.40292797 | F179: 76.31592797
B180: Man Group | C180: United Kingdom | E180: 76.2850229 | F180: 76.2850229
B181: Assenagon | C181: Luxembourg | E181: 74.34465761 | F181: 74.34465761
B182: Julius Bär | C182: Switzerland | D182: 1.115 | E182: 70.30043897 | F182: 71.41543897
B183: Wells Fargo | C183: United States | D183: 47.749 | E183: 22.53366946 | F183: 70.28266946
B184: LSV Asset Management | C184: United States | D184: 1.7 | E184: 67.72383512 | F184: 69.42383512
B185: Desjardins Group | C185: Canada | D185: 16.809 | E185: 50.58446124 | F185: 67.39346124
B186: Focus Operating | C186: United States | E186: 66.41371944 | F186: 66.41371944
B187: Basellandschaftliche Kantonalbank | C187: Switzerland | D187: 3.802 | E187: 62.08864971 | F187: 65.89064971
B188: Guinness Atkinson Asset Management | C188: United States | E188: 65.57980922 | F188: 65.57980922
B189: Sarofim Group | C189: United States | E189: 65.48162592 | F189: 65.48162592
B190: Verner Investissements | C190: France | E190: 65.32244173 | F190: 65.32244173
B191: ASR Nederland | C191: Netherlands | E191: 62.68248537 | F191: 62.68248537
B192: Santander | C192: Spain | E192: 61.62647768 | F192: 61.62647768
B193: Altrinsic Global Advisors | C193: United States | E193: 60.93945486 | F193: 60.93945486
B194: ABN Amro | C194: Netherlands | D194: 1.354 | E194: 58.80523365 | F194: 60.15923365
B195: Berner Kantonalbank | C195: Switzerland | D195: 4.462 | E195: 55.62013676 | F195: 60.08213676
B196: OP Financial Group | C196: Finland | E196: 57.82200933 | F196: 57.82200933
B197: Assicurazioni Generali | C197: Italy | D197: 4.36 | E197: 53.24842222 | F197: 57.60842222
B198: Pendal Group | C198: Australia | E198: 57.09569857 | F198: 57.09569857
B199: Schafer Cullen Capital Management | C199: United States | E199: 56.91055191 | F199: 56.91055191
B200: Berkshire Hathaway | C200: United States | D200: 55.725 | F200: 55.725
B201: Magellan Financial Group | C201: Australia | E201: 55.32702479 | F201: 55.32702479
B202: Liechtensteinische Landesbank | C202: Liechtenstein | D202: 13.163 | E202: 41.85061983 | F202: 55.01361983
B203: SEI | C203: United States | D203: 27.505 | E203: 25.93678543 | F203: 53.44178543
... 1088 more rows

Sheet Investors - By Company
B2: In scope? (Yes/No) | C2: Yes
B3: Reporting date (Shareholdings) | C3: (Multiple Items)
B4: Select company here -> | C4: BRF
B6: Investor Parent | C6: Investor Parent Country | D6: Sum of Per Investor Value (in mln US$)
B7: Petros | C7: Brazil | D7: 269.7519899
B8: Caixa de Previdência dos Funcionários do Banco do Brasil | C8: Brazil | D8: 235.2010217
B9: Kapitalo Investimentos | C9: Brazil | D9: 177.5090342
B10: BlackRock | C10: United States | D10: 124.352854
B11: BTG Pactual | C11: Brazil | D11: 116.6822955
B12: Norwegian Government Pension Fund - Global | C12: Norway | D12: 66.56237954
B13: China Development Financial Holding | C13: Taiwan | D13: 64.33
B14: APG Group | C14: Netherlands | D14: 61.65490503
B15: Vanguard | C15: United States | D15: 60.905
B16: Macquarie Group | C16: Australia | D16: 59.6201638
B17: Carmignac Gestion | C17: France | D17: 57.812
B18: Wells Fargo | C18: United States | D18: 56.63802979
B19: Franklin Resources | C19: United States | D19: 41.6756177
B20: Itaú Unibanco | C20: Brazil | D20: 41.62352127
B21: Lord, Abbett & Co | C21: United States | D21: 33.217
B22: Bahia Asset | C22: Brazil | D22: 32.98358361
B23: Schroders | C23: United Kingdom | D23: 30.94065708
B24: Equitable Holdings | C24: United States | D24: 27.86746277
B25: Inca Investments | C25: United States | D25: 26.9584
B26: Sun Life Financial | C26: Canada | D26: 25.26374904
B27: Muzinich & Co | C27: United States | D27: 23.129
B28: Caixa Econômica Federal | C28: Brazil | D28: 20.00585033
B29: Passport Capital | C29: United States | D29: 17.4
B30: Standard Life Aberdeen | C30: United Kingdom | D30: 17.15401978
B31: United Services Automobile Association | C31: United States | D31: 17
B32: Leblon Equities | C32: Brazil | D32: 16.20163441
B33: TA Associates | C33: United States | D33: 15.32839013
B34: American Equity Investment Life Holding | C34: United States | D34: 15
B35: Renaissance Technologies | C35: United States | D35: 14.1577971
B36: Florida State Board of Administration | C36: United States | D36: 13.84404043
B37: TIAA | C37: United States | D37: 12.94425416
B38: Guepardo | C38: Brazil | D38: 12.63736922
B39: Legg Mason | C39: United States | D39: 11.84054886
B40: Prudential Financial (US) | C40: United States | D40: 10.998
B41: Bradesco | C41: Brazil | D41: 10.74633512
B42: UBS | C42: Switzerland | D42: 10.45487724
B43: Fundação de Assistência e Previdência Social do BNDES - FAPES | C43: Brazil | D43: 10.35567167
B44: Banco do Brasil | C44: Brazil | D44: 10.27117061
B45: Brandywine Global Investment Management | C45: United States | D45: 9.955
B46: Dimensional Fund Advisors | C46: United States | D46: 9.8109877
B47: City of London Investment Group | C47: United Kingdom | D47: 9.52731746
B48: Research Affiliates | C48: United States | D48: 9.09274216
B49: PGGM | C49: Netherlands | D49: 8.97756334
B50: DZ Bank | C50: Germany | D50: 8.79651727
B51: BNP Paribas | C51: France | D51: 8.53937669
B52: Athena Capital Advisors | C52: United States | D52: 8.48722092
B53: Bank of New York Mellon | C53: United States | D53: 8.41349073
B54: Hua Nan Financial | C54: Taiwan | D54: 8.318
B55: Credit Suisse | C55: Switzerland | D55: 8.09538239
B56: CNO Financial Group | C56: United States | D56: 7.9
B57: Quatrinvest | C57: Brazil | D57: 7.7245411
B58: State Street | C58: United States | D58: 7.2794362
B59: Two Sigma Investments | C59: United States | D59: 6.9679982
B60: BPCE Group | C60: France | D60: 6.93016164
B61: Tavola Capital | C61: Brazil | D61: 6.84955993
B62: MetLife | C62: United States | D62: 6.72
B63: RWC Asset Advisors | C63: United States | D63: 6.63395785
B64: Northern Trust | C64: United States | D64: 6.395562
B65: BWGI | C65: Brazil | D65: 6.0183381
B66: Deutsche Bank | C66: Germany | D66: 5.95209796
B67: American International Group (AIG) | C67: United States | D67: 5.61855589
B68: Pacific Century Group | C68: China | D68: 5.5949275
B69: Safra Group | C69: Brazil | D69: 5.4604094
B70: Ceres Fundação de Seguridade Social | C70: Brazil | D70: 5.42527918
B71: Trilha Investimentos | C71: Brazil | D71: 5.35220732
B72: Vintage Investimentos | C72: Brazil | D72: 5.24386969
B73: Allianz | C73: Germany | D73: 5.15566017
B74: T. Rowe Price | C74: United States | D74: 5.14230181
B75: Principal Financial Group | C75: United States | D75: 4.96510372
B76: JPMorgan Chase | C76: United States | D76: 4.67416981
B77: Azimut | C77: Italy | D77: 4.58792773
B78: Charles Schwab | C78: United States | D78: 4.56151976
B79: Deka Group | C79: Germany | D79: 4.374
B80: Occam Brasil | C80: Brazil | D80: 4.26911636
B81: Santander | C81: Spain | D81: 4.20358818
B82: Platinum Asset Management | C82: Australia | D82: 4.1524375
B83: Geode Capital Holdings | C83: United States | D83: 4.1492138
B84: Brookfield Asset Management | C84: Canada | D84: 4.1295101
B85: Sjunde AP-fonden (AP7) | C85: Sweden | D85: 4.04701099
B86: Crédit Agricole | C86: France | D86: 4.00095591
B87: Apollo Global Management | C87: United States | D87: 4
B88: Liberty Life Group Trust | C88: United States | D88: 4
B89: Neuberger Berman | C89: United States | D89: 3.84559778
B90: Guggenheim Capital | C90: United States | D90: 3.8012963
B91: Aviva | C91: United Kingdom | D91: 3.67705927
B92: Desjardins Group | C92: Canada | D92: 3.53357747
B93: TCW Group | C93: Netherlands | D93: 3.5
B94: Pictet | C94: Switzerland | D94: 3.4729538
B95: Banco Bilbao Vizcaya Argentaria (BBVA) | C95: Spain | D95: 3.4025787
B96: ICW Group | C96: United States | D96: 3.34
B97: Principal Investimentos | C97: Brazil | D97: 3.33281232
B98: California Public Employees' Retirement System (CalPERS) | C98: United States | D98: 3.17232321
B99: SEI | C99: United States | D99: 3.05628598
B100: SIG Susquehanna | C100: United States | D100: 3.017305
B101: Raiffeisen Bank International | C101: Austria | D101: 2.954
B102: Eaton Vance | C102: United States | D102: 2.91939241
B103: LarrainVial | C103: Chile | D103: 2.55971574
B104: First Trust Advisors | C104: United States | D104: 2.30610607
B105: Icone Investimentos | C105: Brazil | D105: 2.28759367
B106: Bogle Investment Management | C106: United States | D106: 2.2661296
B107: Goldman Sachs | C107: United States | D107: 2.2576616
B108: D.E. Shaw & Co. | C108: United States | D108: 2.182482
B109: Banco de Brasilia (BRB) | C109: Brazil | D109: 2.12945343
B110: Solidus | C110: Brazil | D110: 2.0791646
B111: Daiwa Securities | C111: Japan | D111: 2.07347051
B112: Wellington Management | C112: United States | D112: 1.97722462
B113: Connor, Clark & Lunn Financial Group | C113: Canada | D113: 1.9522452
B114: V2 Investimentos | C114: Brazil | D114: 1.87096
B115: AQR Capital Management | C115: United States | D115: 1.84987286
B116: Alpha Key Capital Management | C116: Brazil | D116: 1.84425458
B117: Banque Degroof Petercam | C117: Belgium | D117: 1.80198679
B118: Massachusetts Mutual Life Insurance Company | C118: United States | D118: 1.7592676
B119: Morgan Stanley | C119: United States | D119: 1.74770653
B120: Intesa Sanpaolo | C120: Italy | D120: 1.71424945
B121: Arrowstreet Capital | C121: United States | D121: 1.6961491
B122: Global Thematic Partners | C122: United States | D122: 1.64848285
B123: Marshall Wace | C123: United Kingdom | D123: 1.6379084
B124: AFP Habitat | C124: Chile | D124: 1.602801
B125: Northwestern Mutual Life Insurance | C125: United States | D125: 1.55
B126: Lazard | C126: Bermuda | D126: 1.51553805
B127: Munich Re | C127: Germany | D127: 1.5
B128: Reliance Group | C128: India | D128: 1.49608046
B129: Atena Capital | C129: Brazil | D129: 1.47898529
B130: Leith Wheeler Investment Counsel | C130: United States | D130: 1.45114279
B131: British Columbia Investment Management | C131: Canada | D131: 1.42385365
B132: Peak 6 Capital Management | C132: United States | D132: 1.4161947
B133: Apex Capital | C133: Brazil | D133: 1.38908254
B134: Canvas Capital | C134: Brazil | D134: 1.37971761
B135: Fuh Hwa Securities Investment Trust | C135: Taiwan | D135: 1.352
B136: Grupo XP | C136: Brazil | D136: 1.34856721
B137: Quadrature Capital | C137: United Kingdom | D137: 1.3180326
B138: Maverick Capital | C138: United States | D138: 1.2946122
B139: Van Eck Global | C139: United States | D139: 1.25
B140: Aperio Group | C140: United States | D140: 1.1952785
B141: UV Gestora | C141: Brazil | D141: 1.1918424
B142: Moat Capital | C142: Brazil | D142: 1.16045881
B143: Geração Futuro | C143: Brazil | D143: 1.13137024
B144: Oaktree Capital | C144: United States | D144: 1.11
B145: Qube Research & Technologies | C145: United Kingdom | D145: 1.1085047
B146: Invesco | C146: United States | D146: 1.1078274
B147: Banco Mediolanum | C147: Italy | D147: 1.06324301
B148: Zenith Asset Management | C148: United States | D148: 1.04376897
B149: Grou Capital | C149: Brazil | D149: 1.03788434
B150: HSBC | C150: United Kingdom | D150: 1.02646349
B151: Storebrand | C151: Norway | D151: 1.02308615
B152: Rockefeller & Co. | C152: United States | D152: 1.0221891
B153: SHIP Capital Partners | C153: United States | D153: 0.981
B154: RAM Active Investments | C154: Switzerland | D154: 0.97113391
B155: VALIA - Fundação Vale do Rio Doce de Seguridade Social | C155: Brazil | D155: 0.9632248
B156: MassMutual Financial | C156: United States | D156: 0.95130792
B157: Windsor Creek Advisors | C157: United States | D157: 0.9463425
B158: Mapfre | C158: Spain | D158: 0.87795178
B159: Sumitomo Mitsui Trust | C159: Japan | D159: 0.86020344
B160: Orix Corporation | C160: Japan | D160: 0.8429343
B161: CoreCommodity Capital | C161: United States | D161: 0.8241481
B162: Cathay Financial | C162: Taiwan | D162: 0.8
B163: Mirae Asset Financial Group | C163: South Korea | D163: 0.78027067
B164: Barclays | C164: United Kingdom | D164: 0.7798332
B165: Voloridge Investment Management | C165: United States | D165: 0.764324
B166: Athene Holding | C166: Bermuda | D166: 0.755
B167: Real Grandeza Fundação de Previdência e Assistência Social | C167: Brazil | D167: 0.72881459
B168: Legal & General | C168: United Kingdom | D168: 0.71396117
B169: Caisse de dépôt et placement du Québec | C169: Canada | D169: 0.68306855
B170: Banco Alfa de Investimento | C170: Brazil | D170: 0.65838627
B171: Banque Cantonale Vaudoise | C171: Switzerland | D171: 0.6525
B172: SulAmérica Group | C172: Brazil | D172: 0.63379972
B173: RPS Capital Investment Management | C173: Brazil | D173: 0.63119029
B174: Ventor Investimentos | C174: Brazil | D174: 0.61713568
B175: Zürcher Kantonalbank | C175: Switzerland | D175: 0.614533
B176: 3R Investimentos | C176: Brazil | D176: 0.60625581
B177: Vinland Capital | C177: Brazil | D177: 0.60606603
B178: Verner Investissements | C178: France | D178: 0.604563
B179: Concórdia Gestão de Recursos | C179: Brazil | D179: 0.57987165
B180: Indie Capital Investimentos | C180: Brazil | D180: 0.57278495
B181: Voya Financial | C181: United States | D181: 0.56718018
B182: Grupo Icatu | C182: Brazil | D182: 0.56423251
B183: Avalon Advisors | C183: United States | D183: 0.5578382
B184: OpenCapital | C184: Switzerland | D184: 0.545
B185: Bellevue Group | C185: Switzerland | D185: 0.545
B186: Alm. Brand Invest | C186: Denmark | D186: 0.545
B187: Rio das Pedras Investimentos | C187: Brazil | D187: 0.53647645
B188: CBH Compagnie Bancaire Helvétique | C188: Switzerland | D188: 0.509
B189: Cincinnati Financial | C189: United States | D189: 0.5
B190: Group One Trading | C190: United States | D190: 0.4987449
B191: Assicurazioni Generali | C191: Italy | D191: 0.491
B192: SPX | C192: Brazil | D192: 0.4712616
B193: Dynamic Technology Lab | C193: Singapore | D193: 0.4619497
B194: Forpus Capital | C194: Brazil | D194: 0.45660906
B195: Clarivest Asset Management | C195: United States | D195: 0.4540395
B196: Verde Asset Management | C196: Brazil | D196: 0.44876109
B197: Prudential (UK) | C197: United Kingdom | D197: 0.43014681
B198: Trivevlla Investments | C198: Brazil | D198: 0.42379028
B199: Proprio Capital | C199: Brazil | D199: 0.40591016
B200: Deltec Asset Management | C200: United States | D200: 0.4002
B201: Anaxis Asset Management | C201: France | D201: 0.4
B202: BNY Mellon | C202: United States | D202: 0.39217724
... 173 more rows

Sheet Full Investor Data
A1: Group | B1: Type of financing | C1: Closing / Issue / Filing Date (Bondholdings) | D1: Reporting date (Shareholdings) | E1: Per Investor Value (in mln US$) | F1: Percentage of shares or total debt outstanding | G1: Investor Parent | H1: Investor Parent Country | I1: Source | J1: Database | K1: Sector
A2: Nestlé | B2: Shareholding | C2: 2019-10-18 | D2: 2020-03-31 | E2: 11440.29557 | F2: 0.036 | G2: Capital Group | H2: United States | I2: Thomson Reuters Eikon, 'Share ownership: Nestle SA - 18 October 2019', viewed in January 1900. | J2: Thomson Reuters | K2: =INDEX(' Scope'!E:E,MATCH(A2,' Scope'!A:A,0)) -> Dairy
A3: BRF | B3: Bondholding | C3: 2019-12-31 | E3: 0.673 | F3: 0.0013 | G3: Allianz | H3: Germany | I3: Thomson Reuter Eikon, 'Bondholdings: Brf Gmbh - US05583BAA70, 31-12-2019', viewed in May 2020. | J3: Thomson EMAXX | K3: =INDEX(' Scope'!E:E,MATCH(A3,' Scope'!A:A,0)) -> Meat
A4: BRF | B4: Bondholding | C4: 2020-03-31 | E4: 0.6 | F4: 0.0051 | G4: BlackRock | H4: United States | I4: Thomson Reuter Eikon, 'Bondholdings: Brf - Brasil Foods Sa, Itajai, Sc - USP1905CAA82, 31-03-2020', viewed in May 2020. | J4: Thomson EMAXX | K4: =INDEX(' Scope'!E:E,MATCH(A4,' Scope'!A:A,0)) -> Meat
A5: BRF | B5: Bondholding | C5: 2020-01-31 | E5: 11 | F5: 0.0219 | G5: BlackRock | H5: United States | I5: Thomson Reuter Eikon, 'Bondholdings: Brf Gmbh - US05583BAA70, 31-01-2020', viewed in May 2020. | J5: Thomson EMAXX | K5: =INDEX(' Scope'!E:E,MATCH(A5,' Scope'!A:A,0)) -> Meat
A6: BRF | B6: Bondholding | C6: 2019-12-31 | E6: 2.256 | F6: 0.0045 | G6: BlackRock | H6: United States | I6: Thomson Reuter Eikon, 'Bondholdings: Brf Gmbh - US05583BAA70, 31-12-2019', viewed in May 2020. | J6: Thomson EMAXX | K6: =INDEX(' Scope'!E:E,MATCH(A6,' Scope'!A:A,0)) -> Meat
A7: BRF | B7: Bondholding | C7: 2019-12-31 | E7: 3.251 | F7: 0.0065 | G7: BlackRock | H7: United States | I7: Thomson Reuter Eikon, 'Bondholdings: Brf Gmbh - US05583BAA70, 31-12-2019', viewed in May 2020. | J7: Thomson EMAXX | K7: =INDEX(' Scope'!E:E,MATCH(A7,' Scope'!A:A,0)) -> Meat
A8: BRF | B8: Bondholding | C8: 2020-01-31 | E8: 0.2 | F8: 0.0004 | G8: BlackRock | H8: United States | I8: Thomson Reuter Eikon, 'Bondholdings: Brf Gmbh - US05583BAA70, 31-01-2020', viewed in May 2020. | J8: Thomson EMAXX | K8: =INDEX(' Scope'!E:E,MATCH(A8,' Scope'!A:A,0)) -> Meat
A9: BRF | B9: Bondholding | C9: 2019-12-31 | E9: 0.2 | F9: 0.0004 | G9: BlackRock | H9: United States | I9: Thomson Reuter Eikon, 'Bondholdings: Brf Gmbh - US05583BAA70, 31-12-2019', viewed in May 2020. | J9: Thomson EMAXX | K9: =INDEX(' Scope'!E:E,MATCH(A9,' Scope'!A:A,0)) -> Meat
A10: BRF | B10: Bondholding | C10: 2019-12-31 | E10: 0.2 | F10: 0.0004 | G10: BlackRock | H10: United States | I10: Thomson Reuter Eikon, 'Bondholdings: Brf Gmbh - US05583BAA70, 31-12-2019', viewed in May 2020. | J10: Thomson EMAXX | K10: =INDEX(' Scope'!E:E,MATCH(A10,' Scope'!A:A,0)) -> Meat
A11: BRF | B11: Bondholding | C11: 2020-03-31 | E11: 0.582 | F11: 0.0012 | G11: BlackRock | H11: United States | I11: Thomson Reuter Eikon, 'Bondholdings: Brf Gmbh - US05583BAA70, 31-03-2020', viewed in May 2020. | J11: Thomson EMAXX | K11: =INDEX(' Scope'!E:E,MATCH(A11,' Scope'!A:A,0)) -> Meat
A12: BRF | B12: Bondholding | C12: 2020-03-31 | E12: 0.374 | F12: 0.0007 | G12: BlackRock | H12: United States | I12: Thomson Reuter Eikon, 'Bondholdings: Brf Gmbh - US05583BAA70, 31-03-2020', viewed in May 2020. | J12: Thomson EMAXX | K12: =INDEX(' Scope'!E:E,MATCH(A12,' Scope'!A:A,0)) -> Meat
A13: BRF | B13: Bondholding | C13: 2019-12-31 | E13: 0.28 | F13: 0.0006 | G13: BlackRock | H13: United States | I13: Thomson Reuter Eikon, 'Bondholdings: Brf Gmbh - US05583BAA70, 31-12-2019', viewed in May 2020. | J13: Thomson EMAXX | K13: =INDEX(' Scope'!E:E,MATCH(A13,' Scope'!A:A,0)) -> Meat
A14: BRF | B14: Bondholding | C14: 2020-03-31 | E14: 4.5 | F14: 0.006 | G14: Prudential Financial (US) | H14: United States | I14: Thomson Reuter Eikon, 'Bondholdings: Brf Brasil Foods S A - US10552TAF49, 31-03-2020', viewed in May 2020. | J14: Thomson EMAXX | K14: =INDEX(' Scope'!E:E,MATCH(A14,' Scope'!A:A,0)) -> Meat
A15: BRF | B15: Bondholding | C15: 2020-03-31 | E15: 1.4 | F15: 0.0019 | G15: Prudential Financial (US) | H15: United States | I15: Thomson Reuter Eikon, 'Bondholdings: Brf Brasil Foods S A - US10552TAF49, 31-03-2020', viewed in May 2020. | J15: Thomson EMAXX | K15: =INDEX(' Scope'!E:E,MATCH(A15,' Scope'!A:A,0)) -> Meat
A16: BRF | B16: Bondholding | C16: 2020-03-31 | E16: 1.1 | F16: 0.0022 | G16: Prudential Financial (US) | H16: United States | I16: Thomson Reuter Eikon, 'Bondholdings: Brf Gmbh - US05583BAA70, 31-03-2020', viewed in May 2020. | J16: Thomson EMAXX | K16: =INDEX(' Scope'!E:E,MATCH(A16,' Scope'!A:A,0)) -> Meat
A17: BRF | B17: Bondholding | C17: 2020-03-31 | E17: 0.465 | F17: 0.0006 | G17: Prudential Financial (US) | H17: United States | I17: Thomson Reuter Eikon, 'Bondholdings: Brf Brasil Foods S A - US10552TAF49, 31-03-2020', viewed in May 2020. | J17: Thomson EMAXX | K17: =INDEX(' Scope'!E:E,MATCH(A17,' Scope'!A:A,0)) -> Meat
A18: BRF | B18: Bondholding | C18: 2020-03-31 | E18: 25.5 | F18: 0.0341 | G18: Macquarie Group | H18: Australia | I18: Thomson Reuter Eikon, 'Bondholdings: Brf Brasil Foods S A - US10552TAF49, 31-03-2020', viewed in May 2020. | J18: Thomson EMAXX | K18: =INDEX(' Scope'!E:E,MATCH(A18,' Scope'!A:A,0)) -> Meat
A19: BRF | B19: Bondholding | C19: 2020-03-31 | E19: 2 | F19: 0.0169 | G19: Macquarie Group | H19: Australia | I19: Thomson Reuter Eikon, 'Bondholdings: Brf Brasil Foods S A - US10552TAA51, 31-03-2020', viewed in May 2020. | J19: Thomson EMAXX | K19: =INDEX(' Scope'!E:E,MATCH(A19,' Scope'!A:A,0)) -> Meat
A20: BRF | B20: Bondholding | C20: 2020-03-31 | E20: 3.45 | F20: 0.0046 | G20: MetLife | H20: United States | I20: Thomson Reuter Eikon, 'Bondholdings: Brf Brasil Foods S A - US10552TAF49, 31-03-2020', viewed in May 2020. | J20: Thomson EMAXX | K20: =INDEX(' Scope'!E:E,MATCH(A20,' Scope'!A:A,0)) -> Meat
A21: BRF | B21: Bondholding | C21: 2020-03-31 | E21: 0.5 | F21: 0.0007 | G21: MetLife | H21: United States | I21: Thomson Reuter Eikon, 'Bondholdings: Brf Brasil Foods S A - US10552TAF49, 31-03-2020', viewed in May 2020. | J21: Thomson EMAXX | K21: =INDEX(' Scope'!E:E,MATCH(A21,' Scope'!A:A,0)) -> Meat
A22: BRF | B22: Bondholding | C22: 2018-03-31 | E22: 0.5 | F22: 0.0007 | G22: MetLife | H22: United States | I22: Thomson Reuter Eikon, 'Bondholdings: Brf Brasil Foods S A - US10552TAF49, 31-03-2018', viewed in May 2020. | J22: Thomson EMAXX | K22: =INDEX(' Scope'!E:E,MATCH(A22,' Scope'!A:A,0)) -> Meat
A23: BRF | B23: Bondholding | C23: 2020-04-30 | E23: 2.092 | F23: 0.0038 | G23: BlackRock | H23: United States | I23: Thomson Reuter Eikon, 'Bondholdings: Brf Sa, Itajai, Sc - XS1242327168, 30-04-2020', viewed in May 2020. | J23: Thomson EMAXX | K23: =INDEX(' Scope'!E:E,MATCH(A23,' Scope'!A:A,0)) -> Meat
A24: BRF | B24: Bondholding | C24: 2020-01-31 | E24: 0.109 | F24: 0.0002 | G24: BlackRock | H24: United States | I24: Thomson Reuter Eikon, 'Bondholdings: Brf Sa, Itajai, Sc - XS1242327168, 31-01-2020', viewed in May 2020. | J24: Thomson EMAXX | K24: =INDEX(' Scope'!E:E,MATCH(A24,' Scope'!A:A,0)) -> Meat
A25: BRF | B25: Bondholding | C25: 2020-03-31 | E25: 1.4 | F25: 0.0019 | G25: Principal Financial Group | H25: United States | I25: Thomson Reuter Eikon, 'Bondholdings: Brf Brasil Foods S A - US10552TAF49, 31-03-2020', viewed in May 2020. | J25: Thomson EMAXX | K25: =INDEX(' Scope'!E:E,MATCH(A25,' Scope'!A:A,0)) -> Meat
A26: BRF | B26: Bondholding | C26: 2020-03-31 | E26: 1.1 | F26: 0.0022 | G26: Principal Financial Group | H26: United States | I26: Thomson Reuter Eikon, 'Bondholdings: Brf Gmbh - US05583BAA70, 31-03-2020', viewed in May 2020. | J26: Thomson EMAXX | K26: =INDEX(' Scope'!E:E,MATCH(A26,' Scope'!A:A,0)) -> Meat
A27: BRF | B27: Bondholding | C27: 2020-03-31 | E27: 8 | F27: 0.0159 | G27: American Equity Investment Life Holding | H27: United States | I27: Thomson Reuter Eikon, 'Bondholdings: Brf Gmbh - US05583BAA70, 31-03-2020', viewed in May 2020. | J27: Thomson EMAXX | K27: =INDEX(' Scope'!E:E,MATCH(A27,' Scope'!A:A,0)) -> Meat
A28: BRF | B28: Bondholding | C28: 2020-03-31 | E28: 7 | F28: 0.059 | G28: American Equity Investment Life Holding | H28: United States | I28: Thomson Reuter Eikon, 'Bondholdings: Brf Brasil Foods S A - US10552TAA51, 31-03-2020', viewed in May 2020. | J28: Thomson EMAXX | K28: =INDEX(' Scope'!E:E,MATCH(A28,' Scope'!A:A,0)) -> Meat
A29: BRF | B29: Bondholding | C29: 2020-03-31 | E29: 2 | F29: 0.004 | G29: Equitable Holdings | H29: United States | I29: Thomson Reuter Eikon, 'Bondholdings: Brf Gmbh - US05583BAA70, 31-03-2020', viewed in May 2020. | J29: Thomson EMAXX | K29: =INDEX(' Scope'!E:E,MATCH(A29,' Scope'!A:A,0)) -> Meat
A30: BRF | B30: Bondholding | C30: 2020-03-31 | E30: 0.462 | F30: 0.0009 | G30: Equitable Holdings | H30: United States | I30: Thomson Reuter Eikon, 'Bondholdings: Brf - Brasil Foods Sa, Itajai, Sc - USP1905CAD22, 31-03-2020', viewed in May 2020. | J30: Thomson EMAXX | K30: =INDEX(' Scope'!E:E,MATCH(A30,' Scope'!A:A,0)) -> Meat
A31: BRF | B31: Bondholding | C31: 2018-09-30 | E31: 6.19 | F31: 0.0124 | G31: Equitable Holdings | H31: United States | I31: Thomson Reuter Eikon, 'Bondholdings: Brf - Brasil Foods Sa, Itajai, Sc - USP1905CAD22, 30-09-2018', viewed in May 2020. | J31: Thomson EMAXX | K31: =INDEX(' Scope'!E:E,MATCH(A31,' Scope'!A:A,0)) -> Meat
A32: BRF | B32: Bondholding | C32: 2020-03-31 | E32: 0.37 | F32: 0.0007 | G32: Equitable Holdings | H32: United States | I32: Thomson Reuter Eikon, 'Bondholdings: Brf - Brasil Foods Sa, Itajai, Sc - USP1905CAD22, 31-03-2020', viewed in May 2020. | J32: Thomson EMAXX | K32: =INDEX(' Scope'!E:E,MATCH(A32,' Scope'!A:A,0)) -> Meat
A33: BRF | B33: Bondholding | C33: 2020-03-31 | E33: 0.312 | F33: 0.0006 | G33: Equitable Holdings | H33: United States | I33: Thomson Reuter Eikon, 'Bondholdings: Brf - Brasil Foods Sa, Itajai, Sc - USP1905CAD22, 31-03-2020', viewed in May 2020. | J33: Thomson EMAXX | K33: =INDEX(' Scope'!E:E,MATCH(A33,' Scope'!A:A,0)) -> Meat
A34: BRF | B34: Bondholding | C34: 2020-03-31 | E34: 0.203 | F34: 0.0004 | G34: Equitable Holdings | H34: United States | I34: Thomson Reuter Eikon, 'Bondholdings: Brf - Brasil Foods Sa, Itajai, Sc - USP1905CAD22, 31-03-2020', viewed in May 2020. | J34: Thomson EMAXX | K34: =INDEX(' Scope'!E:E,MATCH(A34,' Scope'!A:A,0)) -> Meat
A35: BRF | B35: Bondholding | C35: 2018-09-30 | E35: 0.2 | F35: 0.0003 | G35: Equitable Holdings | H35: United States | I35: Thomson Reuter Eikon, 'Bondholdings: Brf Brasil Foods S A - US10552TAF49, 30-09-2018', viewed in May 2020. | J35: Thomson EMAXX | K35: =INDEX(' Scope'!E:E,MATCH(A35,' Scope'!A:A,0)) -> Meat
A36: BRF | B36: Bondholding | C36: 2020-03-31 | E36: 16 | F36: 0.1348 | G36: United Services Automobile Association | H36: United States | I36: Thomson Reuter Eikon, 'Bondholdings: Brf Brasil Foods S A - US10552TAA51, 31-03-2020', viewed in May 2020. | J36: Thomson EMAXX | K36: =INDEX(' Scope'!E:E,MATCH(A36,' Scope'!A:A,0)) -> Meat
A37: BRF | B37: Bondholding | C37: 2020-03-31 | E37: 1 | F37: 0.0084 | G37: United Services Automobile Association | H37: United States | I37: Thomson Reuter Eikon, 'Bondholdings: Brf Brasil Foods S A - US10552TAA51, 31-03-2020', viewed in May 2020. | J37: Thomson EMAXX | K37: =INDEX(' Scope'!E:E,MATCH(A37,' Scope'!A:A,0)) -> Meat
A38: BRF | B38: Bondholding | C38: 2020-03-31 | E38: 1.96 | F38: 0.0026 | G38: American International Group (AIG) | H38: United States | I38: Thomson Reuter Eikon, 'Bondholdings: Brf Brasil Foods S A - US10552TAF49, 31-03-2020', viewed in May 2020. | J38: Thomson EMAXX | K38: =INDEX(' Scope'!E:E,MATCH(A38,' Scope'!A:A,0)) -> Meat
A39: BRF | B39: Bondholding | C39: 2020-03-31 | E39: 0.56 | F39: 0.0007 | G39: American International Group (AIG) | H39: United States | I39: Thomson Reuter Eikon, 'Bondholdings: Brf Brasil Foods S A - US10552TAF49, 31-03-2020', viewed in May 2020. | J39: Thomson EMAXX | K39: =INDEX(' Scope'!E:E,MATCH(A39,' Scope'!A:A,0)) -> Meat
A40: BRF | B40: Bondholding | C40: 2019-09-30 | E40: 0.56 | F40: 0.0007 | G40: American International Group (AIG) | H40: United States | I40: Thomson Reuter Eikon, 'Bondholdings: Brf Brasil Foods S A - US10552TAF49, 30-09-2019', viewed in May 2020. | J40: Thomson EMAXX | K40: =INDEX(' Scope'!E:E,MATCH(A40,' Scope'!A:A,0)) -> Meat
A41: BRF | B41: Bondholding | C41: 2019-10-31 | E41: 0.872 | F41: 0.0016 | G41: UBS | H41: Switzerland | I41: Thomson Reuter Eikon, 'Bondholdings: Brf Sa, Itajai, Sc - XS1242327168, 31-10-2019', viewed in May 2020. | J41: Thomson EMAXX | K41: =INDEX(' Scope'!E:E,MATCH(A41,' Scope'!A:A,0)) -> Meat
A42: BRF | B42: Bondholding | C42: 2018-05-31 | E42: 1.09 | F42: 0.002 | G42: Credit Suisse | H42: Switzerland | I42: Thomson Reuter Eikon, 'Bondholdings: Brf Sa, Itajai, Sc - XS1242327168, 31-05-2018', viewed in May 2020. | J42: Thomson EMAXX | K42: =INDEX(' Scope'!E:E,MATCH(A42,' Scope'!A:A,0)) -> Meat
A43: BRF | B43: Bondholding | C43: 2020-03-31 | E43: 1.96 | F43: 0.0026 | G43: American International Group (AIG) | H43: United States | I43: Thomson Reuter Eikon, 'Bondholdings: Brf Brasil Foods S A - US10552TAF49, 31-03-2020', viewed in May 2020. | J43: Thomson EMAXX | K43: =INDEX(' Scope'!E:E,MATCH(A43,' Scope'!A:A,0)) -> Meat
A44: BRF | B44: Bondholding | C44: 2019-09-30 | E44: 0.56 | F44: 0.0007 | G44: American International Group (AIG) | H44: United States | I44: Thomson Reuter Eikon, 'Bondholdings: Brf Brasil Foods S A - US10552TAF49, 30-09-2019', viewed in May 2020. | J44: Thomson EMAXX | K44: =INDEX(' Scope'!E:E,MATCH(A44,' Scope'!A:A,0)) -> Meat
A45: BRF | B45: Bondholding | C45: 2020-03-31 | E45: 3.8 | F45: 0.032 | G45: CNO Financial Group | H45: United States | I45: Thomson Reuter Eikon, 'Bondholdings: Brf Brasil Foods S A - US10552TAA51, 31-03-2020', viewed in May 2020. | J45: Thomson EMAXX | K45: =INDEX(' Scope'!E:E,MATCH(A45,' Scope'!A:A,0)) -> Meat
A46: BRF | B46: Bondholding | C46: 2020-03-31 | E46: 1.57 | F46: 0.0134 | G46: CNO Financial Group | H46: United States | I46: Thomson Reuter Eikon, 'Bondholdings: Brf - Brasil Foods Sa, Itajai, Sc - USP1905CAA82, 31-03-2020', viewed in May 2020. | J46: Thomson EMAXX | K46: =INDEX(' Scope'!E:E,MATCH(A46,' Scope'!A:A,0)) -> Meat
A47: BRF | B47: Bondholding | C47: 2020-03-31 | E47: 2 | F47: 0.0169 | G47: CNO Financial Group | H47: United States | I47: Thomson Reuter Eikon, 'Bondholdings: Brf Brasil Foods S A - US10552TAA51, 31-03-2020', viewed in May 2020. | J47: Thomson EMAXX | K47: =INDEX(' Scope'!E:E,MATCH(A47,' Scope'!A:A,0)) -> Meat
A48: BRF | B48: Bondholding | C48: 2020-03-31 | E48: 0.53 | F48: 0.0045 | G48: CNO Financial Group | H48: United States | I48: Thomson Reuter Eikon, 'Bondholdings: Brf - Brasil Foods Sa, Itajai, Sc - USP1905CAA82, 31-03-2020', viewed in May 2020. | J48: Thomson EMAXX | K48: =INDEX(' Scope'!E:E,MATCH(A48,' Scope'!A:A,0)) -> Meat
A49: BRF | B49: Bondholding | C49: 2020-03-31 | E49: 3.1 | F49: 0.0062 | G49: Aviva | H49: United Kingdom | I49: Thomson Reuter Eikon, 'Bondholdings: Brf Gmbh - US05583BAA70, 31-03-2020', viewed in May 2020. | J49: Thomson EMAXX | K49: =INDEX(' Scope'!E:E,MATCH(A49,' Scope'!A:A,0)) -> Meat
A50: BRF | B50: Bondholding | C50: 2020-03-31 | E50: 0.604 | F50: 0.0012 | G50: Pacific Century Group | H50: China | I50: Thomson Reuter Eikon, 'Bondholdings: Brf Gmbh - US05583BAA70, 31-03-2020', viewed in May 2020. | J50: Thomson EMAXX | K50: =INDEX(' Scope'!E:E,MATCH(A50,' Scope'!A:A,0)) -> Meat
A51: BRF | B51: Bondholding | C51: 2020-03-31 | E51: 0.35 | F51: 0.0005 | G51: Pacific Century Group | H51: China | I51: Thomson Reuter Eikon, 'Bondholdings: Brf Brasil Foods S A - US10552TAF49, 31-03-2020', viewed in May 2020. | J51: Thomson EMAXX | K51: =INDEX(' Scope'!E:E,MATCH(A51,' Scope'!A:A,0)) -> Meat
A52: BRF | B52: Bondholding | C52: 2020-03-31 | E52: 0.2 | F52: 0.0004 | G52: Pacific Century Group | H52: China | I52: Thomson Reuter Eikon, 'Bondholdings: Brf - Brasil Foods Sa, Itajai, Sc - USP1905CAD22, 31-03-2020', viewed in May 2020. | J52: Thomson EMAXX | K52: =INDEX(' Scope'!E:E,MATCH(A52,' Scope'!A:A,0)) -> Meat
A53: BRF | B53: Bondholding | C53: 2020-03-31 | E53: 1.895 | F53: 0.0038 | G53: Pacific Century Group | H53: China | I53: Thomson Reuter Eikon, 'Bondholdings: Brf Gmbh - US05583BAA70, 31-03-2020', viewed in May 2020. | J53: Thomson EMAXX | K53: =INDEX(' Scope'!E:E,MATCH(A53,' Scope'!A:A,0)) -> Meat
A54: BRF | B54: Bondholding | C54: 2020-03-31 | E54: 1.05 | F54: 0.0014 | G54: Pacific Century Group | H54: China | I54: Thomson Reuter Eikon, 'Bondholdings: Brf Brasil Foods S A - US10552TAF49, 31-03-2020', viewed in May 2020. | J54: Thomson EMAXX | K54: =INDEX(' Scope'!E:E,MATCH(A54,' Scope'!A:A,0)) -> Meat
A55: BRF | B55: Bondholding | C55: 2020-03-31 | E55: 1.4 | F55: 0.0019 | G55: TCW Group | H55: Netherlands | I55: Thomson Reuter Eikon, 'Bondholdings: Brf Brasil Foods S A - US10552TAF49, 31-03-2020', viewed in May 2020. | J55: Thomson EMAXX | K55: =INDEX(' Scope'!E:E,MATCH(A55,' Scope'!A:A,0)) -> Meat
A56: BRF | B56: Bondholding | C56: 2020-03-31 | E56: 1.1 | F56: 0.0022 | G56: TCW Group | H56: Netherlands | I56: Thomson Reuter Eikon, 'Bondholdings: Brf Gmbh - US05583BAA70, 31-03-2020', viewed in May 2020. | J56: Thomson EMAXX | K56: =INDEX(' Scope'!E:E,MATCH(A56,' Scope'!A:A,0)) -> Meat
A57: BRF | B57: Bondholding | C57: 2018-09-30 | E57: 51.824 | F57: 0.0933 | G57: Carmignac Gestion | H57: France | I57: Thomson Reuter Eikon, 'Bondholdings: Brf Sa, Itajai, Sc - XS1242327168, 30-09-2018', viewed in May 2020. | J57: Thomson EMAXX | K57: =INDEX(' Scope'!E:E,MATCH(A57,' Scope'!A:A,0)) -> Meat
A58: BRF | B58: Bondholding | C58: 2017-12-31 | E58: 5.225 | F58: 0.0094 | G58: Carmignac Gestion | H58: France | I58: Thomson Reuter Eikon, 'Bondholdings: Brf Sa, Itajai, Sc - XS1242327168, 31-12-2017', viewed in May 2020. | J58: Thomson EMAXX | K58: =INDEX(' Scope'!E:E,MATCH(A58,' Scope'!A:A,0)) -> Meat
A59: BRF | B59: Bondholding | C59: 2019-06-30 | E59: 0.763 | F59: 0.0014 | G59: Carmignac Gestion | H59: France | I59: Thomson Reuter Eikon, 'Bondholdings: Brf Sa, Itajai, Sc - XS1242327168, 30-06-2019', viewed in May 2020. | J59: Thomson EMAXX | K59: =INDEX(' Scope'!E:E,MATCH(A59,' Scope'!A:A,0)) -> Meat
A60: BRF | B60: Bondholding | C60: 2018-03-31 | E60: 0.665 | F60: 0.0013 | G60: BPCE Group | H60: France | I60: Thomson Reuter Eikon, 'Bondholdings: Brf Gmbh - US05583BAA70, 31-03-2018', viewed in May 2020. | J60: Thomson EMAXX | K60: =INDEX(' Scope'!E:E,MATCH(A60,' Scope'!A:A,0)) -> Meat
A61: BRF | B61: Bondholding | C61: 2020-04-30 | E61: 0.436 | F61: 0.0008 | G61: Deutsche Bank | H61: Germany | I61: Thomson Reuter Eikon, 'Bondholdings: Brf Sa, Itajai, Sc - XS1242327168, 30-04-2020', viewed in May 2020. | J61: Thomson EMAXX | K61: =INDEX(' Scope'!E:E,MATCH(A61,' Scope'!A:A,0)) -> Meat
A62: BRF | B62: Bondholding | C62: 2020-03-31 | E62: 0.417 | F62: 0.0008 | G62: Deutsche Bank | H62: Germany | I62: Thomson Reuter Eikon, 'Bondholdings: Brf Sa, Itajai, Sc - XS1242327168, 31-03-2020', viewed in May 2020. | J62: Thomson EMAXX | K62: =INDEX(' Scope'!E:E,MATCH(A62,' Scope'!A:A,0)) -> Meat
A63: BRF | B63: Bondholding | C63: 2020-03-31 | E63: 1.4 | F63: 0.0019 | G63: Desjardins Group | H63: Canada | I63: Thomson Reuter Eikon, 'Bondholdings: Brf Brasil Foods S A - US10552TAF49, 31-03-2020', viewed in May 2020. | J63: Thomson EMAXX | K63: =INDEX(' Scope'!E:E,MATCH(A63,' Scope'!A:A,0)) -> Meat
A64: BRF | B64: Bondholding | C64: 2020-03-31 | E64: 1.1 | F64: 0.0022 | G64: Desjardins Group | H64: Canada | I64: Thomson Reuter Eikon, 'Bondholdings: Brf Gmbh - US05583BAA70, 31-03-2020', viewed in May 2020. | J64: Thomson EMAXX | K64: =INDEX(' Scope'!E:E,MATCH(A64,' Scope'!A:A,0)) -> Meat
A65: BRF | B65: Bondholding | C65: 2020-03-31 | E65: 2.398 | F65: 0.0043 | G65: Muzinich & Co | H65: United States | I65: Thomson Reuter Eikon, 'Bondholdings: Brf Sa, Itajai, Sc - XS1242327168, 31-03-2020', viewed in May 2020. | J65: Thomson EMAXX | K65: =INDEX(' Scope'!E:E,MATCH(A65,' Scope'!A:A,0)) -> Meat
A66: BRF | B66: Bondholding | C66: 2018-12-31 | E66: 64.33 | F66: 0.1289 | G66: China Development Financial Holding | H66: Taiwan | I66: Thomson Reuter Eikon, 'Bondholdings: Brf - Brasil Foods Sa, Itajai, Sc - USP1905CAD22, 31-12-2018', viewed in May 2020. | J66: Thomson EMAXX | K66: =INDEX(' Scope'!E:E,MATCH(A66,' Scope'!A:A,0)) -> Meat
A67: BRF | B67: Bondholding | C67: 2020-03-31 | E67: 10.017 | F67: 0.018 | G67: Muzinich & Co | H67: United States | I67: Thomson Reuter Eikon, 'Bondholdings: Brf Sa, Itajai, Sc - XS1242327168, 31-03-2020', viewed in May 2020. | J67: Thomson EMAXX | K67: =INDEX(' Scope'!E:E,MATCH(A67,' Scope'!A:A,0)) -> Meat
A68: BRF | B68: Bondholding | C68: 2020-03-31 | E68: 5.5 | F68: 0.011 | G68: Muzinich & Co | H68: United States | I68: Thomson Reuter Eikon, 'Bondholdings: Brf - Brasil Foods Sa, Itajai, Sc - USP1905CAD22, 31-03-2020', viewed in May 2020. | J68: Thomson EMAXX | K68: =INDEX(' Scope'!E:E,MATCH(A68,' Scope'!A:A,0)) -> Meat
A69: BRF | B69: Bondholding | C69: 2020-03-31 | E69: 3.755 | F69: 0.0068 | G69: Muzinich & Co | H69: United States | I69: Thomson Reuter Eikon, 'Bondholdings: Brf Sa, Itajai, Sc - XS1242327168, 31-03-2020', viewed in May 2020. | J69: Thomson EMAXX | K69: =INDEX(' Scope'!E:E,MATCH(A69,' Scope'!A:A,0)) -> Meat
A70: BRF | B70: Bondholding | C70: 2020-03-31 | E70: 0.954 | F70: 0.0017 | G70: Muzinich & Co | H70: United States | I70: Thomson Reuter Eikon, 'Bondholdings: Brf Sa, Itajai, Sc - XS1242327168, 31-03-2020', viewed in May 2020. | J70: Thomson EMAXX | K70: =INDEX(' Scope'!E:E,MATCH(A70,' Scope'!A:A,0)) -> Meat
A71: BRF | B71: Bondholding | C71: 2019-12-31 | E71: 0.2 | F71: 0.0004 | G71: Muzinich & Co | H71: United States | I71: Thomson Reuter Eikon, 'Bondholdings: Brf - Brasil Foods Sa, Itajai, Sc - USP1905CAD22, 31-12-2019', viewed in May 2020. | J71: Thomson EMAXX | K71: =INDEX(' Scope'!E:E,MATCH(A71,' Scope'!A:A,0)) -> Meat
A72: BRF | B72: Bondholding | C72: 2020-03-31 | E72: 4 | F72: 0.0054 | G72: Apollo Global Management | H72: United States | I72: Thomson Reuter Eikon, 'Bondholdings: Brf Brasil Foods S A - US10552TAF49, 31-03-2020', viewed in May 2020. | J72: Thomson EMAXX | K72: =INDEX(' Scope'!E:E,MATCH(A72,' Scope'!A:A,0)) -> Meat
A73: BRF | B73: Bondholding | C73: 2018-02-28 | E73: 0.137 | F73: 0.0002 | G73: Zürcher Kantonalbank | H73: Switzerland | I73: Thomson Reuter Eikon, 'Bondholdings: Brf Sa, Itajai, Sc - XS1242327168, 28-02-2018', viewed in May 2020. | J73: Thomson EMAXX | K73: =INDEX(' Scope'!E:E,MATCH(A73,' Scope'!A:A,0)) -> Meat
A74: BRF | B74: Bondholding | C74: 2019-02-28 | E74: 0.821 | F74: 0.0016 | G74: SHIP Capital Partners | H74: United States | I74: Thomson Reuter Eikon, 'Bondholdings: Brf Gmbh - US05583BAA70, 28-02-2019', viewed in May 2020. | J74: Thomson EMAXX | K74: =INDEX(' Scope'!E:E,MATCH(A74,' Scope'!A:A,0)) -> Meat
A75: BRF | B75: Bondholding | C75: 2019-02-28 | E75: 0.125 | F75: 0.0002 | G75: SHIP Capital Partners | H75: United States | I75: Thomson Reuter Eikon, 'Bondholdings: Brf Gmbh - US05583BAA70, 28-02-2019', viewed in May 2020. | J75: Thomson EMAXX | K75: =INDEX(' Scope'!E:E,MATCH(A75,' Scope'!A:A,0)) -> Meat
A76: BRF | B76: Bondholding | C76: 2020-03-31 | E76: 0.035 | F76: 0.0001 | G76: SHIP Capital Partners | H76: United States | I76: Thomson Reuter Eikon, 'Bondholdings: Brf Gmbh - US05583BAA70, 31-03-2020', viewed in May 2020. | J76: Thomson EMAXX | K76: =INDEX(' Scope'!E:E,MATCH(A76,' Scope'!A:A,0)) -> Meat
A77: BRF | B77: Bondholding | C77: 2020-03-31 | E77: 1.635 | F77: 0.0029 | G77: Raiffeisen Bank International | H77: Austria | I77: Thomson Reuter Eikon, 'Bondholdings: Brf Sa, Itajai, Sc - XS1242327168, 31-03-2020', viewed in May 2020. | J77: Thomson EMAXX | K77: =INDEX(' Scope'!E:E,MATCH(A77,' Scope'!A:A,0)) -> Meat
A78: BRF | B78: Bondholding | C78: 2020-03-31 | E78: 0.719 | F78: 0.0013 | G78: Raiffeisen Bank International | H78: Austria | I78: Thomson Reuter Eikon, 'Bondholdings: Brf Sa, Itajai, Sc - XS1242327168, 31-03-2020', viewed in May 2020. | J78: Thomson EMAXX | K78: =INDEX(' Scope'!E:E,MATCH(A78,' Scope'!A:A,0)) -> Meat
A79: BRF | B79: Bondholding | C79: 2019-10-31 | E79: 0.6 | F79: 0.0011 | G79: Raiffeisen Bank International | H79: Austria | I79: Thomson Reuter Eikon, 'Bondholdings: Brf Sa, Itajai, Sc - XS1242327168, 31-10-2019', viewed in May 2020. | J79: Thomson EMAXX | K79: =INDEX(' Scope'!E:E,MATCH(A79,' Scope'!A:A,0)) -> Meat
A80: BRF | B80: Bondholding | C80: 2020-03-31 | E80: 1.4 | F80: 0.0019 | G80: UBS | H80: Switzerland | I80: Thomson Reuter Eikon, 'Bondholdings: Brf Brasil Foods S A - US10552TAF49, 31-03-2020', viewed in May 2020. | J80: Thomson EMAXX | K80: =INDEX(' Scope'!E:E,MATCH(A80,' Scope'!A:A,0)) -> Meat
A81: BRF | B81: Bondholding | C81: 2020-03-31 | E81: 1.1 | F81: 0.0022 | G81: UBS | H81: Switzerland | I81: Thomson Reuter Eikon, 'Bondholdings: Brf Gmbh - US05583BAA70, 31-03-2020', viewed in May 2020. | J81: Thomson EMAXX | K81: =INDEX(' Scope'!E:E,MATCH(A81,' Scope'!A:A,0)) -> Meat
A82: BRF | B82: Bondholding | C82: 2020-03-31 | E82: 3.8 | F82: 0.032 | G82: Guggenheim Capital | H82: United States | I82: Thomson Reuter Eikon, 'Bondholdings: Brf Brasil Foods S A - US10552TAA51, 31-03-2020', viewed in May 2020. | J82: Thomson EMAXX | K82: =INDEX(' Scope'!E:E,MATCH(A82,' Scope'!A:A,0)) -> Meat
A83: BRF | B83: Bondholding | C83: 2019-12-31 | E83: 2.18 | F83: 0.0039 | G83: Deka Group | H83: Germany | I83: Thomson Reuter Eikon, 'Bondholdings: Brf Sa, Itajai, Sc - XS1242327168, 31-12-2019', viewed in May 2020. | J83: Thomson EMAXX | K83: =INDEX(' Scope'!E:E,MATCH(A83,' Scope'!A:A,0)) -> Meat
A84: BRF | B84: Bondholding | C84: 2018-12-31 | E84: 1.649 | F84: 0.003 | G84: Deka Group | H84: Germany | I84: Thomson Reuter Eikon, 'Bondholdings: Brf Sa, Itajai, Sc - XS1242327168, 31-12-2018', viewed in May 2020. | J84: Thomson EMAXX | K84: =INDEX(' Scope'!E:E,MATCH(A84,' Scope'!A:A,0)) -> Meat
A85: BRF | B85: Bondholding | C85: 2018-12-31 | E85: 16.914 | F85: 0.0339 | G85: Schroders | H85: United Kingdom | I85: Thomson Reuter Eikon, 'Bondholdings: Brf - Brasil Foods Sa, Itajai, Sc - USP1905CAD22, 31-12-2018', viewed in May 2020. | J85: Thomson EMAXX | K85: =INDEX(' Scope'!E:E,MATCH(A85,' Scope'!A:A,0)) -> Meat
A86: BRF | B86: Bondholding | C86: 2017-09-30 | E86: 0.327 | F86: 0.0006 | G86: Pictet | H86: Switzerland | I86: Thomson Reuter Eikon, 'Bondholdings: Brf Sa, Itajai, Sc - XS1242327168, 30-09-2017', viewed in May 2020. | J86: Thomson EMAXX | K86: =INDEX(' Scope'!E:E,MATCH(A86,' Scope'!A:A,0)) -> Meat
A87: BRF | B87: Bondholding | C87: 2019-12-31 | E87: 4.36 | F87: 0.0078 | G87: DZ Bank | H87: Germany | I87: Thomson Reuter Eikon, 'Bondholdings: Brf Sa, Itajai, Sc - XS1242327168, 31-12-2019', viewed in May 2020. | J87: Thomson EMAXX | K87: =INDEX(' Scope'!E:E,MATCH(A87,' Scope'!A:A,0)) -> Meat
A88: BRF | B88: Bondholding | C88: 2019-03-31 | E88: 0.3 | F88: 0.0006 | G88: DZ Bank | H88: Germany | I88: Thomson Reuter Eikon, 'Bondholdings: Brf - Brasil Foods Sa, Itajai, Sc - USP1905CAD22, 31-03-2019', viewed in May 2020. | J88: Thomson EMAXX | K88: =INDEX(' Scope'!E:E,MATCH(A88,' Scope'!A:A,0)) -> Meat
A89: BRF | B89: Bondholding | C89: 2019-06-30 | E89: 1.498 | F89: 0.002 | G89: LarrainVial | H89: Chile | I89: Thomson Reuter Eikon, 'Bondholdings: Brf Brasil Foods S A - US10552TAF49, 30-06-2019', viewed in May 2020. | J89: Thomson EMAXX | K89: =INDEX(' Scope'!E:E,MATCH(A89,' Scope'!A:A,0)) -> Meat
A90: BRF | B90: Bondholding | C90: 2019-06-30 | E90: 0.5 | F90: 0.001 | G90: LarrainVial | H90: Chile | I90: Thomson Reuter Eikon, 'Bondholdings: Brf Gmbh - US05583BAA70, 30-06-2019', viewed in May 2020. | J90: Thomson EMAXX | K90: =INDEX(' Scope'!E:E,MATCH(A90,' Scope'!A:A,0)) -> Meat
A91: BRF | B91: Bondholding | C91: 2020-03-31 | E91: 0.755 | F91: 0.001 | G91: Athene Holding | H91: Bermuda | I91: Thomson Reuter Eikon, 'Bondholdings: Brf Brasil Foods S A - US10552TAF49, 31-03-2020', viewed in May 2020. | J91: Thomson EMAXX | K91: =INDEX(' Scope'!E:E,MATCH(A91,' Scope'!A:A,0)) -> Meat
A92: BRF | B92: Bondholding | C92: 2020-01-31 | E92: 0.218 | F92: 0.0004 | G92: UBS | H92: Switzerland | I92: Thomson Reuter Eikon, 'Bondholdings: Brf Sa, Itajai, Sc - XS1242327168, 31-01-2020', viewed in May 2020. | J92: Thomson EMAXX | K92: =INDEX(' Scope'!E:E,MATCH(A92,' Scope'!A:A,0)) -> Meat
A93: BRF | B93: Bondholding | C93: 2020-03-31 | E93: 0.7 | F93: 0.0014 | G93: Intesa Sanpaolo | H93: Italy | I93: Thomson Reuter Eikon, 'Bondholdings: Brf - Brasil Foods Sa, Itajai, Sc - USP1905CAD22, 31-03-2020', viewed in May 2020. | J93: Thomson EMAXX | K93: =INDEX(' Scope'!E:E,MATCH(A93,' Scope'!A:A,0)) -> Meat
A94: BRF | B94: Bondholding | C94: 2018-12-31 | E94: 8.318 | F94: 0.0167 | G94: Hua Nan Financial | H94: Taiwan | I94: Thomson Reuter Eikon, 'Bondholdings: Brf - Brasil Foods Sa, Itajai, Sc - USP1905CAD22, 31-12-2018', viewed in May 2020. | J94: Thomson EMAXX | K94: =INDEX(' Scope'!E:E,MATCH(A94,' Scope'!A:A,0)) -> Meat
A95: BRF | B95: Bondholding | C95: 2018-12-31 | E95: 0.005 | F95: 0 | G95: Lombard Odier | H95: Switzerland | I95: Thomson Reuter Eikon, 'Bondholdings: Brf Sa, Itajai, Sc - XS1242327168, 31-12-2018', viewed in May 2020. | J95: Thomson EMAXX | K95: =INDEX(' Scope'!E:E,MATCH(A95,' Scope'!A:A,0)) -> Meat
A96: BRF | B96: Bondholding | C96: 2018-12-31 | E96: 0.004 | F96: 0 | G96: Lombard Odier | H96: Switzerland | I96: Thomson Reuter Eikon, 'Bondholdings: Brf - Brasil Foods Sa, Itajai, Sc - USP1905CAD22, 31-12-2018', viewed in May 2020. | J96: Thomson EMAXX | K96: =INDEX(' Scope'!E:E,MATCH(A96,' Scope'!A:A,0)) -> Meat
A97: BRF | B97: Bondholding | C97: 2020-04-30 | E97: 0.35 | F97: 0.0005 | G97: Van Eck Global | H97: United States | I97: Thomson Reuter Eikon, 'Bondholdings: Brf Brasil Foods S A - US10552TAF49, 30-04-2020', viewed in May 2020. | J97: Thomson EMAXX | K97: =INDEX(' Scope'!E:E,MATCH(A97,' Scope'!A:A,0)) -> Meat
A98: BRF | B98: Bondholding | C98: 2020-04-30 | E98: 0.2 | F98: 0.0004 | G98: Van Eck Global | H98: United States | I98: Thomson Reuter Eikon, 'Bondholdings: Brf Gmbh - US05583BAA70, 30-04-2020', viewed in May 2020. | J98: Thomson EMAXX | K98: =INDEX(' Scope'!E:E,MATCH(A98,' Scope'!A:A,0)) -> Meat
A99: BRF | B99: Bondholding | C99: 2020-04-30 | E99: 0.3 | F99: 0.0004 | G99: Van Eck Global | H99: United States | I99: Thomson Reuter Eikon, 'Bondholdings: Brf Brasil Foods S A - US10552TAF49, 30-04-2020', viewed in May 2020. | J99: Thomson EMAXX | K99: =INDEX(' Scope'!E:E,MATCH(A99,' Scope'!A:A,0)) -> Meat
A100: BRF | B100: Bondholding | C100: 2020-03-31 | E100: 0.05 | F100: 0.0001 | G100: Van Eck Global | H100: United States | I100: Thomson Reuter Eikon, 'Bondholdings: Brf Brasil Foods S A - US10552TAF49, 31-03-2020', viewed in May 2020. | J100: Thomson EMAXX | K100: =INDEX(' Scope'!E:E,MATCH(A100,' Scope'!A:A,0)) -> Meat
A101: BRF | B101: Bondholding | C101: 2020-03-31 | E101: 6.1 | F101: 0.0122 | G101: Brandywine Global Investment Management | H101: United States | I101: Thomson Reuter Eikon, 'Bondholdings: Brf - Brasil Foods Sa, Itajai, Sc - USP1905CAD22, 31-03-2020', viewed in May 2020. | J101: Thomson EMAXX | K101: =INDEX(' Scope'!E:E,MATCH(A101,' Scope'!A:A,0)) -> Meat
A102: BRF | B102: Bondholding | C102: 2020-03-31 | E102: 0.2 | F102: 0.0004 | G102: Brandywine Global Investment Management | H102: United States | I102: Thomson Reuter Eikon, 'Bondholdings: Brf - Brasil Foods Sa, Itajai, Sc - USP1905CAD22, 31-03-2020', viewed in May 2020. | J102: Thomson EMAXX | K102: =INDEX(' Scope'!E:E,MATCH(A102,' Scope'!A:A,0)) -> Meat
A103: BRF | B103: Bondholding | C103: 2020-04-30 | E103: 0.673 | F103: 0.0012 | G103: BNP Paribas | H103: France | I103: Thomson Reuter Eikon, 'Bondholdings: Brf Sa, Itajai, Sc - XS1242327168, 30-04-2020', viewed in May 2020. | J103: Thomson EMAXX | K103: =INDEX(' Scope'!E:E,MATCH(A103,' Scope'!A:A,0)) -> Meat
A104: BRF | B104: Bondholding | C104: 2017-07-31 | E104: 0.327 | F104: 0.0006 | G104: Vontobel | H104: Switzerland | I104: Thomson Reuter Eikon, 'Bondholdings: Brf Sa, Itajai, Sc - XS1242327168, 31-07-2017', viewed in May 2020. | J104: Thomson EMAXX | K104: =INDEX(' Scope'!E:E,MATCH(A104,' Scope'!A:A,0)) -> Meat
A105: BRF | B105: Bondholding | C105: 2019-12-31 | E105: 0.545 | F105: 0.001 | G105: Deka Group | H105: Germany | I105: Thomson Reuter Eikon, 'Bondholdings: Brf Sa, Itajai, Sc - XS1242327168, 31-12-2019', viewed in May 2020. | J105: Thomson EMAXX | K105: =INDEX(' Scope'!E:E,MATCH(A105,' Scope'!A:A,0)) -> Meat
A106: BRF | B106: Bondholding | C106: 2018-12-31 | E106: 0.901 | F106: 0.0018 | G106: Fuh Hwa Securities Investment Trust | H106: Taiwan | I106: Thomson Reuter Eikon, 'Bondholdings: Brf - Brasil Foods Sa, Itajai, Sc - USP1905CAD22, 31-12-2018', viewed in May 2020. | J106: Thomson EMAXX | K106: =INDEX(' Scope'!E:E,MATCH(A106,' Scope'!A:A,0)) -> Meat
A107: BRF | B107: Bondholding | C107: 2018-12-31 | E107: 0.451 | F107: 0.0009 | G107: Fuh Hwa Securities Investment Trust | H107: Taiwan | I107: Thomson Reuter Eikon, 'Bondholdings: Brf - Brasil Foods Sa, Itajai, Sc - USP1905CAD22, 31-12-2018', viewed in May 2020. | J107: Thomson EMAXX | K107: =INDEX(' Scope'!E:E,MATCH(A107,' Scope'!A:A,0)) -> Meat
A108: BRF | B108: Bondholding | C108: 2020-02-29 | E108: 0.109 | F108: 0.0002 | G108: Montagu Private Equity | H108: United Kingdom | I108: Thomson Reuter Eikon, 'Bondholdings: Brf Sa, Itajai, Sc - XS1242327168, 29-02-2020', viewed in May 2020. | J108: Thomson EMAXX | K108: =INDEX(' Scope'!E:E,MATCH(A108,' Scope'!A:A,0)) -> Meat
A109: BRF | B109: Bondholding | C109: 2019-12-31 | E109: 1.308 | F109: 0.0024 | G109: Banque Degroof Petercam | H109: Belgium | I109: Thomson Reuter Eikon, 'Bondholdings: Brf Sa, Itajai, Sc - XS1242327168, 31-12-2019', viewed in May 2020. | J109: Thomson EMAXX | K109: =INDEX(' Scope'!E:E,MATCH(A109,' Scope'!A:A,0)) -> Meat
A110: BRF | B110: Bondholding | C110: 2020-02-29 | E110: 1.308 | F110: 0.0024 | G110: Crédit Agricole | H110: France | I110: Thomson Reuter Eikon, 'Bondholdings: Brf Sa, Itajai, Sc - XS1242327168, 29-02-2020', viewed in May 2020. | J110: Thomson EMAXX | K110: =INDEX(' Scope'!E:E,MATCH(A110,' Scope'!A:A,0)) -> Meat
A111: BRF | B111: Bondholding | C111: 2020-03-31 | E111: 0.545 | F111: 0.001 | G111: Alm. Brand Invest | H111: Denmark | I111: Thomson Reuter Eikon, 'Bondholdings: Brf Sa, Itajai, Sc - XS1242327168, 31-03-2020', viewed in May 2020. | J111: Thomson EMAXX | K111: =INDEX(' Scope'!E:E,MATCH(A111,' Scope'!A:A,0)) -> Meat
A112: BRF | B112: Bondholding | C112: 2019-12-31 | E112: 0.4 | F112: 0.0034 | G112: Anaxis Asset Management | H112: France | I112: Thomson Reuter Eikon, 'Bondholdings: Brf - Brasil Foods Sa, Itajai, Sc - USP1905CAA82, 31-12-2019', viewed in May 2020. | J112: Thomson EMAXX | K112: =INDEX(' Scope'!E:E,MATCH(A112,' Scope'!A:A,0)) -> Meat
A113: BRF | B113: Bondholding | C113: 2020-03-31 | E113: 0.78 | F113: 0.0066 | G113: Legg Mason | H113: United States | I113: Thomson Reuter Eikon, 'Bondholdings: Brf - Brasil Foods Sa, Itajai, Sc - USP1905CAA82, 31-03-2020', viewed in May 2020. | J113: Thomson EMAXX | K113: =INDEX(' Scope'!E:E,MATCH(A113,' Scope'!A:A,0)) -> Meat
A114: BRF | B114: Bondholding | C114: 2019-04-30 | E114: 0.218 | F114: 0.0004 | G114: Banor Capital | H114: United Kingdom | I114: Thomson Reuter Eikon, 'Bondholdings: Brf Sa, Itajai, Sc - XS1242327168, 30-04-2019', viewed in May 2020. | J114: Thomson EMAXX | K114: =INDEX(' Scope'!E:E,MATCH(A114,' Scope'!A:A,0)) -> Meat
A115: BRF | B115: Bondholding | C115: 2020-02-29 | E115: 0.382 | F115: 0.0007 | G115: AMF Capital | H115: Germany | I115: Thomson Reuter Eikon, 'Bondholdings: Brf Sa, Itajai, Sc - XS1242327168, 29-02-2020', viewed in May 2020. | J115: Thomson EMAXX | K115: =INDEX(' Scope'!E:E,MATCH(A115,' Scope'!A:A,0)) -> Meat
A116: BRF | B116: Bondholding | C116: 2019-06-30 | E116: 0.545 | F116: 0.001 | G116: OpenCapital | H116: Switzerland | I116: Thomson Reuter Eikon, 'Bondholdings: Brf Sa, Itajai, Sc - XS1242327168, 30-06-2019', viewed in May 2020. | J116: Thomson EMAXX | K116: =INDEX(' Scope'!E:E,MATCH(A116,' Scope'!A:A,0)) -> Meat
A117: BRF | B117: Bondholding | C117: 2020-03-31 | E117: 0.545 | F117: 0.001 | G117: Bellevue Group | H117: Switzerland | I117: Thomson Reuter Eikon, 'Bondholdings: Brf Sa, Itajai, Sc - XS1242327168, 31-03-2020', viewed in May 2020. | J117: Thomson EMAXX | K117: =INDEX(' Scope'!E:E,MATCH(A117,' Scope'!A:A,0)) -> Meat
A118: BRF | B118: Bondholding | C118: 2018-12-31 | E118: 0.2 | F118: 0.0004 | G118: CBH Compagnie Bancaire Helvétique | H118: Switzerland | I118: Thomson Reuter Eikon, 'Bondholdings: Brf - Brasil Foods Sa, Itajai, Sc - USP1905CAD22, 31-12-2018', viewed in May 2020. | J118: Thomson EMAXX | K118: =INDEX(' Scope'!E:E,MATCH(A118,' Scope'!A:A,0)) -> Meat
A119: BRF | B119: Bondholding | C119: 2018-04-30 | E119: 0.2 | F119: 0.0004 | G119: CBH Compagnie Bancaire Helvétique | H119: Switzerland | I119: Thomson Reuter Eikon, 'Bondholdings: Brf - Brasil Foods Sa, Itajai, Sc - USP1905CAD22, 30-04-2018', viewed in May 2020. | J119: Thomson EMAXX | K119: =INDEX(' Scope'!E:E,MATCH(A119,' Scope'!A:A,0)) -> Meat
A120: BRF | B120: Bondholding | C120: 2018-12-31 | E120: 0.109 | F120: 0.0002 | G120: CBH Compagnie Bancaire Helvétique | H120: Switzerland | I120: Thomson Reuter Eikon, 'Bondholdings: Brf Sa, Itajai, Sc - XS1242327168, 31-12-2018', viewed in May 2020. | J120: Thomson EMAXX | K120: =INDEX(' Scope'!E:E,MATCH(A120,' Scope'!A:A,0)) -> Meat
A121: BRF | B121: Bondholding | C121: 2020-03-31 | E121: 0.491 | F121: 0.0009 | G121: Assicurazioni Generali | H121: Italy | I121: Thomson Reuter Eikon, 'Bondholdings: Brf Sa, Itajai, Sc - XS1242327168, 31-03-2020', viewed in May 2020. | J121: Thomson EMAXX | K121: =INDEX(' Scope'!E:E,MATCH(A121,' Scope'!A:A,0)) -> Meat
A122: BRF | B122: Bondholding | C122: 2020-04-30 | E122: 0.26 | F122: 0.0005 | G122: Legg Mason | H122: United States | I122: Thomson Reuter Eikon, 'Bondholdings: Brf - Brasil Foods Sa, Itajai, Sc - USP1905CAD22, 30-04-2020', viewed in May 2020. | J122: Thomson EMAXX | K122: =INDEX(' Scope'!E:E,MATCH(A122,' Scope'!A:A,0)) -> Meat
A123: BRF | B123: Bondholding | C123: 2019-08-31 | E123: 0.327 | F123: 0.0006 | G123: Merchbanc | H123: Spain | I123: Thomson Reuter Eikon, 'Bondholdings: Brf Sa, Itajai, Sc - XS1242327168, 31-08-2019', viewed in May 2020. | J123: Thomson EMAXX | K123: =INDEX(' Scope'!E:E,MATCH(A123,' Scope'!A:A,0)) -> Meat
A124: BRF | B124: Bondholding | C124: 2019-06-30 | E124: 0.327 | F124: 0.0006 | G124: DZ Bank | H124: Germany | I124: Thomson Reuter Eikon, 'Bondholdings: Brf Sa, Itajai, Sc - XS1242327168, 30-06-2019', viewed in May 2020. | J124: Thomson EMAXX | K124: =INDEX(' Scope'!E:E,MATCH(A124,' Scope'!A:A,0)) -> Meat
A125: BRF | B125: Bondholding | C125: 2020-03-31 | E125: 0.25 | F125: 0.0005 | G125: Optimum Investments | H125: Liechtenstein | I125: Thomson Reuter Eikon, 'Bondholdings: Brf - Brasil Foods Sa, Itajai, Sc - USP1905CAD22, 31-03-2020', viewed in May 2020. | J125: Thomson EMAXX | K125: =INDEX(' Scope'!E:E,MATCH(A125,' Scope'!A:A,0)) -> Meat
A126: BRF | B126: Bondholding | C126: 2017-10-31 | E126: 0.218 | F126: 0.0004 | G126: Oddo & Cie | H126: France | I126: Thomson Reuter Eikon, 'Bondholdings: Brf Sa, Itajai, Sc - XS1242327168, 31-10-2017', viewed in May 2020. | J126: Thomson EMAXX | K126: =INDEX(' Scope'!E:E,MATCH(A126,' Scope'!A:A,0)) -> Meat
A127: BRF | B127: Bondholding | C127: 2018-08-31 | E127: 0.164 | F127: 0.0003 | G127: Compagnie de l'Occident pour la Finance et l'Industrie | H127: Luxembourg | I127: Thomson Reuter Eikon, 'Bondholdings: Brf Sa, Itajai, Sc - XS1242327168, 31-08-2018', viewed in May 2020. | J127: Thomson EMAXX | K127: =INDEX(' Scope'!E:E,MATCH(A127,' Scope'!A:A,0)) -> Meat
A128: BRF | B128: Bondholding | C128: 2019-12-31 | E128: 0.003 | F128: 0.0001 | G128: JGP | H128: Brazil | I128: Thomson Reuter Eikon, 'Bondholdings: Brf S.A. - BRBRFSDBS034, 31-12-2019', viewed in May 2020. | J128: Thomson EMAXX | K128: =INDEX(' Scope'!E:E,MATCH(A128,' Scope'!A:A,0)) -> Meat
A129: BRF | B129: Bondholding | C129: 2019-12-31 | E129: 0.001 | F129: 0 | G129: JGP | H129: Brazil | I129: Thomson Reuter Eikon, 'Bondholdings: Brf S.A. - BRBRFSDBS000, 31-12-2019', viewed in May 2020. | J129: Thomson EMAXX | K129: =INDEX(' Scope'!E:E,MATCH(A129,' Scope'!A:A,0)) -> Meat
A130: BRF | B130: Bondholding | C130: 2020-03-31 | E130: 0.001 | F130: 0 | G130: JGP | H130: Brazil | I130: Thomson Reuter Eikon, 'Bondholdings: Brf S.A. - BRBRFSDBS000, 31-03-2020', viewed in May 2020. | J130: Thomson EMAXX | K130: =INDEX(' Scope'!E:E,MATCH(A130,' Scope'!A:A,0)) -> Meat
A131: BRF | B131: Bondholding | C131: 2020-03-31 | E131: 0.001 | F131: 0 | G131: JGP | H131: Brazil | I131: Thomson Reuter Eikon, 'Bondholdings: Brf S.A. - BRBRFSDBS034, 31-03-2020', viewed in May 2020. | J131: Thomson EMAXX | K131: =INDEX(' Scope'!E:E,MATCH(A131,' Scope'!A:A,0)) -> Meat
A132: BRF | B132: Bondholding | C132: 2019-12-31 | E132: 0.002 | F132: 0 | G132: JGP | H132: Brazil | I132: Thomson Reuter Eikon, 'Bondholdings: Brf S.A. - BRBRFSDBS034, 31-12-2019', viewed in May 2020. | J132: Thomson EMAXX | K132: =INDEX(' Scope'!E:E,MATCH(A132,' Scope'!A:A,0)) -> Meat
A133: BRF | B133: Bondholding | C133: 2019-12-31 | E133: 0.001 | F133: 0 | G133: JGP | H133: Brazil | I133: Thomson Reuter Eikon, 'Bondholdings: Brf S.A. - BRBRFSDBS000, 31-12-2019', viewed in May 2020. | J133: Thomson EMAXX | K133: =INDEX(' Scope'!E:E,MATCH(A133,' Scope'!A:A,0)) -> Meat
A134: BRF | B134: Bondholding | C134: 2020-01-31 | E134: 0.001 | F134: 0 | G134: JGP | H134: Brazil | I134: Thomson Reuter Eikon, 'Bondholdings: Brf S.A. - BRBRFSDBS034, 31-01-2020', viewed in May 2020. | J134: Thomson EMAXX | K134: =INDEX(' Scope'!E:E,MATCH(A134,' Scope'!A:A,0)) -> Meat
A135: BRF | B135: Bondholding | C135: 2020-01-31 | E135: 0.001 | F135: 0 | G135: JGP | H135: Brazil | I135: Thomson Reuter Eikon, 'Bondholdings: Brf S.A. - BRBRFSDBS000, 31-01-2020', viewed in May 2020. | J135: Thomson EMAXX | K135: =INDEX(' Scope'!E:E,MATCH(A135,' Scope'!A:A,0)) -> Meat
A136: BRF | B136: Bondholding | C136: 2019-12-31 | E136: 0.001 | F136: 0 | G136: JGP | H136: Brazil | I136: Thomson Reuter Eikon, 'Bondholdings: Brf S.A. - BRBRFSDBS034, 31-12-2019', viewed in May 2020. | J136: Thomson EMAXX | K136: =INDEX(' Scope'!E:E,MATCH(A136,' Scope'!A:A,0)) -> Meat
A137: BRF | B137: Bondholding | C137: 2019-12-31 | E137: 0.001 | F137: 0 | G137: JGP | H137: Brazil | I137: Thomson Reuter Eikon, 'Bondholdings: Brf S.A. - BRBRFSDBS000, 31-12-2019', viewed in May 2020. | J137: Thomson EMAXX | K137: =INDEX(' Scope'!E:E,MATCH(A137,' Scope'!A:A,0)) -> Meat
A138: BRF | B138: Bondholding | C138: 2020-03-31 | E138: 0.001 | F138: 0 | G138: JGP | H138: Brazil | I138: Thomson Reuter Eikon, 'Bondholdings: Brf S.A. - BRBRFSDBS034, 31-03-2020', viewed in May 2020. | J138: Thomson EMAXX | K138: =INDEX(' Scope'!E:E,MATCH(A138,' Scope'!A:A,0)) -> Meat
A139: BRF | B139: Bondholding | C139: 2020-03-31 | E139: 0.001 | F139: 0 | G139: JGP | H139: Brazil | I139: Thomson Reuter Eikon, 'Bondholdings: Brf S.A. - BRBRFSDBS000, 31-03-2020', viewed in May 2020. | J139: Thomson EMAXX | K139: =INDEX(' Scope'!E:E,MATCH(A139,' Scope'!A:A,0)) -> Meat
A140: BRF | B140: Bondholding | C140: 2019-12-31 | E140: 0.001 | F140: 0 | G140: JGP | H140: Brazil | I140: Thomson Reuter Eikon, 'Bondholdings: Brf S.A. - BRBRFSDBS034, 31-12-2019', viewed in May 2020. | J140: Thomson EMAXX | K140: =INDEX(' Scope'!E:E,MATCH(A140,' Scope'!A:A,0)) -> Meat
A141: BRF | B141: Bondholding | C141: 2019-12-31 | E141: 0.001 | F141: 0 | G141: JGP | H141: Brazil | I141: Thomson Reuter Eikon, 'Bondholdings: Brf S.A. - BRBRFSDBS000, 31-12-2019', viewed in May 2020. | J141: Thomson EMAXX | K141: =INDEX(' Scope'!E:E,MATCH(A141,' Scope'!A:A,0)) -> Meat
A142: BRF | B142: Bondholding | C142: 2020-03-31 | E142: 0.001 | F142: 0 | G142: JGP | H142: Brazil | I142: Thomson Reuter Eikon, 'Bondholdings: Brf S.A. - BRBRFSDBS034, 31-03-2020', viewed in May 2020. | J142: Thomson EMAXX | K142: =INDEX(' Scope'!E:E,MATCH(A142,' Scope'!A:A,0)) -> Meat
A143: BRF | B143: Bondholding | C143: 2020-03-31 | E143: 0.001 | F143: 0 | G143: JGP | H143: Brazil | I143: Thomson Reuter Eikon, 'Bondholdings: Brf S.A. - BRBRFSDBS034, 31-03-2020', viewed in May 2020. | J143: Thomson EMAXX | K143: =INDEX(' Scope'!E:E,MATCH(A143,' Scope'!A:A,0)) -> Meat
A144: BRF | B144: Bondholding | C144: 2020-03-31 | E144: 0.001 | F144: 0 | G144: JGP | H144: Brazil | I144: Thomson Reuter Eikon, 'Bondholdings: Brf S.A. - BRBRFSDBS034, 31-03-2020', viewed in May 2020. | J144: Thomson EMAXX | K144: =INDEX(' Scope'!E:E,MATCH(A144,' Scope'!A:A,0)) -> Meat
A145: BRF | B145: Bondholding | C145: 2020-02-29 | E145: 0.001 | F145: 0 | G145: JGP | H145: Brazil | I145: Thomson Reuter Eikon, 'Bondholdings: Brf S.A. - BRBRFSDBS034, 29-02-2020', viewed in May 2020. | J145: Thomson EMAXX | K145: =INDEX(' Scope'!E:E,MATCH(A145,' Scope'!A:A,0)) -> Meat
A146: BRF | B146: Bondholding | C146: 2020-03-31 | E146: 0.001 | F146: 0 | G146: JGP | H146: Brazil | I146: Thomson Reuter Eikon, 'Bondholdings: Brf S.A. - BRBRFSDBS034, 31-03-2020', viewed in May 2020. | J146: Thomson EMAXX | K146: =INDEX(' Scope'!E:E,MATCH(A146,' Scope'!A:A,0)) -> Meat
A147: BRF | B147: Bondholding | C147: 2020-03-31 | E147: 0.001 | F147: 0 | G147: JGP | H147: Brazil | I147: Thomson Reuter Eikon, 'Bondholdings: Brf S.A. - BRBRFSDBS034, 31-03-2020', viewed in May 2020. | J147: Thomson EMAXX | K147: =INDEX(' Scope'!E:E,MATCH(A147,' Scope'!A:A,0)) -> Meat
A148: BRF | B148: Bondholding | C148: 2020-03-31 | E148: 0.001 | F148: 0 | G148: JGP | H148: Brazil | I148: Thomson Reuter Eikon, 'Bondholdings: Brf S.A. - BRBRFSDBS034, 31-03-2020', viewed in May 2020. | J148: Thomson EMAXX | K148: =INDEX(' Scope'!E:E,MATCH(A148,' Scope'!A:A,0)) -> Meat
A149: BRF | B149: Bondholding | C149: 2020-03-31 | E149: 0.001 | F149: 0 | G149: JGP | H149: Brazil | I149: Thomson Reuter Eikon, 'Bondholdings: Brf S.A. - BRBRFSDBS034, 31-03-2020', viewed in May 2020. | J149: Thomson EMAXX | K149: =INDEX(' Scope'!E:E,MATCH(A149,' Scope'!A:A,0)) -> Meat
A150: BRF | B150: Bondholding | C150: 2020-03-31 | E150: 0.001 | F150: 0 | G150: JGP | H150: Brazil | I150: Thomson Reuter Eikon, 'Bondholdings: Brf S.A. - BRBRFSDBS034, 31-03-2020', viewed in May 2020. | J150: Thomson EMAXX | K150: =INDEX(' Scope'!E:E,MATCH(A150,' Scope'!A:A,0)) -> Meat
A151: BRF | B151: Bondholding | C151: 2020-04-30 | E151: 0.001 | F151: 0 | G151: JGP | H151: Brazil | I151: Thomson Reuter Eikon, 'Bondholdings: Brf S.A. - BRBRFSDBS034, 30-04-2020', viewed in May 2020. | J151: Thomson EMAXX | K151: =INDEX(' Scope'!E:E,MATCH(A151,' Scope'!A:A,0)) -> Meat
A152: BRF | B152: Bondholding | C152: 2019-12-31 | E152: 0.001 | F152: 0 | G152: JGP | H152: Brazil | I152: Thomson Reuter Eikon, 'Bondholdings: Brf S.A. - BRBRFSDBS034, 31-12-2019', viewed in May 2020. | J152: Thomson EMAXX | K152: =INDEX(' Scope'!E:E,MATCH(A152,' Scope'!A:A,0)) -> Meat
A153: BRF | B153: Bondholding | C153: 2020-03-31 | E153: 0.001 | F153: 0 | G153: JGP | H153: Brazil | I153: Thomson Reuter Eikon, 'Bondholdings: Brf S.A. - BRBRFSDBS034, 31-03-2020', viewed in May 2020. | J153: Thomson EMAXX | K153: =INDEX(' Scope'!E:E,MATCH(A153,' Scope'!A:A,0)) -> Meat
A154: BRF | B154: Bondholding | C154: 2020-02-29 | E154: 0.001 | F154: 0 | G154: JGP | H154: Brazil | I154: Thomson Reuter Eikon, 'Bondholdings: Brf S.A. - BRBRFSDBS034, 29-02-2020', viewed in May 2020. | J154: Thomson EMAXX | K154: =INDEX(' Scope'!E:E,MATCH(A154,' Scope'!A:A,0)) -> Meat
A155: BRF | B155: Bondholding | C155: 2020-03-31 | E155: 0.001 | F155: 0 | G155: JGP | H155: Brazil | I155: Thomson Reuter Eikon, 'Bondholdings: Brf S.A. - BRBRFSDBS034, 31-03-2020', viewed in May 2020. | J155: Thomson EMAXX | K155: =INDEX(' Scope'!E:E,MATCH(A155,' Scope'!A:A,0)) -> Meat
A156: BRF | B156: Bondholding | C156: 2020-01-31 | E156: 0.003 | F156: 0 | G156: DLM Invista | H156: Brazil | I156: Thomson Reuter Eikon, 'Bondholdings: Brf S.A. - BRBRFSDBS026, 31-01-2020', viewed in May 2020. | J156: Thomson EMAXX | K156: =INDEX(' Scope'!E:E,MATCH(A156,' Scope'!A:A,0)) -> Meat
A157: BRF | B157: Bondholding | C157: 2020-01-31 | E157: 0.003 | F157: 0 | G157: DLM Invista | H157: Brazil | I157: Thomson Reuter Eikon, 'Bondholdings: Brf S.A. - BRBRFSDBS026, 31-01-2020', viewed in May 2020. | J157: Thomson EMAXX | K157: =INDEX(' Scope'!E:E,MATCH(A157,' Scope'!A:A,0)) -> Meat
A158: BRF | B158: Bondholding | C158: 2020-01-31 | E158: 0.001 | F158: 0 | G158: DLM Invista | H158: Brazil | I158: Thomson Reuter Eikon, 'Bondholdings: Brf S.A. - BRBRFSDBS026, 31-01-2020', viewed in May 2020. | J158: Thomson EMAXX | K158: =INDEX(' Scope'!E:E,MATCH(A158,' Scope'!A:A,0)) -> Meat
A159: BRF | B159: Bondholding | C159: 2019-09-30 | E159: 0.001 | F159: 0 | G159: DLM Invista | H159: Brazil | I159: Thomson Reuter Eikon, 'Bondholdings: Brf S.A. - BRBRFSDBS034, 30-09-2019', viewed in May 2020. | J159: Thomson EMAXX | K159: =INDEX(' Scope'!E:E,MATCH(A159,' Scope'!A:A,0)) -> Meat
A160: BRF | B160: Bondholding | C160: 2019-12-31 | E160: 0.001 | F160: 0 | G160: DLM Invista | H160: Brazil | I160: Thomson Reuter Eikon, 'Bondholdings: Brf S.A. - BRBRFSDBS034, 31-12-2019', viewed in May 2020. | J160: Thomson EMAXX | K160: =INDEX(' Scope'!E:E,MATCH(A160,' Scope'!A:A,0)) -> Meat
A161: BRF | B161: Bondholding | C161: 2020-01-31 | E161: 0.001 | F161: 0 | G161: DLM Invista | H161: Brazil | I161: Thomson Reuter Eikon, 'Bondholdings: Brf S.A. - BRBRFSDBS026, 31-01-2020', viewed in May 2020. | J161: Thomson EMAXX | K161: =INDEX(' Scope'!E:E,MATCH(A161,' Scope'!A:A,0)) -> Meat
A162: BRF | B162: Bondholding | C162: 2020-03-31 | E162: 0.001 | F162: 0 | G162: Banco do Brasil | H162: Brazil | I162: Thomson Reuter Eikon, 'Bondholdings: Brf S.A. - BRBRFSDBS026, 31-03-2020', viewed in May 2020. | J162: Thomson EMAXX | K162: =INDEX(' Scope'!E:E,MATCH(A162,' Scope'!A:A,0)) -> Meat
A163: BRF | B163: Bondholding | C163: 2019-12-31 | E163: 0.002 | F163: 0 | G163: Araújo Fontes | H163: Brazil | I163: Thomson Reuter Eikon, 'Bondholdings: Brf S.A. - BRBRFSDBS026, 31-12-2019', viewed in May 2020. | J163: Thomson EMAXX | K163: =INDEX(' Scope'!E:E,MATCH(A163,' Scope'!A:A,0)) -> Meat
A164: BRF | B164: Bondholding | C164: 2019-12-31 | E164: 0.002 | F164: 0 | G164: Araújo Fontes | H164: Brazil | I164: Thomson Reuter Eikon, 'Bondholdings: Brf S.A. - BRBRFSDBS026, 31-12-2019', viewed in May 2020. | J164: Thomson EMAXX | K164: =INDEX(' Scope'!E:E,MATCH(A164,' Scope'!A:A,0)) -> Meat
A165: BRF | B165: Bondholding | C165: 2020-03-31 | E165: 0.001 | F165: 0 | G165: Araújo Fontes | H165: Brazil | I165: Thomson Reuter Eikon, 'Bondholdings: Brf S.A. - BRBRFSDBS034, 31-03-2020', viewed in May 2020. | J165: Thomson EMAXX | K165: =INDEX(' Scope'!E:E,MATCH(A165,' Scope'!A:A,0)) -> Meat
A166: BRF | B166: Bondholding | C166: 2020-03-31 | E166: 0.001 | F166: 0 | G166: Araújo Fontes | H166: Brazil | I166: Thomson Reuter Eikon, 'Bondholdings: Brf S.A. - BRBRFSDBS034, 31-03-2020', viewed in May 2020. | J166: Thomson EMAXX | K166: =INDEX(' Scope'!E:E,MATCH(A166,' Scope'!A:A,0)) -> Meat
A167: BRF | B167: Bondholding | C167: 2019-12-31 | E167: 0.001 | F167: 0 | G167: Araújo Fontes | H167: Brazil | I167: Thomson Reuter Eikon, 'Bondholdings: Brf S.A. - BRBRFSDBS034, 31-12-2019', viewed in May 2020. | J167: Thomson EMAXX | K167: =INDEX(' Scope'!E:E,MATCH(A167,' Scope'!A:A,0)) -> Meat
A168: BRF | B168: Bondholding | C168: 2020-03-31 | E168: 0.001 | F168: 0 | G168: Votorantim Group | H168: Brazil | I168: Thomson Reuter Eikon, 'Bondholdings: Brf S.A. - BRBRFSDBS000, 31-03-2020', viewed in May 2020. | J168: Thomson EMAXX | K168: =INDEX(' Scope'!E:E,MATCH(A168,' Scope'!A:A,0)) -> Meat
A169: BRF | B169: Bondholding | C169: 2020-03-31 | E169: 0.001 | F169: 0 | G169: Votorantim Group | H169: Brazil | I169: Thomson Reuter Eikon, 'Bondholdings: Brf S.A. - BRBRFSDBS000, 31-03-2020', viewed in May 2020. | J169: Thomson EMAXX | K169: =INDEX(' Scope'!E:E,MATCH(A169,' Scope'!A:A,0)) -> Meat
A170: BRF | B170: Bondholding | C170: 2020-01-31 | E170: 0.001 | F170: 0 | G170: Votorantim Group | H170: Brazil | I170: Thomson Reuter Eikon, 'Bondholdings: Brf S.A. - BRBRFSDBS000, 31-01-2020', viewed in May 2020. | J170: Thomson EMAXX | K170: =INDEX(' Scope'!E:E,MATCH(A170,' Scope'!A:A,0)) -> Meat
A171: BRF | B171: Bondholding | C171: 2020-04-30 | E171: 0.001 | F171: 0 | G171: Votorantim Group | H171: Brazil | I171: Thomson Reuter Eikon, 'Bondholdings: Brf S.A. - BRBRFSDBS000, 30-04-2020', viewed in May 2020. | J171: Thomson EMAXX | K171: =INDEX(' Scope'!E:E,MATCH(A171,' Scope'!A:A,0)) -> Meat
A172: BRF | B172: Bondholding | C172: 2020-03-31 | E172: 0.001 | F172: 0 | G172: Porto Seguro | H172: Brazil | I172: Thomson Reuter Eikon, 'Bondholdings: Brf S.A. - BRBRFSDBS034, 31-03-2020', viewed in May 2020. | J172: Thomson EMAXX | K172: =INDEX(' Scope'!E:E,MATCH(A172,' Scope'!A:A,0)) -> Meat
A173: BRF | B173: Bondholding | C173: 2020-03-31 | E173: 0.001 | F173: 0 | G173: Porto Seguro | H173: Brazil | I173: Thomson Reuter Eikon, 'Bondholdings: Brf S.A. - BRBRFSDBS026, 31-03-2020', viewed in May 2020. | J173: Thomson EMAXX | K173: =INDEX(' Scope'!E:E,MATCH(A173,' Scope'!A:A,0)) -> Meat
A174: BRF | B174: Bondholding | C174: 2020-04-30 | E174: 0.001 | F174: 0 | G174: Porto Seguro | H174: Brazil | I174: Thomson Reuter Eikon, 'Bondholdings: Brf S.A. - BRBRFSDBS026, 30-04-2020', viewed in May 2020. | J174: Thomson EMAXX | K174: =INDEX(' Scope'!E:E,MATCH(A174,' Scope'!A:A,0)) -> Meat
A175: BRF | B175: Bondholding | C175: 2020-03-31 | E175: 0.001 | F175: 0 | G175: Porto Seguro | H175: Brazil | I175: Thomson Reuter Eikon, 'Bondholdings: Brf S.A. - BRBRFSDBS026, 31-03-2020', viewed in May 2020. | J175: Thomson EMAXX | K175: =INDEX(' Scope'!E:E,MATCH(A175,' Scope'!A:A,0)) -> Meat
A176: BRF | B176: Bondholding | C176: 2020-02-29 | E176: 0.001 | F176: 0 | G176: Gama Investimentos | H176: Brazil | I176: Thomson Reuter Eikon, 'Bondholdings: Brf S.A. - BRBRFSDBS026, 29-02-2020', viewed in May 2020. | J176: Thomson EMAXX | K176: =INDEX(' Scope'!E:E,MATCH(A176,' Scope'!A:A,0)) -> Meat
A177: BRF | B177: Bondholding | C177: 2020-02-29 | E177: 0.001 | F177: 0 | G177: Gama Investimentos | H177: Brazil | I177: Thomson Reuter Eikon, 'Bondholdings: Brf S.A. - BRBRFSDBS034, 29-02-2020', viewed in May 2020. | J177: Thomson EMAXX | K177: =INDEX(' Scope'!E:E,MATCH(A177,' Scope'!A:A,0)) -> Meat
A178: BRF | B178: Bondholding | C178: 2020-02-29 | E178: 0.001 | F178: 0 | G178: BTG Pactual | H178: Brazil | I178: Thomson Reuter Eikon, 'Bondholdings: Brf S.A. - BRBRFSDBS026, 29-02-2020', viewed in May 2020. | J178: Thomson EMAXX | K178: =INDEX(' Scope'!E:E,MATCH(A178,' Scope'!A:A,0)) -> Meat
A179: BRF | B179: Bondholding | C179: 2020-03-31 | E179: 0.001 | F179: 0 | G179: GP Investments | H179: Brazil | I179: Thomson Reuter Eikon, 'Bondholdings: Brf S.A. - BRBRFSDBS034, 31-03-2020', viewed in May 2020. | J179: Thomson EMAXX | K179: =INDEX(' Scope'!E:E,MATCH(A179,' Scope'!A:A,0)) -> Meat
A180: BRF | B180: Bondholding | C180: 2020-03-31 | E180: 0.001 | F180: 0 | G180: GP Investments | H180: Brazil | I180: Thomson Reuter Eikon, 'Bondholdings: Brf S.A. - BRBRFSDBS034, 31-03-2020', viewed in May 2020. | J180: Thomson EMAXX | K180: =INDEX(' Scope'!E:E,MATCH(A180,' Scope'!A:A,0)) -> Meat
A181: BRF | B181: Bondholding | C181: 2019-12-31 | E181: 0.001 | F181: 0 | G181: Fator | H181: Brazil | I181: Thomson Reuter Eikon, 'Bondholdings: Brf S.A. - BRBRFSDBS034, 31-12-2019', viewed in May 2020. | J181: Thomson EMAXX | K181: =INDEX(' Scope'!E:E,MATCH(A181,' Scope'!A:A,0)) -> Meat
A182: BRF | B182: Bondholding | C182: 2019-12-31 | E182: 0.001 | F182: 0 | G182: Fator | H182: Brazil | I182: Thomson Reuter Eikon, 'Bondholdings: Brf S.A. - BRBRFSDBS026, 31-12-2019', viewed in May 2020. | J182: Thomson EMAXX | K182: =INDEX(' Scope'!E:E,MATCH(A182,' Scope'!A:A,0)) -> Meat
A183: BRF | B183: Bondholding | C183: 2020-02-29 | E183: 0.001 | F183: 0 | G183: BTG Pactual | H183: Brazil | I183: Thomson Reuter Eikon, 'Bondholdings: Brf S.A. - BRBRFSDBS034, 29-02-2020', viewed in May 2020. | J183: Thomson EMAXX | K183: =INDEX(' Scope'!E:E,MATCH(A183,' Scope'!A:A,0)) -> Meat
A184: BRF | B184: Bondholding | C184: 2020-01-31 | E184: 0.001 | F184: 0 | G184: Trafalgar Investimentos | H184: Brazil | I184: Thomson Reuter Eikon, 'Bondholdings: Brf S.A. - BRBRFSDBS026, 31-01-2020', viewed in May 2020. | J184: Thomson EMAXX | K184: =INDEX(' Scope'!E:E,MATCH(A184,' Scope'!A:A,0)) -> Meat
A185: BRF | B185: Bondholding | C185: 2020-03-31 | E185: 0.001 | F185: 0 | G185: More Invest | H185: Brazil | I185: Thomson Reuter Eikon, 'Bondholdings: Brf S.A. - BRBRFSDBS034, 31-03-2020', viewed in May 2020. | J185: Thomson EMAXX | K185: =INDEX(' Scope'!E:E,MATCH(A185,' Scope'!A:A,0)) -> Meat
A186: BRF | B186: Bondholding | C186: 2020-03-31 | E186: 0.001 | F186: 0 | G186: More Invest | H186: Brazil | I186: Thomson Reuter Eikon, 'Bondholdings: Brf S.A. - BRBRFSDBS034, 31-03-2020', viewed in May 2020. | J186: Thomson EMAXX | K186: =INDEX(' Scope'!E:E,MATCH(A186,' Scope'!A:A,0)) -> Meat
A187: BRF | B187: Bondholding | C187: 2020-02-29 | E187: 0.001 | F187: 0 | G187: Tagus Investimentos | H187: Brazil | I187: Thomson Reuter Eikon, 'Bondholdings: Brf S.A. - BRBRFSDBS034, 29-02-2020', viewed in May 2020. | J187: Thomson EMAXX | K187: =INDEX(' Scope'!E:E,MATCH(A187,' Scope'!A:A,0)) -> Meat
A188: BRF | B188: Bondholding | C188: 2020-03-31 | E188: 0.002 | F188: 0 | G188: Portofino Gestão de Recursos | H188: Brazil | I188: Thomson Reuter Eikon, 'Bondholdings: Brf S.A. - BRBRFSDBS034, 31-03-2020', viewed in May 2020. | J188: Thomson EMAXX | K188: =INDEX(' Scope'!E:E,MATCH(A188,' Scope'!A:A,0)) -> Meat
A189: BRF | B189: Bondholding | C189: 2020-01-31 | E189: 0.001 | F189: 0 | G189: Galt Capital | H189: Brazil | I189: Thomson Reuter Eikon, 'Bondholdings: Brf S.A. - BRBRFSDBS034, 31-01-2020', viewed in May 2020. | J189: Thomson EMAXX | K189: =INDEX(' Scope'!E:E,MATCH(A189,' Scope'!A:A,0)) -> Meat
A190: BRF | B190: Bondholding | C190: 2020-03-31 | E190: 0.001 | F190: 0 | G190: Andbank | H190: Andorra | I190: Thomson Reuter Eikon, 'Bondholdings: Brf S.A. - BRBRFSDBS034, 31-03-2020', viewed in May 2020. | J190: Thomson EMAXX | K190: =INDEX(' Scope'!E:E,MATCH(A190,' Scope'!A:A,0)) -> Meat
A191: BRF | B191: Bondholding | C191: 2020-03-31 | E191: 0.413 | F191: 0.0008 | G191: Prudential Financial (US) | H191: United States | I191: Thomson Reuter Eikon, 'Bondholdings: Brf Brasil Foods S A - US10552TAE73, 31-03-2020', viewed in May 2020. | J191: Thomson EMAXX | K191: =INDEX(' Scope'!E:E,MATCH(A191,' Scope'!A:A,0)) -> Meat
A192: BRF | B192: Bondholding | C192: 2020-03-31 | E192: 2.12 | F192: 0.0042 | G192: Prudential Financial (US) | H192: United States | I192: Thomson Reuter Eikon, 'Bondholdings: Brf Brasil Foods S A - US10552TAE73, 31-03-2020', viewed in May 2020. | J192: Thomson EMAXX | K192: =INDEX(' Scope'!E:E,MATCH(A192,' Scope'!A:A,0)) -> Meat
A193: BRF | B193: Bondholding | C193: 2020-03-31 | E193: 0.8 | F193: 0 | G193: Prudential Financial (US) | H193: United States | I193: Thomson Reuter Eikon, 'Bondholdings: Brf Brasil Foods S A - , 31-03-2020', viewed in May 2020. | J193: Thomson EMAXX | K193: =INDEX(' Scope'!E:E,MATCH(A193,' Scope'!A:A,0)) -> Meat
A194: BRF | B194: Bondholding | C194: 2020-03-31 | E194: 0.2 | F194: 0.0004 | G194: Prudential Financial (US) | H194: United States | I194: Thomson Reuter Eikon, 'Bondholdings: Brf Brasil Foods S A - US10552TAE73, 31-03-2020', viewed in May 2020. | J194: Thomson EMAXX | K194: =INDEX(' Scope'!E:E,MATCH(A194,' Scope'!A:A,0)) -> Meat
A195: BRF | B195: Bondholding | C195: 2019-12-31 | E195: 4.445 | F195: 0 | G195: Allianz | H195: Germany | I195: Thomson Reuter Eikon, 'Bondholdings: Brf Brasil Foods S A - , 31-12-2019', viewed in May 2020. | J195: Thomson EMAXX | K195: =INDEX(' Scope'!E:E,MATCH(A195,' Scope'!A:A,0)) -> Meat
A196: BRF | B196: Bondholding | C196: 2020-03-31 | E196: 0.475 | F196: 0 | G196: Macquarie Group | H196: Australia | I196: Thomson Reuter Eikon, 'Bondholdings: Brf Brasil Foods S A - , 31-03-2020', viewed in May 2020. | J196: Thomson EMAXX | K196: =INDEX(' Scope'!E:E,MATCH(A196,' Scope'!A:A,0)) -> Meat
A197: BRF | B197: Bondholding | C197: 2020-03-31 | E197: 1.42 | F197: 0 | G197: Macquarie Group | H197: Australia | I197: Thomson Reuter Eikon, 'Bondholdings: Brf Brasil Foods S A - , 31-03-2020', viewed in May 2020. | J197: Thomson EMAXX | K197: =INDEX(' Scope'!E:E,MATCH(A197,' Scope'!A:A,0)) -> Meat
A198: BRF | B198: Bondholding | C198: 2020-03-31 | E198: 0.88 | F198: 0 | G198: Macquarie Group | H198: Australia | I198: Thomson Reuter Eikon, 'Bondholdings: Brf Brasil Foods S A - , 31-03-2020', viewed in May 2020. | J198: Thomson EMAXX | K198: =INDEX(' Scope'!E:E,MATCH(A198,' Scope'!A:A,0)) -> Meat
A199: BRF | B199: Bondholding | C199: 2020-03-31 | E199: 0.58 | F199: 0 | G199: Macquarie Group | H199: Australia | I199: Thomson Reuter Eikon, 'Bondholdings: Brf Brasil Foods S A - , 31-03-2020', viewed in May 2020. | J199: Thomson EMAXX | K199: =INDEX(' Scope'!E:E,MATCH(A199,' Scope'!A:A,0)) -> Meat
A200: BRF | B200: Bondholding | C200: 2020-03-31 | E200: 0.1 | F200: 0 | G200: MetLife | H200: United States | I200: Thomson Reuter Eikon, 'Bondholdings: Brf Brasil Foods S A - , 31-03-2020', viewed in May 2020. | J200: Thomson EMAXX | K200: =INDEX(' Scope'!E:E,MATCH(A200,' Scope'!A:A,0)) -> Meat
... 4300 more rows

Sheet Credit - Meat
B1: Creditors to Meat companies (2015-2019, US$ mln)
B3: In scope? (Yes/No) | C3: Yes
B4: Year | C4: (Multiple Items)
B5: Sector | C5: Meat
B7: Sum of Per Investor Value (in mln US$) | D7: Type short | H7: Top 15 creditors to Meat companies (2015-2019, US$ mln) | M7: Credits by type of financing | R7: Top creditors countries to Meat companies | U7: Top creditors countries to Meat companies (2015-2019, US$ mln)
B8: Investor Parent | C8: Investor Parent Country | D8: Loans | E8: Underwriting | F8: Grand Total | H8: Investor (Country) | I8: =D8 -> Loans | J8: =E8 -> Underwriting | K8: =F8 -> Grand Total | N8: Loans | O8: Underwriting | P8: Total Value | R8: Country | S8: Total Value | U8: Country | V8: Total Value | W8: %
B9: Barclays | C9: United Kingdom | D9: 7187.072989 | E9: 2397.518524 | F9: 9584.591513 | H9: =B9&" ("&C9&")" -> Barclays (United Kingdom) | I9: 7187.072989 | J9: 2397.518524 | K9: 9584.591513 | M9: Value | N9: =D193 -> 82547.73944 | O9: =E193 -> 40073.75077 | P9: =N9+O9 -> 122621.4902 | R9: United States | S9: =SUMIF($C$9:$C$193,R9,$F$9:$F$193) -> 39785.13162 | U9: =R9 -> United States | V9: =S9 -> 39785.13162 | W9: =V9/$V$22 -> 0.3244548044
B10: Bank of America | C10: United States | D10: 6833.916146 | E10: 2466.3595 | F10: 9300.275646 | H10: Bank of America (United States) | I10: 6833.916146 | J10: 2466.3595 | K10: 9300.275646 | M10: % | N10: =N9/$P$9 -> 0.6731914552 | O10: =O9/$P$9 -> 0.3268085448 | P10: =P9/$P$9 -> 1 | R10: United Kingdom | S10: 15674.19544 | U10: =R10 -> United Kingdom | V10: 15674.19544 | W10: 0.1278258437
B11: Morgan Stanley | C11: United States | D11: 1817.073864 | E11: 5640.459388 | F11: 7457.533252 | H11: Morgan Stanley (United States) | I11: 1817.073864 | J11: 5640.459388 | K11: 7457.533252 | R11: Brazil | S11: 8844.328693 | U11: Brazil | V11: 8844.328693 | W11: 0.07212706906
B12: JPMorgan Chase | C12: United States | D12: 5510.97524 | E12: 1831.124542 | F12: 7342.099781 | H12: JPMorgan Chase (United States) | I12: 5510.97524 | J12: 1831.124542 | K12: 7342.099781 | M12: Credits by type of financing | R12: France | S12: 8326.16092 | U12: France | V12: 8326.16092 | W12: 0.06790131897
B13: Rabobank | C13: Netherlands | D13: 4550.914437 | E13: 1041.692 | F13: 5592.606437 | H13: Rabobank (Netherlands) | I13: 4550.914437 | J13: 1041.692 | K13: 5592.606437 | R13: Netherlands | S13: 8042.860753 | U13: Netherlands | V13: 8042.860753 | W13: 0.06559095586
B14: BNP Paribas | C14: France | D14: 4535.245569 | E14: 601.0988333 | F14: 5136.344402 | H14: BNP Paribas (France) | I14: 4535.245569 | J14: 601.0988333 | K14: 5136.344402 | R14: Canada | S14: 7833.949627 | U14: Canada | V14: 7833.949627 | W14: 0.06388724859
B15: Royal Bank of Canada | C15: Canada | D15: 2964.758676 | E15: 1350.517857 | F15: 4315.276533 | H15: Royal Bank of Canada (Canada) | I15: 2964.758676 | J15: 1350.517857 | K15: 4315.276533 | R15: Japan | S15: 7266.089609 | U15: Japan | V15: 7266.089609 | W15: 0.05925624942
B16: HSBC | C16: United Kingdom | D16: 1802.852798 | E16: 1979.523667 | F16: 3782.376465 | H16: HSBC (United Kingdom) | I16: 1802.852798 | J16: 1979.523667 | K16: 3782.376465 | R16: Thailand | S16: 6753.075459 | U16: Thailand | V16: 6753.075459 | W16: 0.05507252804
B17: Bradesco | C17: Brazil | D17: 582.5260998 | E17: 2637.996149 | F17: 3220.522249 | H17: Bradesco (Brazil) | I17: 582.5260998 | J17: 2637.996149 | K17: 3220.522249 | R17: China | S17: 4309.245199 | U17: China | V17: 4309.245199 | W17: 0.03514265885
B18: Mizuho Financial | C18: Japan | D18: 2777.3632 | E18: 398.4849666 | F18: 3175.848166 | H18: Mizuho Financial (Japan) | I18: 2777.3632 | J18: 398.4849666 | K18: 3175.848166 | R18: Spain | S18: 3495.113587 | U18: Spain | V18: 3495.113587 | W18: 0.02850327117
B19: Santander | C19: Spain | D19: 951.3736127 | E19: 2197.849649 | F19: 3149.223262 | H19: Santander (Spain) | I19: 951.3736127 | J19: 2197.849649 | K19: 3149.223262 | R19: Germany | S19: 2846.500276 | U19: =R19 -> Germany | V19: =S19 -> 2846.500276 | W19: 0.02321371458
B20: Farm Credit Services Commercial Finance Group | C20: United States | D20: 2987.553791 | F20: 2987.553791 | H20: Farm Credit Services Commercial Finance Group (United States) | I20: 2987.553791 | J20: 0 | K20: 2987.553791 | R20: Singapore | S20: 2616.515468 | U20: Singapore | V20: 2616.515468 | W20: 0.02133814769
B21: Banco do Brasil | C21: Brazil | D21: 370.773 | E21: 2396.144565 | F21: 2766.917565 | H21: Banco do Brasil (Brazil) | I21: 370.773 | J21: 2396.144565 | K21: 2766.917565 | R21: Australia | S21: 1619.994108 | U21: Others | V21: =SUM(S21:S54) -> 6828.323565 | W21: 0.0556861897
B22: US Bancorp | C22: United States | D22: 2142.037113 | E22: 531.725 | F22: 2673.762113 | H22: US Bancorp (United States) | I22: 2142.037113 | J22: 531.725 | K22: 2673.762113 | R22: Switzerland | S22: 1581.150989 | U22: Total | V22: =SUM(V9:V21) -> 122621.4902 | W22: 1
B23: Krung Thai Bank | C23: Thailand | D23: 1532.464976 | E23: 1109.66075 | F23: 2642.125726 | H23: Krung Thai Bank (Thailand) | I23: 1532.464976 | J23: 1109.66075 | K23: 2642.125726 | R23: Malaysia | S23: 1168.526221
B24: Goldman Sachs | C24: United States | D24: 1519.866266 | E24: 882.03124 | F24: 2401.897506 | R24: Italy | S24: 529.0349082 | U24: Top creditors countries to Meat companies (2015-2019, US$ mln)
B25: Deutsche Bank | C25: Germany | D25: 1959.061229 | E25: 258.2418333 | F25: 2217.303063 | H25: Top 15 creditors to Meat companies (2015-2019, US$ mln) | R25: Taiwan | S25: 443.2889006
B26: Citigroup | C26: United States | D26: 1599.217981 | E26: 516.0058333 | F26: 2115.223814 | R26: Austria | S26: 306.0082953
B27: Mitsubishi UFJ Financial | C27: Japan | D27: 1577.83633 | E27: 509.7957 | F27: 2087.63203 | R27: Sweden | S27: 302.4080998
B28: Wells Fargo | C28: United States | D28: 1613.978552 | E28: 184.1 | F28: 1798.078552 | R28: Finland | S28: 116.1
B29: BMO Financial Group | C29: Canada | D29: 975.6251451 | E29: 614.1428571 | F29: 1589.768002 | R29: South Korea | S29: 102.1791835
B30: Société Générale | C30: France | D30: 1505.23408 | E30: 41.66666667 | F30: 1546.900747 | R30: Cayman Islands | S30: 100
B31: Kasikornbank | C31: Thailand | D31: 794.4021583 | E31: 619.38775 | F31: 1413.789908 | R31: Ireland | S31: 88.97333333
B32: ING Group | C32: Netherlands | D32: 1135.546975 | E32: 240.4118 | F32: 1375.958775 | R32: Denmark | S32: 70.146
B33: United Overseas Bank | C33: Singapore | D33: 768.7303127 | E33: 595.2098333 | F33: 1363.940146 | R33: Indonesia | S33: 67
B34: BTG Pactual | C34: Brazil | E34: 1304.723079 | F34: 1304.723079 | R34: Argentina | S34: 59.55908333
B35: Bank of China | C35: China | D35: 927.592994 | E35: 350.3857752 | F35: 1277.978769 | R35: Philippines | S35: 57.77702523
B36: Siam Commercial Bank | C36: Thailand | D36: 512.0339558 | E36: 724.54325 | F36: 1236.577206 | R36: Mexico | S36: 49.41
B37: Itaú Unibanco | C37: Brazil | D37: 182.2620998 | E37: 992.0508333 | F37: 1174.312933 | R37: Belgium | S37: 42.62611698
B38: SMBC Group | C38: Japan | D38: 905.0037312 | E38: 145.1154001 | F38: 1050.119131 | R38: Honduras | S38: 31
B39: Standard Chartered | C39: United Kingdom | D39: 1012.482679 | F39: 1012.482679 | R39: Poland | S39: 21.31305849
B40: Credit Suisse | C40: Switzerland | D40: 981.1509887 | F40: 981.1509887 | R40: Czech Republic | S40: 21.31305849
B41: ABN Amro | C41: Netherlands | D41: 963.3220418 | F41: 963.3220418 | R41: Bangladesh | S41: 17.08333333
B42: ANZ | C42: Australia | D42: 928.6624174 | F42: 928.6624174 | R42: Portugal | S42: 15.80571857
B43: Crédit Agricole | C43: France | D43: 731.0076428 | E43: 184.1 | F43: 915.1076428 | R43: Hong Kong | S43: 12.07057738
B44: Toronto-Dominion Bank | C44: Canada | D44: 906.4808497 | F44: 906.4808497 | R44: United Arab Emirates | S44: 2.777777778
B45: Truist Financial | C45: United States | D45: 697.8606699 | E45: 186.4583333 | F45: 884.3190033 | R45: Kuwait | S45: 2.777777778
B46: NatWest | C46: United Kingdom | D46: 873.5937931 | F46: 873.5937931
B47: Bank of New York Mellon | C47: United States | D47: 857.2620998 | F47: 857.2620998
B48: Scotiabank | C48: Canada | D48: 807.2620998 | F48: 807.2620998
B49: Nomura | C49: Japan | E49: 739.7344633 | F49: 739.7344633
B50: Industrial and Commercial Bank of China | C50: China | D50: 639.3195397 | E50: 91.40823425 | F50: 730.7277739
B51: BPCE Group | C51: France | D51: 703.4905033 | F51: 703.4905033
B52: DBS | C52: Singapore | D52: 632.9316902 | E52: 9.052933032 | F52: 641.9846232
B53: Oversea-Chinese Banking Corporation | C53: Singapore | D53: 610.5906986 | F53: 610.5906986
B54: UBS | C54: Switzerland | E54: 600 | F54: 600
B55: Westpac | C55: Australia | D55: 591.3316902 | F55: 591.3316902
B56: CIMB Group | C56: Malaysia | D56: 590.2131105 | F56: 590.2131105
B57: Malayan Banking | C57: Malaysia | D57: 578.3131105 | F57: 578.3131105
B58: Government Savings Bank | C58: Thailand | D58: 85.41328976 | E58: 432.52975 | F58: 517.9430398
B59: China International Capital Corporation | C59: China | E59: 440.263625 | F59: 440.263625
B60: Lloyds Banking Group | C60: United Kingdom | D60: 421.1509887 | F60: 421.1509887
B61: Bank of Communications | C61: China | D61: 287.6065 | E61: 118.3862026 | F61: 405.9927026
B62: Agricultural Bank of China | C62: China | D62: 182.2620998 | E62: 153.574425 | F62: 335.8365248
B63: Bangkok Bank | C63: Thailand | D63: 334.6353333 | F63: 334.6353333
B64: Intesa Sanpaolo | C64: Italy | D64: 332.2620998 | F64: 332.2620998
B65: Regions Financial | C65: United States | D65: 225.2901785 | E65: 99.125 | F65: 324.4151785
B66: Banco Bilbao Vizcaya Argentaria (BBVA) | C66: Spain | D66: 321.1509887 | F66: 321.1509887
B67: Raiffeisen Bank International | C67: Austria | D67: 205.0912953 | E67: 100.917 | F67: 306.0082953
B68: Skandinaviska Enskilda Banken | C68: Sweden | D68: 232.2620998 | E68: 70.146 | F68: 302.4080998
B69: Commerzbank | C69: Germany | D69: 282.2620998 | F69: 282.2620998
B70: Voya Financial | C70: United States | D70: 262.2057629 | F70: 262.2057629
B71: Landesbank Baden-Württemberg (LBBW) | C71: Germany | D71: 35.619 | E71: 190.4118 | F71: 226.0308
B72: Fifth Third Bancorp | C72: United States | D72: 223.3746747 | F72: 223.3746747
B73: Thanachart Capital | C73: Thailand | D73: 85.41328976 | E73: 122.6603333 | F73: 208.0736231
B74: China Merchants Group | C74: China | E74: 201.4478859 | F74: 201.4478859
B75: CSC Financial | C75: China | E75: 191.5213333 | F75: 191.5213333
B76: Huatai United Securities | C76: China | E76: 191.5213333 | F76: 191.5213333
B77: Compeer Financial | C77: United States | D77: 188.2839928 | F77: 188.2839928
B78: PNC Financial Services | C78: United States | D78: 182.2620998 | F78: 182.2620998
B79: Export Import Bank of Thailand | C79: Thailand | D79: 177.3986225 | F79: 177.3986225
B80: UniCredit | C80: Italy | D80: 77.40805849 | E80: 70.146 | F80: 147.5540585
B81: BNDES | C81: Brazil | D81: 138.3632 | F81: 138.3632
B82: Grupo XP | C82: Brazil | E82: 133.3333333 | F82: 133.3333333
B83: Haitong Securities | C83: China | E83: 125 | F83: 125
B84: Kiatnakin Bank | C84: Thailand | E84: 123.106 | F84: 123.106
B85: Nordic Finance Group | C85: Finland | D85: 116.1 | F85: 116.1
B86: CITIC | C86: China | D86: 111.094 | F86: 111.094
B87: NIBC Holding | C87: Netherlands | D87: 110.9735 | F87: 110.9735
B88: Comerica | C88: United States | D88: 102.7901785 | F88: 102.7901785
B89: DZ Bank | C89: Germany | E89: 100.917 | F89: 100.917
B90: National Australia Bank | C90: Australia | D90: 100 | F90: 100
B91: Braseg Overseas Bank | C91: Cayman Islands | E91: 100 | F91: 100
B92: TMB Bank | C92: Thailand | E92: 99.426 | F92: 99.426
B93: Greenstone Farm Credit | C93: United States | D93: 89.10596252 | F93: 89.10596252
B94: Bank of Ireland | C94: Ireland | D94: 88.97333333 | F94: 88.97333333
B95: Farm Credit Canada | C95: Canada | D95: 85.88957143 | F95: 85.88957143
B96: Daiwa Securities | C96: Japan | E96: 77.87411663 | F96: 77.87411663
B97: Northern Trust | C97: United States | D97: 76.50929677 | F97: 76.50929677
B98: Danske Bank | C98: Denmark | E98: 70.146 | F98: 70.146
B99: UMB Financial Corporation | C99: United States | D99: 65.18571429 | F99: 65.18571429
B100: KDB Financial Group | C100: South Korea | D100: 63.66116666 | F100: 63.66116666
B101: Arvest Bank | C101: United States | D101: 62.5 | F101: 62.5
B102: KeyCorp | C102: United States | D102: 60 | F102: 60
B103: World Bank | C103: United States | D103: 60 | F103: 60
B104: XP Investimentos | C104: Brazil | E104: 58.33333333 | F104: 58.33333333
B105: Cathay Financial | C105: Taiwan | D105: 50 | F105: 50
B106: Mediobanca Banca di Credito Finanziario | C106: Italy | D106: 49.21874992 | F106: 49.21874992
B107: Votorantim Group | C107: Brazil | E107: 47.823 | F107: 47.823
B108: Taiwan Financial Holding | C108: Taiwan | D108: 47.17993603 | F108: 47.17993603
B109: Ping An Insurance Group | C109: China | E109: 46.7132339 | F109: 46.7132339
B110: Taiwan Cooperative Financial | C110: Taiwan | D110: 44.40215825 | F110: 44.40215825
B111: KBC Group | C111: Belgium | D111: 42.62611698 | F111: 42.62611698
B112: Hua Nan Financial | C112: Taiwan | D112: 38.51801682 | F112: 38.51801682
B113: BDO Unibank | C113: Philippines | D113: 38.51801682 | F113: 38.51801682
B114: Huntington Bancshares | C114: United States | D114: 37.69759148 | F114: 37.69759148
B115: Jefferies Financial Group | C115: United States | E115: 36.8085 | F115: 36.8085
B116: China Minsheng Banking | C116: China | E116: 35.87682758 | F116: 35.87682758
B117: Lone Star Funds | C117: United States | D117: 35.619 | F117: 35.619
B118: Bank Mandiri | C118: Indonesia | D118: 33.5 | F118: 33.5
B119: Bank Central Asia | C119: Indonesia | D119: 33.5 | F119: 33.5
B120: Export Development Canada | C120: Canada | D120: 32.31814286 | F120: 32.31814286
B121: CIBC | C121: Canada | D121: 32.31814286 | F121: 32.31814286
B122: National Bank of Canada | C122: Canada | D122: 32.31814286 | F122: 32.31814286
B123: Business Development Bank of Canada | C123: Canada | D123: 32.31814286 | F123: 32.31814286
B124: CTBC Financial Holding | C124: Taiwan | D124: 31.93678619 | F124: 31.93678619
B125: Grupo Financiero FICOHSA | C125: Honduras | D125: 31 | F125: 31
B126: China Construction Bank | C126: China | E126: 29.942625 | F126: 29.942625
B127: First Financial Holding | C127: Taiwan | D127: 29.25900841 | F127: 29.25900841
B128: First Capital Securities | C128: China | E128: 28.19628132 | F128: 28.19628132
B129: Guotai Junan Securities | C129: China | E129: 28.19628132 | F129: 28.19628132
B130: Donghai Securities | C130: China | E130: 28.19628132 | F130: 28.19628132
B131: Mega Financial | C131: Taiwan | D131: 27.92092762 | F131: 27.92092762
B132: Caja de Valores | C132: Argentina | E132: 25.892 | F132: 25.892
B133: Sociedad Anonima del Atlantico Compañia Financiera | C133: Argentina | D133: 24.705 | F133: 24.705
B134: Grupo Financiero Multiva | C134: Mexico | D134: 24.705 | F134: 24.705
B135: Banco del Bajío | C135: Mexico | D135: 24.705 | F135: 24.705
B136: Amarillo National Bancorp | C136: United States | D136: 22.95400174 | F136: 22.95400174
B137: National Bank Holdings Corporation | C137: United States | D137: 22.95400174 | F137: 22.95400174
B138: Intrust Financial Corporation | C138: United States | D138: 22.95400174 | F138: 22.95400174
B139: Farm Credit | C139: United States | D139: 22.5 | F139: 22.5
B140: Postal Savings Bank of China | C140: China | E140: 22.26207874 | F140: 22.26207874
B141: Guosen Securities | C141: China | E141: 22.26207874 | F141: 22.26207874
B142: Alior Bank | C142: Poland | D142: 21.31305849 | F142: 21.31305849
B143: PPF Group | C143: Czech Republic | D143: 21.31305849 | F143: 21.31305849
B144: Volkswagen Financial Services | C144: Germany | D144: 19.7492218 | F144: 19.7492218
B145: Chugoku Bank | C145: Japan | D145: 19.25900841 | F145: 19.25900841
B146: Shinhan Financial Group | C146: South Korea | D146: 19.25900841 | F146: 19.25900841
B147: Shanghai Commercial & Savings Bank | C147: Taiwan | D147: 19.25900841 | F147: 19.25900841
B148: Development Bank of Japan | C148: Japan | D148: 19.25900841 | F148: 19.25900841
B149: Bank of Panhsin | C149: Taiwan | D149: 19.25900841 | F149: 19.25900841
B150: Chang Hwa Commercial Bank | C150: Taiwan | D150: 19.25900841 | F150: 19.25900841
B151: Bank of Philippine Islands | C151: Philippines | D151: 19.25900841 | F151: 19.25900841
B152: Entie Commercial Bank | C152: Taiwan | D152: 19.25900841 | F152: 19.25900841
B153: Sumitomo Mitsui Trust | C153: Japan | D153: 19.25900841 | F153: 19.25900841
B154: Shin Kong Financial Holding | C154: Taiwan | D154: 19.25900841 | F154: 19.25900841
B155: Taiwan Business Bank | C155: Taiwan | D155: 19.25900841 | F155: 19.25900841
B156: Shinsei Bank | C156: Japan | D156: 19.25900841 | F156: 19.25900841
B157: Yuanta Financial | C157: Taiwan | D157: 19.25900841 | F157: 19.25900841
B158: Norinchukin Bank | C158: Japan | D158: 19.25900841 | F158: 19.25900841
B159: E.SUN Financial | C159: Taiwan | D159: 19.25900841 | F159: 19.25900841
B160: Hyakugo Bank | C160: Japan | D160: 19.25900841 | F160: 19.25900841
B161: Hana Financial | C161: South Korea | D161: 19.25900841 | F161: 19.25900841
B162: 1st Farm Credit Services | C162: United States | D162: 18.33333333 | F162: 18.33333333
B163: Badgerland Financial | C163: United States | D163: 17.5 | F163: 17.5
B164: United Finance | C164: Bangladesh | D164: 17.08333333 | F164: 17.08333333
B165: Cape Fear Farm Credit | C165: United States | D165: 17.08333333 | F165: 17.08333333
B166: La Caixa Group | C166: Portugal | D166: 15.80571857 | F166: 15.80571857
B167: Banco de Sabadell | C167: Spain | D167: 13.7442 | F167: 13.7442
B168: BOK Financial | C168: United States | D168: 13.07179677 | F168: 13.07179677
B169: Bank of Tianjin | C169: China | E169: 12.58275 | F169: 12.58275
B170: Crédit Mutuel CIC Group | C170: France | D170: 12.15881222 | F170: 12.15881222
B171: Groupe Arkéa | C171: France | D171: 12.15881222 | F171: 12.15881222
B172: BFA Holding | C172: Spain | D172: 10.99513714 | F172: 10.99513714
B173: Chailease Holding | C173: Taiwan | D173: 10 | F173: 10
B174: Taishin Financial Group | C174: Taiwan | D174: 10 | F174: 10
B175: Seazen | C175: China | E175: 9.052933032 | F175: 9.052933032
B176: VBG Group | C176: China | E176: 9.052933032 | F176: 9.052933032
B177: Sunwah Kingsway Capital Holdings | C177: Hong Kong | E177: 9.052933032 | F177: 9.052933032
B178: Grupo Financiero Galicia | C178: Argentina | E178: 8.962083333 | F178: 8.962083333
B179: China Guangfa Bank | C179: China | E179: 8.5904 | F179: 8.5904
B180: Kyushu Financial Group | C180: Japan | D180: 7.370916667 | F180: 7.370916667
B181: Bank of Kyoto | C181: Japan | D181: 7.370916667 | F181: 7.370916667
B182: Xiamen City Commercial Bank | C182: China | E182: 5.934202577 | F182: 5.934202577
B183: Bank of Ningbo | C183: China | E183: 3.99235 | F183: 3.99235
B184: Bank of Nanjing | C184: China | E184: 3.99235 | F184: 3.99235
B185: China Galaxy Securities | C185: China | E185: 3.017644344 | F185: 3.017644344
B186: Lego Securities | C186: Hong Kong | E186: 3.017644344 | F186: 3.017644344
B187: Prestige Wealth Management Group | C187: United States | E187: 3.017644344 | F187: 3.017644344
B188: Investment Corporation of Dubai | C188: United Arab Emirates | D188: 2.777777778 | F188: 2.777777778
B189: Aozora Bank | C189: Japan | D189: 2.777777778 | F189: 2.777777778
B190: National Bank of Kuwait | C190: Kuwait | D190: 2.777777778 | F190: 2.777777778
B191: Okasan Securities Group | C191: Japan | E191: 1.808039996 | F191: 1.808039996
B192: Mercedes Finance | C192: Germany | D192: 0.2380912161 | F192: 0.2380912161
B193: Grand Total | D193: 82547.73944 | E193: 40073.75077 | F193: 122621.4902

Sheet Credit - Dairy
B1: Creditors to Dairy companies (2015-2019, US$ mln)
B3: In scope? (Yes/No) | C3: Yes
B4: Year | C4: (Multiple Items)
B5: Sector | C5: Dairy
B7: Sum of Per Investor Value (in mln US$) | D7: Type short | H7: Top 15 creditors to Dairy companies (2015-2019, US$ mln) | M7: Credits by type of financing | R7: Top creditors countries to Dairy companies | U7: Top creditors countries to Dairy companies (2015-2019, US$ mln)
B8: Investor Parent | C8: Investor Parent Country | D8: Loans | E8: Underwriting | F8: Grand Total | H8: Investor (Country) | I8: =D8 -> Loans | J8: =E8 -> Underwriting | K8: =F8 -> Grand Total | N8: Loans | O8: Underwriting | P8: Total Value | R8: Country | S8: Total Value | U8: Country | V8: Total Value | W8: %
B9: BNP Paribas | C9: France | D9: 8319.654669 | E9: 2306.245726 | F9: 10625.90039 | H9: =B9&" ("&C9&")" -> BNP Paribas (France) | I9: 8319.654669 | J9: 2306.245726 | K9: 10625.90039 | M9: Value | N9: =D84 -> 84288.17195 | O9: =E84 -> 41450.623 | P9: =N9+O9 -> 125738.7949 | R9: United States | S9: =SUMIF($C$9:$C$83,R9,$F$9:$F$83) -> 27687.31742 | U9: =R9 -> United States | V9: =S9 -> 27687.31742 | W9: =V9/$V$20 -> 0.2201970953
B10: JPMorgan Chase | C10: United States | D10: 4714.288105 | E10: 3244.259119 | F10: 7958.547224 | H10: JPMorgan Chase (United States) | I10: 4714.288105 | J10: 3244.259119 | K10: 7958.547224 | M10: % | N10: =N9/$P$9 -> 0.670343405 | O10: =O9/$P$9 -> 0.329656595 | P10: =P9/$P$9 -> 1 | R10: France | S10: 23164.10731 | U10: =R10 -> France | V10: =S10 -> 23164.10731 | W10: 0.1842240282
B11: Citigroup | C11: United States | D11: 4373.66531 | E11: 2781.699215 | F11: 7155.364526 | H11: Citigroup (United States) | I11: 4373.66531 | J11: 2781.699215 | K11: 7155.364526 | R11: United Kingdom | S11: 15917.01321 | U11: United Kingdom | V11: 15917.01321 | W11: 0.1265879255
B12: HSBC | C12: United Kingdom | D12: 4134.800967 | E12: 2517.09315 | F12: 6651.894117 | H12: HSBC (United Kingdom) | I12: 4134.800967 | J12: 2517.09315 | K12: 6651.894117 | M12: Credits by type of financing | R12: Canada | S12: 14244.28189 | U12: Canada | V12: 14244.28189 | W12: 0.1132847018
B13: Mitsubishi UFJ Financial | C13: Japan | D13: 3888.674801 | E13: 2486.862762 | F13: 6375.537563 | H13: Mitsubishi UFJ Financial (Japan) | I13: 3888.674801 | J13: 2486.862762 | K13: 6375.537563 | R13: Switzerland | S13: 9867.055613 | U13: Switzerland | V13: 9867.055613 | W13: 0.07847264337
B14: Société Générale | C14: France | D14: 3794.480448 | E14: 2230.06559 | F14: 6024.546038 | H14: Société Générale (France) | I14: 3794.480448 | J14: 2230.06559 | K14: 6024.546038 | R14: Japan | S14: 8088.37353 | U14: Japan | V14: 8088.37353 | W14: 0.06432679376
B15: Barclays | C15: United Kingdom | D15: 3232.050852 | E15: 2523.278733 | F15: 5755.329586 | H15: Barclays (United Kingdom) | I15: 3232.050852 | J15: 2523.278733 | K15: 5755.329586 | R15: Spain | S15: 6455.434257 | U15: Spain | V15: 6455.434257 | W15: 0.05134003598
B16: Santander | C16: Spain | D16: 3548.790448 | E16: 1858.307935 | F16: 5407.098383 | H16: Santander (Spain) | I16: 3548.790448 | J16: 1858.307935 | K16: 5407.098383 | R16: Netherlands | S16: 6271.889198 | U16: =R16 -> Netherlands | V16: 6271.889198 | W16: 0.04988030306
B17: Royal Bank of Canada | C17: Canada | D17: 2801.762105 | E17: 2283.377077 | F17: 5085.139182 | H17: Royal Bank of Canada (Canada) | I17: 2801.762105 | J17: 2283.377077 | K17: 5085.139182 | R17: Germany | S17: 5481.16496 | U17: Germany | V17: 5481.16496 | W17: 0.04359167719
B18: ING Group | C18: Netherlands | D18: 3437.779734 | E18: 1590.407726 | F18: 5028.18746 | H18: ING Group (Netherlands) | I18: 3437.779734 | J18: 1590.407726 | K18: 5028.18746 | R18: Australia | S18: 4279.2211 | U18: =R18 -> Australia | V18: =S18 -> 4279.2211 | W18: 0.03403262376
B19: Bank of America | C19: United States | D19: 3368.95933 | E19: 1477.184146 | F19: 4846.143476 | H19: Bank of America (United States) | I19: 3368.95933 | J19: 1477.184146 | K19: 4846.143476 | R19: Italy | S19: 1742.778153 | U19: Others | V19: =SUM(S19:S54) -> 4282.936471 | W19: 0.03406217208
B20: Deutsche Bank | C20: Germany | D20: 3353.620357 | E20: 1491.765125 | F20: 4845.385482 | H20: Deutsche Bank (Germany) | I20: 3353.620357 | J20: 1491.765125 | K20: 4845.385482 | R20: China | S20: 1028.564702 | U20: Total | V20: =SUM(V9:V19) -> 125738.7949 | W20: 1
B21: UBS | C21: Switzerland | D21: 2389.663772 | E21: 2048.368 | F21: 4438.031772 | H21: UBS (Switzerland) | I21: 2389.663772 | J21: 2048.368 | K21: 4438.031772 | R21: Denmark | S21: 966.1288152
B22: Credit Suisse | C22: Switzerland | D22: 2731.733977 | E22: 1623.368 | F22: 4355.101977 | H22: Credit Suisse (Switzerland) | I22: 2731.733977 | J22: 1623.368 | K22: 4355.101977 | R22: Finland | S22: 227.475 | U22: Top creditors countries to Dairy companies (2015-2019, US$ mln)
B23: Crédit Agricole | C23: France | D23: 2188.524472 | E23: 1995.631494 | F23: 4184.155966 | H23: Crédit Agricole (France) | I23: 2188.524472 | J23: 1995.631494 | K23: 4184.155966 | R23: Luxembourg | S23: 169.44
B24: Toronto-Dominion Bank | C24: Canada | D24: 1421.457568 | E24: 1623.312636 | F24: 3044.770204 | R24: Sweden | S24: 86.475
B25: National Bank of Canada | C25: Canada | D25: 2648.654481 | E25: 286.6226792 | F25: 2935.27716 | H25: Top 15 creditors to Dairy companies (2015-2019, US$ mln) | R25: Bangladesh | S25: 34
B26: NatWest | C26: United Kingdom | D26: 1433.47278 | E26: 1096.231608 | F26: 2529.704389 | R26: Pakistan | S26: 19.0748
B27: BPCE Group | C27: France | D27: 954.2766662 | E27: 1205.668244 | F27: 2159.94491 | R27: Saudi Arabia | S27: 9
B28: Goldman Sachs | C28: United States | D28: 1743.433678 | E28: 412.5 | F28: 2155.933678
B29: Wells Fargo | C29: United States | D29: 1388.255002 | E29: 565 | F29: 1953.255002
B30: ANZ | C30: Australia | D30: 1378.4479 | E30: 531.336 | F30: 1909.7839
B31: Mizuho Financial | C31: Japan | D31: 1501.252438 | F31: 1501.252438
B32: Rabobank | C32: Netherlands | D32: 1140.078595 | E32: 103.6231429 | F32: 1243.701738
B33: BMO Financial Group | C33: Canada | D33: 796.8967811 | E33: 436.5107225 | F33: 1233.407504
B34: US Bancorp | C34: United States | D34: 529.6158619 | E34: 565 | F34: 1094.615862
B35: Zürcher Kantonalbank | C35: Switzerland | D35: 525.7908152 | E35: 509.996 | F35: 1035.786815
B36: Banco Bilbao Vizcaya Argentaria (BBVA) | C36: Spain | D36: 1021.512345 | F36: 1021.512345
B37: Farm Credit Services Commercial Finance Group | C37: United States | D37: 1020.126328 | F37: 1020.126328
B38: Danske Bank | C38: Denmark | D38: 825.1288152 | E38: 141 | F38: 966.1288152
B39: Standard Chartered | C39: United Kingdom | D39: 948.0941142 | F39: 948.0941142
B40: Westpac | C40: Australia | D40: 791.3289902 | E40: 147.302 | F40: 938.6309902
B41: Scotiabank | C41: Canada | D41: 721.7050235 | E41: 131.2569487 | F41: 852.9619722
B42: Intesa Sanpaolo | C42: Italy | D42: 825.1288152 | F42: 825.1288152
B43: Commonwealth Bank of Australia | C43: Australia | D43: 650.5489242 | E43: 157.69 | F43: 808.2389242
B44: UniCredit | C44: Italy | D44: 748.0893379 | F44: 748.0893379
B45: Bank of China | C45: China | D45: 648.7561142 | F45: 648.7561142
B46: Commerzbank | C46: Germany | D46: 635.7794773 | F46: 635.7794773
B47: National Australia Bank | C47: Australia | D47: 498.6372857 | E47: 123.93 | F47: 622.5672857
B48: CIBC | C48: Canada | D48: 383.5983235 | E48: 238.0954933 | F48: 621.6938169
B49: Desjardins Group | C49: Canada | D49: 347.0399038 | E49: 87.43372617 | F49: 434.47363
B50: Truist Financial | C50: United States | D50: 206.9549728 | E50: 123.75 | F50: 330.7049728
B51: PNC Financial Services | C51: United States | D51: 237.7721997 | E51: 87.5 | F51: 325.2721997
B52: China Construction Bank | C52: China | D52: 299.338 | F52: 299.338
B53: Nordea | C53: Finland | E53: 227.475 | F53: 227.475
B54: SMBC Group | C54: Japan | D54: 211.5835294 | F54: 211.5835294
B55: Crédit Mutuel CIC Group | C55: France | D55: 169.56 | F55: 169.56
B56: Mediobanca Banca di Credito Finanziario | C56: Italy | D56: 169.56 | F56: 169.56
B57: European Investment Bank | C57: Luxembourg | D57: 169.44 | F57: 169.44
B58: Morgan Stanley | C58: United States | D58: 61.82352941 | E58: 105 | F58: 166.8235294
B59: World Bank | C59: United States | D59: 114.89 | F59: 114.89
B60: M&T Bank | C60: United States | D60: 89.81771793 | F60: 89.81771793
B61: Skandinaviska Enskilda Banken | C61: Sweden | E61: 86.475 | F61: 86.475
B62: Fifth Third Bancorp | C62: United States | D62: 79.32352941 | F62: 79.32352941
B63: Compeer Financial | C63: United States | D63: 62.9843846 | F63: 62.9843846
B64: Ares Management | C64: United States | D64: 60.71428571 | F64: 60.71428571
B65: CIT Group | C65: United States | D65: 60.71428571 | F65: 60.71428571
B66: Industrial and Commercial Bank of China | C66: China | D66: 53.64705882 | F66: 53.64705882
B67: AKFED | C67: Switzerland | D67: 38.13505 | F67: 38.13505
B68: Northern Trust | C68: United States | D68: 36.82352941 | F68: 36.82352941
B69: Mouvement des Caisses Desjardins | C69: Canada | D69: 36.55841975 | F69: 36.55841975
B70: United Finance | C70: Bangladesh | D70: 34 | F70: 34
B71: Regions Financial | C71: United States | D71: 30 | F71: 30
B72: Capital One Financial | C72: United States | D72: 26.82352941 | F72: 26.82352941
B73: Bank of East Asia | C73: China | D73: 26.82352941 | F73: 26.82352941
B74: First Midwest Bancorp | C74: United States | D74: 26.82352941 | F74: 26.82352941
B75: Citizens Financial Group | C75: United States | D75: 26.82352941 | F75: 26.82352941
B76: KeyCorp | C76: United States | D76: 26.82352941 | F76: 26.82352941
B77: Banco de Sabadell | C77: Spain | D77: 26.82352941 | F77: 26.82352941
B78: Meezan Bank | C78: Pakistan | D78: 19.0748 | F78: 19.0748
B79: UMB Financial Corporation | C79: United States | D79: 18.9843846 | F79: 18.9843846
B80: BOK Financial | C80: United States | D80: 18.9843846 | F80: 18.9843846
B81: European Bank for Reconstruction and Development | C81: United Kingdom | D81: 16.791 | F81: 16.791
B82: Permira | C82: United Kingdom | D82: 15.2 | F82: 15.2
B83: Al Faisaliah Group | C83: Saudi Arabia | D83: 9 | F83: 9
B84: Grand Total | D84: 84288.17195 | E84: 41450.623 | F84: 125738.7949

Sheet Credit - By Company
B1: Underwriting and loans (2015-2019, US$ mln)
B2: In scope? (Yes/No) | C2: Yes
B3: Year | C3: (Multiple Items)
B4: Select company here ----> | C4: Smithfield Foods / WH Group
B6: Sum of Per Investor Value (in mln US$) | C6: Type short
B7: Investor Parent | C7: Loans | D7: Underwriting | E7: Grand Total
B8: Farm Credit Services Commercial Finance Group | C8: 600.7861007 | E8: 600.7861007
B9: Bank of America | C9: 342.6488391 | D9: 113.333 | E9: 455.9818391
B10: Rabobank | C10: 342.6488391 | D10: 12 | E10: 354.6488391
B11: Barclays | C11: 164.0625 | D11: 113.334 | E11: 277.3965
B12: Goldman Sachs | C12: 164.0625 | D12: 113.333 | E12: 277.3955
B13: Morgan Stanley | C13: 164.0625 | D13: 103.5486915 | E13: 267.6111915
B14: US Bancorp | C14: 185.0934248 | D14: 12 | E14: 197.0934248
B15: BNP Paribas | C15: 178.5863391 | E15: 178.5863391
B16: Wells Fargo | C16: 178.5863391 | E16: 178.5863391
B17: Industrial and Commercial Bank of China | C17: 164.0625 | D17: 12 | E17: 176.0625
B18: Compeer Financial | C18: 59.41233507 | E18: 59.41233507
B19: ING Group | C19: 59.41233507 | E19: 59.41233507
B20: BMO Financial Group | C20: 36.45833333 | D20: 12 | E20: 48.45833333
B21: Bank of China | C21: 36.45833333 | D21: 12 | E21: 48.45833333
B22: Citigroup | C22: 36.45833333 | E22: 36.45833333
B23: Truist Financial | C23: 36.45833333 | E23: 36.45833333
B24: Société Générale | C24: 36.45833333 | E24: 36.45833333
B25: JPMorgan Chase | C25: 36.45833333 | E25: 36.45833333
B26: Mitsubishi UFJ Financial | C26: 36.45833333 | E26: 36.45833333
B27: Crédit Agricole | C27: 36.45833333 | E27: 36.45833333
B28: Amarillo National Bancorp | C28: 22.95400174 | E28: 22.95400174
B29: Intrust Financial Corporation | C29: 22.95400174 | E29: 22.95400174
B30: National Bank Holdings Corporation | C30: 22.95400174 | E30: 22.95400174
B31: Greenstone Farm Credit | C31: 22.95400174 | E31: 22.95400174
B32: Fifth Third Bancorp | C32: 21.03092481 | E32: 21.03092481
B33: Huntington Bancshares | C33: 21.03092481 | E33: 21.03092481
B34: ABN Amro | C34: 21.03092481 | E34: 21.03092481
B35: Grand Total | C35: 3050 | D35: 503.5486915 | E35: 3553.548692

Sheet Full Creditor Data
A1: Group | B1: Year | C1: Closing / Issue / Filing Date | D1: Type short | E1: Type of financing | F1: Per Investor Value (in mln US$) | G1: Percentage of Principal / Tranche Amount | H1: Investor Parent | I1: Investor Parent Country | J1: Source | K1: Database | L1: Sector
A2: California Dairies | B2: 2014 | C2: 2014-04-18 | D2: Loans | E2: Revolving credit facility | F2: 337.5 | G2: 0.75 | H2: Rabobank | I2: Netherlands | J2: Thomson Reuters Eikon, 'Tearsheet 3163128116', viewed in May 2020. | K2: Thomson Reuters | L2: Dairy
A3: California Dairies | B3: 2014 | C3: 2014-04-18 | D3: Loans | E3: Revolving credit facility | F3: 56.25 | G3: 0.125 | H3: Bank of America | I3: United States | J3: Thomson Reuters Eikon, 'Tearsheet 3163128116', viewed in May 2020. | K3: Thomson Reuters | L3: Dairy
A4: California Dairies | B4: 2014 | C4: 2014-04-18 | D4: Loans | E4: Revolving credit facility | F4: 56.25 | G4: 0.125 | H4: Farm Credit Services Commercial Finance Group | I4: United States | J4: Thomson Reuters Eikon, 'Tearsheet 3163128116', viewed in May 2020. | K4: Thomson Reuters | L4: Dairy
A5: California Dairies | B5: 2014 | C5: 2014-04-18 | D5: Loans | E5: Corporate loan | F5: 75 | G5: 0.75 | H5: Rabobank | I5: Netherlands | J5: Thomson Reuters Eikon, 'Tearsheet 3163129116', viewed in May 2020. | K5: Thomson Reuters | L5: Dairy
A6: California Dairies | B6: 2014 | C6: 2014-04-18 | D6: Loans | E6: Corporate loan | F6: 12.5 | G6: 0.125 | H6: Bank of America | I6: United States | J6: Thomson Reuters Eikon, 'Tearsheet 3163129116', viewed in May 2020. | K6: Thomson Reuters | L6: Dairy
A7: California Dairies | B7: 2014 | C7: 2014-04-18 | D7: Loans | E7: Corporate loan | F7: 12.5 | G7: 0.125 | H7: Farm Credit Services Commercial Finance Group | I7: United States | J7: Thomson Reuters Eikon, 'Tearsheet 3163129116', viewed in May 2020. | K7: Thomson Reuters | L7: Dairy
A8: China Yurun Food Group Limited | B8: 2015 | C8: 2015-10-14 | D8: Loans | E8: Corporate loan | F8: 32.303 | G8: 0.5 | H8: Bank of China | I8: China | J8: Thomson Reuters Eikon, 'Tearsheet 3192409116', viewed in May 2020. | K8: Thomson Reuters | L8: Meat
A9: China Yurun Food Group Limited | B9: 2015 | C9: 2015-10-14 | D9: Loans | E9: Corporate loan | F9: 32.303 | G9: 0.5 | H9: CITIC | I9: China | J9: Thomson Reuters Eikon, 'Tearsheet 3192409116', viewed in May 2020. | K9: Thomson Reuters | L9: Meat
A10: China Yurun Food Group Limited | B10: 2015 | C10: 2015-10-15 | D10: Loans | E10: Corporate loan | F10: 78.791 | G10: 0.5 | H10: Bank of China | I10: China | J10: Thomson Reuters Eikon, 'Tearsheet 3192421116', viewed in May 2020. | K10: Thomson Reuters | L10: Meat
A11: China Yurun Food Group Limited | B11: 2015 | C11: 2015-10-15 | D11: Loans | E11: Corporate loan | F11: 78.791 | G11: 0.5 | H11: CITIC | I11: China | J11: Thomson Reuters Eikon, 'Tearsheet 3192421116', viewed in May 2020. | K11: Thomson Reuters | L11: Meat
A12: Dairy Farmers of America | B12: 2012 | C12: 2012-09-06 | D12: Loans | E12: Revolving credit facility | F12: 173.5912689 | G12: 0.3471825378 | H12: JPMorgan Chase | I12: United States | J12: Thomson Reuters Eikon, 'Tearsheet 2891648116', viewed in May 2020. | K12: Thomson Reuters | L12: Dairy
A13: Dairy Farmers of America | B13: 2012 | C13: 2012-09-06 | D13: Loans | E13: Revolving credit facility | F13: 173.5912689 | G13: 0.3471825378 | H13: Wells Fargo | I13: United States | J13: Thomson Reuters Eikon, 'Tearsheet 2891648116', viewed in May 2020. | K13: Thomson Reuters | L13: Dairy
A14: Dairy Farmers of America | B14: 2012 | C14: 2012-09-06 | D14: Loans | E14: Revolving credit facility | F14: 21.83106602 | G14: 0.04366213205 | H14: Bank of America | I14: United States | J14: Thomson Reuters Eikon, 'Tearsheet 2891648116', viewed in May 2020. | K14: Thomson Reuters | L14: Dairy
A15: Dairy Farmers of America | B15: 2012 | C15: 2012-09-06 | D15: Loans | E15: Revolving credit facility | F15: 21.83106602 | G15: 0.04366213205 | H15: Farm Credit Services Commercial Finance Group | I15: United States | J15: Thomson Reuters Eikon, 'Tearsheet 2891648116', viewed in May 2020. | K15: Thomson Reuters | L15: Dairy
A16: Dairy Farmers of America | B16: 2012 | C16: 2012-09-06 | D16: Loans | E16: Revolving credit facility | F16: 21.83106602 | G16: 0.04366213205 | H16: Rabobank | I16: Netherlands | J16: Thomson Reuters Eikon, 'Tearsheet 2891648116', viewed in May 2020. | K16: Thomson Reuters | L16: Dairy
A17: Dairy Farmers of America | B17: 2012 | C17: 2012-09-06 | D17: Loans | E17: Revolving credit facility | F17: 21.83106602 | G17: 0.04366213205 | H17: KeyCorp | I17: United States | J17: Thomson Reuters Eikon, 'Tearsheet 2891648116', viewed in May 2020. | K17: Thomson Reuters | L17: Dairy
A18: Dairy Farmers of America | B18: 2012 | C18: 2012-09-06 | D18: Loans | E18: Revolving credit facility | F18: 21.83106602 | G18: 0.04366213205 | H18: Truist Financial | I18: United States | J18: Thomson Reuters Eikon, 'Tearsheet 2891648116', viewed in May 2020. | K18: Thomson Reuters | L18: Dairy
A19: Dairy Farmers of America | B19: 2012 | C19: 2012-09-06 | D19: Loans | E19: Revolving credit facility | F19: 21.83106602 | G19: 0.04366213205 | H19: UMB Financial Corporation | I19: United States | J19: Thomson Reuters Eikon, 'Tearsheet 2891648116', viewed in May 2020. | K19: Thomson Reuters | L19: Dairy
A20: Dairy Farmers of America | B20: 2012 | C20: 2012-09-06 | D20: Loans | E20: Revolving credit facility | F20: 21.83106602 | G20: 0.04366213205 | H20: US Bancorp | I20: United States | J20: Thomson Reuters Eikon, 'Tearsheet 2891648116', viewed in May 2020. | K20: Thomson Reuters | L20: Dairy
A21: Dairy Farmers of America | B21: 2012 | C21: 2012-10-17 | D21: Loans | E21: Corporate loan | F21: 100 | G21: 0.5 | H21: Compeer Financial | I21: United States | J21: Thomson Reuters Eikon, 'Tearsheet 2913425116', viewed in May 2020. | K21: Thomson Reuters | L21: Dairy
A22: Dairy Farmers of America | B22: 2012 | C22: 2012-10-17 | D22: Loans | E22: Corporate loan | F22: 100 | G22: 0.5 | H22: Farm Credit Services Commercial Finance Group | I22: United States | J22: Thomson Reuters Eikon, 'Tearsheet 2913425116', viewed in May 2020. | K22: Thomson Reuters | L22: Dairy
A23: Dairy Farmers of America | B23: 2016 | C23: 2016-09-19 | D23: Loans | E23: Revolving credit facility | F23: 140.7291283 | G23: 0.2165063512 | H23: Farm Credit Services Commercial Finance Group | I23: United States | J23: Thomson Reuters Eikon, 'Tearsheet 3335235116', viewed in May 2020. | K23: Thomson Reuters | L23: Dairy
A24: Dairy Farmers of America | B24: 2016 | C24: 2016-09-19 | D24: Loans | E24: Revolving credit facility | F24: 140.7291283 | G24: 0.2165063512 | H24: JPMorgan Chase | I24: United States | J24: Thomson Reuters Eikon, 'Tearsheet 3335235116', viewed in May 2020. | K24: Thomson Reuters | L24: Dairy
A25: Dairy Farmers of America | B25: 2016 | C25: 2016-09-19 | D25: Loans | E25: Revolving credit facility | F25: 140.7291283 | G25: 0.2165063512 | H25: Wells Fargo | I25: United States | J25: Thomson Reuters Eikon, 'Tearsheet 3335235116', viewed in May 2020. | K25: Thomson Reuters | L25: Dairy
A26: Dairy Farmers of America | B26: 2016 | C26: 2016-09-19 | D26: Loans | E26: Revolving credit facility | F26: 18.9843846 | G26: 0.02920674553 | H26: Farm Credit Services Commercial Finance Group | I26: United States | J26: Thomson Reuters Eikon, 'Tearsheet 3335235116', viewed in May 2020. | K26: Thomson Reuters | L26: Dairy
A27: Dairy Farmers of America | B27: 2016 | C27: 2016-09-19 | D27: Loans | E27: Revolving credit facility | F27: 18.9843846 | G27: 0.02920674553 | H27: Compeer Financial | I27: United States | J27: Thomson Reuters Eikon, 'Tearsheet 3335235116', viewed in May 2020. | K27: Thomson Reuters | L27: Dairy
A28: Dairy Farmers of America | B28: 2016 | C28: 2016-09-19 | D28: Loans | E28: Revolving credit facility | F28: 18.9843846 | G28: 0.02920674553 | H28: BOK Financial | I28: United States | J28: Thomson Reuters Eikon, 'Tearsheet 3335235116', viewed in May 2020. | K28: Thomson Reuters | L28: Dairy
A29: Dairy Farmers of America | B29: 2016 | C29: 2016-09-19 | D29: Loans | E29: Revolving credit facility | F29: 18.9843846 | G29: 0.02920674553 | H29: BNP Paribas | I29: France | J29: Thomson Reuters Eikon, 'Tearsheet 3335235116', viewed in May 2020. | K29: Thomson Reuters | L29: Dairy
A30: Dairy Farmers of America | B30: 2016 | C30: 2016-09-19 | D30: Loans | E30: Revolving credit facility | F30: 18.9843846 | G30: 0.02920674553 | H30: Bank of America | I30: United States | J30: Thomson Reuters Eikon, 'Tearsheet 3335235116', viewed in May 2020. | K30: Thomson Reuters | L30: Dairy
A31: Dairy Farmers of America | B31: 2016 | C31: 2016-09-19 | D31: Loans | E31: Revolving credit facility | F31: 18.9843846 | G31: 0.02920674553 | H31: BMO Financial Group | I31: Canada | J31: Thomson Reuters Eikon, 'Tearsheet 3335235116', viewed in May 2020. | K31: Thomson Reuters | L31: Dairy
A32: Dairy Farmers of America | B32: 2016 | C32: 2016-09-19 | D32: Loans | E32: Revolving credit facility | F32: 18.9843846 | G32: 0.02920674553 | H32: Rabobank | I32: Netherlands | J32: Thomson Reuters Eikon, 'Tearsheet 3335235116', viewed in May 2020. | K32: Thomson Reuters | L32: Dairy
A33: Dairy Farmers of America | B33: 2016 | C33: 2016-09-19 | D33: Loans | E33: Revolving credit facility | F33: 18.9843846 | G33: 0.02920674553 | H33: M&T Bank | I33: United States | J33: Thomson Reuters Eikon, 'Tearsheet 3335235116', viewed in May 2020. | K33: Thomson Reuters | L33: Dairy
A34: Dairy Farmers of America | B34: 2016 | C34: 2016-09-19 | D34: Loans | E34: Revolving credit facility | F34: 18.9843846 | G34: 0.02920674553 | H34: PNC Financial Services | I34: United States | J34: Thomson Reuters Eikon, 'Tearsheet 3335235116', viewed in May 2020. | K34: Thomson Reuters | L34: Dairy
A35: Dairy Farmers of America | B35: 2016 | C35: 2016-09-19 | D35: Loans | E35: Revolving credit facility | F35: 18.9843846 | G35: 0.02920674553 | H35: Truist Financial | I35: United States | J35: Thomson Reuters Eikon, 'Tearsheet 3335235116', viewed in May 2020. | K35: Thomson Reuters | L35: Dairy
A36: Dairy Farmers of America | B36: 2016 | C36: 2016-09-19 | D36: Loans | E36: Revolving credit facility | F36: 18.9843846 | G36: 0.02920674553 | H36: UMB Financial Corporation | I36: United States | J36: Thomson Reuters Eikon, 'Tearsheet 3335235116', viewed in May 2020. | K36: Thomson Reuters | L36: Dairy
A37: Dairy Farmers of America | B37: 2016 | C37: 2016-09-19 | D37: Loans | E37: Revolving credit facility | F37: 18.9843846 | G37: 0.02920674553 | H37: US Bancorp | I37: United States | J37: Thomson Reuters Eikon, 'Tearsheet 3335235116', viewed in May 2020. | K37: Thomson Reuters | L37: Dairy
A38: Dairy Farmers of America | B38: 2018 | C38: 2018-11-16 | D38: Loans | E38: Revolving credit facility | F38: 121.875 | G38: 0.1875 | H38: Bank of America | I38: United States | J38: Thomson Reuters Eikon, 'Tearsheet 3741042116', viewed in May 2020. | K38: Thomson Reuters | L38: Dairy
A39: Dairy Farmers of America | B39: 2018 | C39: 2018-11-16 | D39: Loans | E39: Revolving credit facility | F39: 121.875 | G39: 0.1875 | H39: Farm Credit Services Commercial Finance Group | I39: United States | J39: Thomson Reuters Eikon, 'Tearsheet 3741042116', viewed in May 2020. | K39: Thomson Reuters | L39: Dairy
A40: Dairy Farmers of America | B40: 2018 | C40: 2018-11-16 | D40: Loans | E40: Revolving credit facility | F40: 121.875 | G40: 0.1875 | H40: US Bancorp | I40: United States | J40: Thomson Reuters Eikon, 'Tearsheet 3741042116', viewed in May 2020. | K40: Thomson Reuters | L40: Dairy
A41: Dairy Farmers of America | B41: 2018 | C41: 2018-11-16 | D41: Loans | E41: Revolving credit facility | F41: 121.875 | G41: 0.1875 | H41: Wells Fargo | I41: United States | J41: Thomson Reuters Eikon, 'Tearsheet 3741042116', viewed in May 2020. | K41: Thomson Reuters | L41: Dairy
A42: Dairy Farmers of America | B42: 2018 | C42: 2018-11-16 | D42: Loans | E42: Revolving credit facility | F42: 54.16666667 | G42: 0.08333333333 | H42: BNP Paribas | I42: France | J42: Thomson Reuters Eikon, 'Tearsheet 3741042116', viewed in May 2020. | K42: Thomson Reuters | L42: Dairy
A43: Dairy Farmers of America | B43: 2018 | C43: 2018-11-16 | D43: Loans | E43: Revolving credit facility | F43: 54.16666667 | G43: 0.08333333333 | H43: JPMorgan Chase | I43: United States | J43: Thomson Reuters Eikon, 'Tearsheet 3741042116', viewed in May 2020. | K43: Thomson Reuters | L43: Dairy
A44: Dairy Farmers of America | B44: 2018 | C44: 2018-11-16 | D44: Loans | E44: Revolving credit facility | F44: 54.16666667 | G44: 0.08333333333 | H44: M&T Bank | I44: United States | J44: Thomson Reuters Eikon, 'Tearsheet 3741042116', viewed in May 2020. | K44: Thomson Reuters | L44: Dairy
A45: Dairy Farmers of America | B45: 2018 | C45: 2018-11-16 | D45: Loans | E45: Corporate loan | F45: 50 | G45: 0.25 | H45: Bank of America | I45: United States | J45: Thomson Reuters Eikon, 'Tearsheet 3741044116', viewed in May 2020. | K45: Thomson Reuters | L45: Dairy
A46: Dairy Farmers of America | B46: 2018 | C46: 2018-11-16 | D46: Loans | E46: Corporate loan | F46: 50 | G46: 0.25 | H46: US Bancorp | I46: United States | J46: Thomson Reuters Eikon, 'Tearsheet 3741044116', viewed in May 2020. | K46: Thomson Reuters | L46: Dairy
A47: Dairy Farmers of America | B47: 2018 | C47: 2018-11-16 | D47: Loans | E47: Corporate loan | F47: 50 | G47: 0.25 | H47: Wells Fargo | I47: United States | J47: Thomson Reuters Eikon, 'Tearsheet 3741044116', viewed in May 2020. | K47: Thomson Reuters | L47: Dairy
A48: Dairy Farmers of America | B48: 2018 | C48: 2018-11-16 | D48: Loans | E48: Corporate loan | F48: 16.66666667 | G48: 0.08333333333 | H48: BMO Financial Group | I48: Canada | J48: Thomson Reuters Eikon, 'Tearsheet 3741044116', viewed in May 2020. | K48: Thomson Reuters | L48: Dairy
A49: Dairy Farmers of America | B49: 2018 | C49: 2018-11-16 | D49: Loans | E49: Corporate loan | F49: 16.66666667 | G49: 0.08333333333 | H49: JPMorgan Chase | I49: United States | J49: Thomson Reuters Eikon, 'Tearsheet 3741044116', viewed in May 2020. | K49: Thomson Reuters | L49: Dairy
A50: Dairy Farmers of America | B50: 2018 | C50: 2018-11-16 | D50: Loans | E50: Corporate loan | F50: 16.66666667 | G50: 0.08333333333 | H50: M&T Bank | I50: United States | J50: Thomson Reuters Eikon, 'Tearsheet 3741044116', viewed in May 2020. | K50: Thomson Reuters | L50: Dairy
A51: Dairy Farmers of America | B51: 2019 | C51: 2019-10-25 | D51: Loans | E51: Revolving credit facility | F51: 121.875 | G51: 0.1875 | H51: Bank of America | I51: United States | J51: Thomson Reuters Eikon, 'Tearsheet 3909936116', viewed in May 2020. | K51: Thomson Reuters | L51: Dairy
A52: Dairy Farmers of America | B52: 2019 | C52: 2019-10-25 | D52: Loans | E52: Revolving credit facility | F52: 121.875 | G52: 0.1875 | H52: Farm Credit Services Commercial Finance Group | I52: United States | J52: Thomson Reuters Eikon, 'Tearsheet 3909936116', viewed in May 2020. | K52: Thomson Reuters | L52: Dairy
A53: Dairy Farmers of America | B53: 2019 | C53: 2019-10-25 | D53: Loans | E53: Revolving credit facility | F53: 121.875 | G53: 0.1875 | H53: US Bancorp | I53: United States | J53: Thomson Reuters Eikon, 'Tearsheet 3909936116', viewed in May 2020. | K53: Thomson Reuters | L53: Dairy
A54: Dairy Farmers of America | B54: 2019 | C54: 2019-10-25 | D54: Loans | E54: Revolving credit facility | F54: 121.875 | G54: 0.1875 | H54: Wells Fargo | I54: United States | J54: Thomson Reuters Eikon, 'Tearsheet 3909936116', viewed in May 2020. | K54: Thomson Reuters | L54: Dairy
A55: Dairy Farmers of America | B55: 2019 | C55: 2019-10-25 | D55: Loans | E55: Revolving credit facility | F55: 81.25 | G55: 0.125 | H55: BMO Financial Group | I55: Canada | J55: Thomson Reuters Eikon, 'Tearsheet 3909936116', viewed in May 2020. | K55: Thomson Reuters | L55: Dairy
A56: Dairy Farmers of America | B56: 2019 | C56: 2019-10-25 | D56: Loans | E56: Revolving credit facility | F56: 81.25 | G56: 0.125 | H56: JPMorgan Chase | I56: United States | J56: Thomson Reuters Eikon, 'Tearsheet 3909936116', viewed in May 2020. | K56: Thomson Reuters | L56: Dairy
A57: Dairy Farmers of America | B57: 2019 | C57: 2019-10-25 | D57: Loans | E57: Corporate loan | F57: 50 | G57: 0.25 | H57: Bank of America | I57: United States | J57: Thomson Reuters Eikon, 'Tearsheet 3909938116', viewed in May 2020. | K57: Thomson Reuters | L57: Dairy
A58: Dairy Farmers of America | B58: 2019 | C58: 2019-10-25 | D58: Loans | E58: Corporate loan | F58: 50 | G58: 0.25 | H58: US Bancorp | I58: United States | J58: Thomson Reuters Eikon, 'Tearsheet 3909938116', viewed in May 2020. | K58: Thomson Reuters | L58: Dairy
A59: Dairy Farmers of America | B59: 2019 | C59: 2019-10-25 | D59: Loans | E59: Corporate loan | F59: 50 | G59: 0.25 | H59: Wells Fargo | I59: United States | J59: Thomson Reuters Eikon, 'Tearsheet 3909938116', viewed in May 2020. | K59: Thomson Reuters | L59: Dairy
A60: Dairy Farmers of America | B60: 2019 | C60: 2019-10-25 | D60: Loans | E60: Corporate loan | F60: 25 | G60: 0.125 | H60: BMO Financial Group | I60: Canada | J60: Thomson Reuters Eikon, 'Tearsheet 3909938116', viewed in May 2020. | K60: Thomson Reuters | L60: Dairy
A61: Dairy Farmers of America | B61: 2019 | C61: 2019-10-25 | D61: Loans | E61: Corporate loan | F61: 25 | G61: 0.125 | H61: JPMorgan Chase | I61: United States | J61: Thomson Reuters Eikon, 'Tearsheet 3909938116', viewed in May 2020. | K61: Thomson Reuters | L61: Dairy
A62: Dairy Farmers of America | B62: 2014 | C62: 2014-10-24 | D62: Loans | E62: Revolving credit facility | F62: 243.75 | G62: 0.375 | H62: Farm Credit Services Commercial Finance Group | I62: United States | J62: Thomson Reuters Eikon, 'Tearsheet 7014207116', viewed in May 2020. | K62: Thomson Reuters | L62: Dairy
A63: Dairy Farmers of America | B63: 2014 | C63: 2014-10-24 | D63: Loans | E63: Revolving credit facility | F63: 243.75 | G63: 0.375 | H63: Wells Fargo | I63: United States | J63: Thomson Reuters Eikon, 'Tearsheet 7014207116', viewed in May 2020. | K63: Thomson Reuters | L63: Dairy
A64: Dairy Farmers of America | B64: 2014 | C64: 2014-10-24 | D64: Loans | E64: Revolving credit facility | F64: 32.5 | G64: 0.05 | H64: BMO Financial Group | I64: Canada | J64: Thomson Reuters Eikon, 'Tearsheet 7014207116', viewed in May 2020. | K64: Thomson Reuters | L64: Dairy
A65: Dairy Farmers of America | B65: 2014 | C65: 2014-10-24 | D65: Loans | E65: Revolving credit facility | F65: 32.5 | G65: 0.05 | H65: Bank of America | I65: United States | J65: Thomson Reuters Eikon, 'Tearsheet 7014207116', viewed in May 2020. | K65: Thomson Reuters | L65: Dairy
A66: Dairy Farmers of America | B66: 2014 | C66: 2014-10-24 | D66: Loans | E66: Revolving credit facility | F66: 32.5 | G66: 0.05 | H66: JPMorgan Chase | I66: United States | J66: Thomson Reuters Eikon, 'Tearsheet 7014207116', viewed in May 2020. | K66: Thomson Reuters | L66: Dairy
A67: Dairy Farmers of America | B67: 2014 | C67: 2014-10-24 | D67: Loans | E67: Revolving credit facility | F67: 32.5 | G67: 0.05 | H67: Truist Financial | I67: United States | J67: Thomson Reuters Eikon, 'Tearsheet 7014207116', viewed in May 2020. | K67: Thomson Reuters | L67: Dairy
A68: Dairy Farmers of America | B68: 2014 | C68: 2014-10-24 | D68: Loans | E68: Revolving credit facility | F68: 32.5 | G68: 0.05 | H68: US Bancorp | I68: United States | J68: Thomson Reuters Eikon, 'Tearsheet 7014207116', viewed in May 2020. | K68: Thomson Reuters | L68: Dairy
A69: Danone | B69: 2012 | C69: 2012-10-12 | D69: Loans | E69: Revolving credit facility | F69: 106.25 | G69: 0.125 | H69: Bank of America | I69: United States | J69: Thomson Reuters Eikon, 'Tearsheet 2903976116', viewed in May 2020. | K69: Thomson Reuters | L69: Dairy
A70: Danone | B70: 2012 | C70: 2012-10-12 | D70: Loans | E70: Revolving credit facility | F70: 106.25 | G70: 0.125 | H70: Farm Credit Services Commercial Finance Group | I70: United States | J70: Thomson Reuters Eikon, 'Tearsheet 2903976116', viewed in May 2020. | K70: Thomson Reuters | L70: Dairy
A71: Danone | B71: 2012 | C71: 2012-10-12 | D71: Loans | E71: Revolving credit facility | F71: 106.25 | G71: 0.125 | H71: Rabobank | I71: Netherlands | J71: Thomson Reuters Eikon, 'Tearsheet 2903976116', viewed in May 2020. | K71: Thomson Reuters | L71: Dairy
A72: Danone | B72: 2012 | C72: 2012-10-12 | D72: Loans | E72: Revolving credit facility | F72: 106.25 | G72: 0.125 | H72: JPMorgan Chase | I72: United States | J72: Thomson Reuters Eikon, 'Tearsheet 2903976116', viewed in May 2020. | K72: Thomson Reuters | L72: Dairy
A73: Danone | B73: 2012 | C73: 2012-10-12 | D73: Loans | E73: Revolving credit facility | F73: 106.25 | G73: 0.125 | H73: Truist Financial | I73: United States | J73: Thomson Reuters Eikon, 'Tearsheet 2903976116', viewed in May 2020. | K73: Thomson Reuters | L73: Dairy
A74: Danone | B74: 2012 | C74: 2012-10-12 | D74: Loans | E74: Revolving credit facility | F74: 106.25 | G74: 0.125 | H74: Wells Fargo | I74: United States | J74: Thomson Reuters Eikon, 'Tearsheet 2903976116', viewed in May 2020. | K74: Thomson Reuters | L74: Dairy
A75: Danone | B75: 2012 | C75: 2012-10-12 | D75: Loans | E75: Revolving credit facility | F75: 19.31818182 | G75: 0.02272727273 | H75: BMO Financial Group | I75: Canada | J75: Thomson Reuters Eikon, 'Tearsheet 2903976116', viewed in May 2020. | K75: Thomson Reuters | L75: Dairy
A76: Danone | B76: 2012 | C76: 2012-10-12 | D76: Loans | E76: Revolving credit facility | F76: 19.31818182 | G76: 0.02272727273 | H76: Mitsubishi UFJ Financial | I76: Japan | J76: Thomson Reuters Eikon, 'Tearsheet 2903976116', viewed in May 2020. | K76: Thomson Reuters | L76: Dairy
A77: Danone | B77: 2012 | C77: 2012-10-12 | D77: Loans | E77: Revolving credit facility | F77: 19.31818182 | G77: 0.02272727273 | H77: Crédit Agricole | I77: France | J77: Thomson Reuters Eikon, 'Tearsheet 2903976116', viewed in May 2020. | K77: Thomson Reuters | L77: Dairy
A78: Danone | B78: 2012 | C78: 2012-10-12 | D78: Loans | E78: Revolving credit facility | F78: 19.31818182 | G78: 0.02272727273 | H78: Credit Suisse | I78: Switzerland | J78: Thomson Reuters Eikon, 'Tearsheet 2903976116', viewed in May 2020. | K78: Thomson Reuters | L78: Dairy
A79: Danone | B79: 2012 | C79: 2012-10-12 | D79: Loans | E79: Revolving credit facility | F79: 19.31818182 | G79: 0.02272727273 | H79: First Midwest Bancorp | I79: United States | J79: Thomson Reuters Eikon, 'Tearsheet 2903976116', viewed in May 2020. | K79: Thomson Reuters | L79: Dairy
A80: Danone | B80: 2012 | C80: 2012-10-12 | D80: Loans | E80: Revolving credit facility | F80: 19.31818182 | G80: 0.02272727273 | H80: HSBC | I80: United Kingdom | J80: Thomson Reuters Eikon, 'Tearsheet 2903976116', viewed in May 2020. | K80: Thomson Reuters | L80: Dairy
A81: Danone | B81: 2012 | C81: 2012-10-12 | D81: Loans | E81: Revolving credit facility | F81: 19.31818182 | G81: 0.02272727273 | H81: KeyCorp | I81: United States | J81: Thomson Reuters Eikon, 'Tearsheet 2903976116', viewed in May 2020. | K81: Thomson Reuters | L81: Dairy
A82: Danone | B82: 2012 | C82: 2012-10-12 | D82: Loans | E82: Revolving credit facility | F82: 19.31818182 | G82: 0.02272727273 | H82: Northern Trust | I82: United States | J82: Thomson Reuters Eikon, 'Tearsheet 2903976116', viewed in May 2020. | K82: Thomson Reuters | L82: Dairy
A83: Danone | B83: 2012 | C83: 2012-10-12 | D83: Loans | E83: Revolving credit facility | F83: 19.31818182 | G83: 0.02272727273 | H83: PNC Financial Services | I83: United States | J83: Thomson Reuters Eikon, 'Tearsheet 2903976116', viewed in May 2020. | K83: Thomson Reuters | L83: Dairy
A84: Danone | B84: 2012 | C84: 2012-10-12 | D84: Loans | E84: Revolving credit facility | F84: 19.31818182 | G84: 0.02272727273 | H84: SMBC Group | I84: Japan | J84: Thomson Reuters Eikon, 'Tearsheet 2903976116', viewed in May 2020. | K84: Thomson Reuters | L84: Dairy
A85: Danone | B85: 2012 | C85: 2012-10-12 | D85: Loans | E85: Revolving credit facility | F85: 19.31818182 | G85: 0.02272727273 | H85: Toronto-Dominion Bank | I85: Canada | J85: Thomson Reuters Eikon, 'Tearsheet 2903976116', viewed in May 2020. | K85: Thomson Reuters | L85: Dairy
A86: Danone | B86: 2012 | C86: 2012-10-12 | D86: Loans | E86: Corporate loan | F86: 62.5 | G86: 0.125 | H86: Bank of America | I86: United States | J86: Thomson Reuters Eikon, 'Tearsheet 2903977116', viewed in May 2020. | K86: Thomson Reuters | L86: Dairy
A87: Danone | B87: 2012 | C87: 2012-10-12 | D87: Loans | E87: Corporate loan | F87: 62.5 | G87: 0.125 | H87: Farm Credit Services Commercial Finance Group | I87: United States | J87: Thomson Reuters Eikon, 'Tearsheet 2903977116', viewed in May 2020. | K87: Thomson Reuters | L87: Dairy
A88: Danone | B88: 2012 | C88: 2012-10-12 | D88: Loans | E88: Corporate loan | F88: 62.5 | G88: 0.125 | H88: Rabobank | I88: Netherlands | J88: Thomson Reuters Eikon, 'Tearsheet 2903977116', viewed in May 2020. | K88: Thomson Reuters | L88: Dairy
A89: Danone | B89: 2012 | C89: 2012-10-12 | D89: Loans | E89: Corporate loan | F89: 62.5 | G89: 0.125 | H89: JPMorgan Chase | I89: United States | J89: Thomson Reuters Eikon, 'Tearsheet 2903977116', viewed in May 2020. | K89: Thomson Reuters | L89: Dairy
A90: Danone | B90: 2012 | C90: 2012-10-12 | D90: Loans | E90: Corporate loan | F90: 62.5 | G90: 0.125 | H90: Truist Financial | I90: United States | J90: Thomson Reuters Eikon, 'Tearsheet 2903977116', viewed in May 2020. | K90: Thomson Reuters | L90: Dairy
A91: Danone | B91: 2012 | C91: 2012-10-12 | D91: Loans | E91: Corporate loan | F91: 62.5 | G91: 0.125 | H91: Wells Fargo | I91: United States | J91: Thomson Reuters Eikon, 'Tearsheet 2903977116', viewed in May 2020. | K91: Thomson Reuters | L91: Dairy
A92: Danone | B92: 2012 | C92: 2012-10-12 | D92: Loans | E92: Corporate loan | F92: 11.36363636 | G92: 0.02272727273 | H92: BMO Financial Group | I92: Canada | J92: Thomson Reuters Eikon, 'Tearsheet 2903977116', viewed in May 2020. | K92: Thomson Reuters | L92: Dairy
A93: Danone | B93: 2012 | C93: 2012-10-12 | D93: Loans | E93: Corporate loan | F93: 11.36363636 | G93: 0.02272727273 | H93: Mitsubishi UFJ Financial | I93: Japan | J93: Thomson Reuters Eikon, 'Tearsheet 2903977116', viewed in May 2020. | K93: Thomson Reuters | L93: Dairy
A94: Danone | B94: 2012 | C94: 2012-10-12 | D94: Loans | E94: Corporate loan | F94: 11.36363636 | G94: 0.02272727273 | H94: Crédit Agricole | I94: France | J94: Thomson Reuters Eikon, 'Tearsheet 2903977116', viewed in May 2020. | K94: Thomson Reuters | L94: Dairy
A95: Danone | B95: 2012 | C95: 2012-10-12 | D95: Loans | E95: Corporate loan | F95: 11.36363636 | G95: 0.02272727273 | H95: Credit Suisse | I95: Switzerland | J95: Thomson Reuters Eikon, 'Tearsheet 2903977116', viewed in May 2020. | K95: Thomson Reuters | L95: Dairy
A96: Danone | B96: 2012 | C96: 2012-10-12 | D96: Loans | E96: Corporate loan | F96: 11.36363636 | G96: 0.02272727273 | H96: First Midwest Bancorp | I96: United States | J96: Thomson Reuters Eikon, 'Tearsheet 2903977116', viewed in May 2020. | K96: Thomson Reuters | L96: Dairy
A97: Danone | B97: 2012 | C97: 2012-10-12 | D97: Loans | E97: Corporate loan | F97: 11.36363636 | G97: 0.02272727273 | H97: HSBC | I97: United Kingdom | J97: Thomson Reuters Eikon, 'Tearsheet 2903977116', viewed in May 2020. | K97: Thomson Reuters | L97: Dairy
A98: Danone | B98: 2012 | C98: 2012-10-12 | D98: Loans | E98: Corporate loan | F98: 11.36363636 | G98: 0.02272727273 | H98: KeyCorp | I98: United States | J98: Thomson Reuters Eikon, 'Tearsheet 2903977116', viewed in May 2020. | K98: Thomson Reuters | L98: Dairy
A99: Danone | B99: 2012 | C99: 2012-10-12 | D99: Loans | E99: Corporate loan | F99: 11.36363636 | G99: 0.02272727273 | H99: Northern Trust | I99: United States | J99: Thomson Reuters Eikon, 'Tearsheet 2903977116', viewed in May 2020. | K99: Thomson Reuters | L99: Dairy
A100: Danone | B100: 2012 | C100: 2012-10-12 | D100: Loans | E100: Corporate loan | F100: 11.36363636 | G100: 0.02272727273 | H100: PNC Financial Services | I100: United States | J100: Thomson Reuters Eikon, 'Tearsheet 2903977116', viewed in May 2020. | K100: Thomson Reuters | L100: Dairy
A101: Danone | B101: 2012 | C101: 2012-10-12 | D101: Loans | E101: Corporate loan | F101: 11.36363636 | G101: 0.02272727273 | H101: SMBC Group | I101: Japan | J101: Thomson Reuters Eikon, 'Tearsheet 2903977116', viewed in May 2020. | K101: Thomson Reuters | L101: Dairy
A102: Danone | B102: 2012 | C102: 2012-10-12 | D102: Loans | E102: Corporate loan | F102: 11.36363636 | G102: 0.02272727273 | H102: Toronto-Dominion Bank | I102: Canada | J102: Thomson Reuters Eikon, 'Tearsheet 2903977116', viewed in May 2020. | K102: Thomson Reuters | L102: Dairy
A103: Dean Foods | B103: 2013 | C103: 2013-06-28 | D103: Loans | E103: Revolving credit facility | F103: 93.75 | G103: 0.125 | H103: Bank of America | I103: United States | J103: Thomson Reuters Eikon, 'Tearsheet 2989087116', viewed in May 2020. | K103: Thomson Reuters | L103: Dairy
A104: Dean Foods | B104: 2013 | C104: 2013-06-28 | D104: Loans | E104: Revolving credit facility | F104: 93.75 | G104: 0.125 | H104: Farm Credit Services Commercial Finance Group | I104: United States | J104: Thomson Reuters Eikon, 'Tearsheet 2989087116', viewed in May 2020. | K104: Thomson Reuters | L104: Dairy
A105: Dean Foods | B105: 2013 | C105: 2013-06-28 | D105: Loans | E105: Revolving credit facility | F105: 93.75 | G105: 0.125 | H105: Rabobank | I105: Netherlands | J105: Thomson Reuters Eikon, 'Tearsheet 2989087116', viewed in May 2020. | K105: Thomson Reuters | L105: Dairy
A106: Dean Foods | B106: 2013 | C106: 2013-06-28 | D106: Loans | E106: Revolving credit facility | F106: 93.75 | G106: 0.125 | H106: JPMorgan Chase | I106: United States | J106: Thomson Reuters Eikon, 'Tearsheet 2989087116', viewed in May 2020. | K106: Thomson Reuters | L106: Dairy
A107: Dean Foods | B107: 2013 | C107: 2013-06-28 | D107: Loans | E107: Revolving credit facility | F107: 93.75 | G107: 0.125 | H107: Truist Financial | I107: United States | J107: Thomson Reuters Eikon, 'Tearsheet 2989087116', viewed in May 2020. | K107: Thomson Reuters | L107: Dairy
A108: Dean Foods | B108: 2013 | C108: 2013-06-28 | D108: Loans | E108: Revolving credit facility | F108: 93.75 | G108: 0.125 | H108: Wells Fargo | I108: United States | J108: Thomson Reuters Eikon, 'Tearsheet 2989087116', viewed in May 2020. | K108: Thomson Reuters | L108: Dairy
A109: Dean Foods | B109: 2013 | C109: 2013-06-28 | D109: Loans | E109: Revolving credit facility | F109: 20.83333333 | G109: 0.02777777778 | H109: Mitsubishi UFJ Financial | I109: Japan | J109: Thomson Reuters Eikon, 'Tearsheet 2989087116', viewed in May 2020. | K109: Thomson Reuters | L109: Dairy
A110: Dean Foods | B110: 2013 | C110: 2013-06-28 | D110: Loans | E110: Revolving credit facility | F110: 20.83333333 | G110: 0.02777777778 | H110: Banco Bilbao Vizcaya Argentaria (BBVA) | I110: Spain | J110: Thomson Reuters Eikon, 'Tearsheet 2989087116', viewed in May 2020. | K110: Thomson Reuters | L110: Dairy
A111: Dean Foods | B111: 2013 | C111: 2013-06-28 | D111: Loans | E111: Revolving credit facility | F111: 20.83333333 | G111: 0.02777777778 | H111: Truist Financial | I111: United States | J111: Thomson Reuters Eikon, 'Tearsheet 2989087116', viewed in May 2020. | K111: Thomson Reuters | L111: Dairy
A112: Dean Foods | B112: 2013 | C112: 2013-06-28 | D112: Loans | E112: Revolving credit facility | F112: 20.83333333 | G112: 0.02777777778 | H112: Crédit Agricole | I112: France | J112: Thomson Reuters Eikon, 'Tearsheet 2989087116', viewed in May 2020. | K112: Thomson Reuters | L112: Dairy
A113: Dean Foods | B113: 2013 | C113: 2013-06-28 | D113: Loans | E113: Revolving credit facility | F113: 20.83333333 | G113: 0.02777777778 | H113: Credit Suisse | I113: Switzerland | J113: Thomson Reuters Eikon, 'Tearsheet 2989087116', viewed in May 2020. | K113: Thomson Reuters | L113: Dairy
A114: Dean Foods | B114: 2013 | C114: 2013-06-28 | D114: Loans | E114: Revolving credit facility | F114: 20.83333333 | G114: 0.02777777778 | H114: HSBC | I114: United Kingdom | J114: Thomson Reuters Eikon, 'Tearsheet 2989087116', viewed in May 2020. | K114: Thomson Reuters | L114: Dairy
A115: Dean Foods | B115: 2013 | C115: 2013-06-28 | D115: Loans | E115: Revolving credit facility | F115: 20.83333333 | G115: 0.02777777778 | H115: PNC Financial Services | I115: United States | J115: Thomson Reuters Eikon, 'Tearsheet 2989087116', viewed in May 2020. | K115: Thomson Reuters | L115: Dairy
A116: Dean Foods | B116: 2013 | C116: 2013-06-28 | D116: Loans | E116: Revolving credit facility | F116: 20.83333333 | G116: 0.02777777778 | H116: Regions Financial | I116: United States | J116: Thomson Reuters Eikon, 'Tearsheet 2989087116', viewed in May 2020. | K116: Thomson Reuters | L116: Dairy
A117: Dean Foods | B117: 2013 | C117: 2013-06-28 | D117: Loans | E117: Revolving credit facility | F117: 20.83333333 | G117: 0.02777777778 | H117: Scotiabank | I117: Canada | J117: Thomson Reuters Eikon, 'Tearsheet 2989087116', viewed in May 2020. | K117: Thomson Reuters | L117: Dairy
A118: Dean Foods | B118: 2017 | C118: 2017-01-04 | D118: Loans | E118: Revolving credit facility | F118: 45 | G118: 0.1 | H118: Bank of America | I118: United States | J118: Thomson Reuters Eikon, 'Tearsheet 3395210116', viewed in May 2020. | K118: Thomson Reuters | L118: Dairy
A119: Dean Foods | B119: 2017 | C119: 2017-01-04 | D119: Loans | E119: Revolving credit facility | F119: 35 | G119: 0.07777777778 | H119: Farm Credit Services Commercial Finance Group | I119: United States | J119: Thomson Reuters Eikon, 'Tearsheet 3395210116', viewed in May 2020. | K119: Thomson Reuters | L119: Dairy
A120: Dean Foods | B120: 2017 | C120: 2017-01-04 | D120: Loans | E120: Revolving credit facility | F120: 35 | G120: 0.07777777778 | H120: Rabobank | I120: Netherlands | J120: Thomson Reuters Eikon, 'Tearsheet 3395210116', viewed in May 2020. | K120: Thomson Reuters | L120: Dairy
A121: Dean Foods | B121: 2017 | C121: 2017-01-04 | D121: Loans | E121: Revolving credit facility | F121: 45 | G121: 0.1 | H121: JPMorgan Chase | I121: United States | J121: Thomson Reuters Eikon, 'Tearsheet 3395210116', viewed in May 2020. | K121: Thomson Reuters | L121: Dairy
A122: Dean Foods | B122: 2017 | C122: 2017-01-04 | D122: Loans | E122: Revolving credit facility | F122: 35 | G122: 0.07777777778 | H122: PNC Financial Services | I122: United States | J122: Thomson Reuters Eikon, 'Tearsheet 3395210116', viewed in May 2020. | K122: Thomson Reuters | L122: Dairy
A123: Dean Foods | B123: 2017 | C123: 2017-01-04 | D123: Loans | E123: Revolving credit facility | F123: 10 | G123: 0.02222222222 | H123: Compeer Financial | I123: United States | J123: Thomson Reuters Eikon, 'Tearsheet 3395210116', viewed in May 2020. | K123: Thomson Reuters | L123: Dairy
A124: Dean Foods | B124: 2017 | C124: 2017-01-04 | D124: Loans | E124: Revolving credit facility | F124: 20 | G124: 0.04444444444 | H124: Farm Credit Services Commercial Finance Group | I124: United States | J124: Thomson Reuters Eikon, 'Tearsheet 3395210116', viewed in May 2020. | K124: Thomson Reuters | L124: Dairy
A125: Dean Foods | B125: 2017 | C125: 2017-01-04 | D125: Loans | E125: Revolving credit facility | F125: 17 | G125: 0.03777777778 | H125: Compeer Financial | I125: United States | J125: Thomson Reuters Eikon, 'Tearsheet 3395210116', viewed in May 2020. | K125: Thomson Reuters | L125: Dairy
A126: Dean Foods | B126: 2017 | C126: 2017-01-04 | D126: Loans | E126: Revolving credit facility | F126: 10 | G126: 0.02222222222 | H126: Farm Credit Services Commercial Finance Group | I126: United States | J126: Thomson Reuters Eikon, 'Tearsheet 3395210116', viewed in May 2020. | K126: Thomson Reuters | L126: Dairy
A127: Dean Foods | B127: 2017 | C127: 2017-01-04 | D127: Loans | E127: Revolving credit facility | F127: 25 | G127: 0.05555555556 | H127: BNP Paribas | I127: France | J127: Thomson Reuters Eikon, 'Tearsheet 3395210116', viewed in May 2020. | K127: Thomson Reuters | L127: Dairy
A128: Dean Foods | B128: 2017 | C128: 2017-01-04 | D128: Loans | E128: Revolving credit facility | F128: 25 | G128: 0.05555555556 | H128: Truist Financial | I128: United States | J128: Thomson Reuters Eikon, 'Tearsheet 3395210116', viewed in May 2020. | K128: Thomson Reuters | L128: Dairy
A129: Dean Foods | B129: 2017 | C129: 2017-01-04 | D129: Loans | E129: Revolving credit facility | F129: 17 | G129: 0.03777777778 | H129: Farm Credit Services Commercial Finance Group | I129: United States | J129: Thomson Reuters Eikon, 'Tearsheet 3395210116', viewed in May 2020. | K129: Thomson Reuters | L129: Dairy
A130: Dean Foods | B130: 2017 | C130: 2017-01-04 | D130: Loans | E130: Revolving credit facility | F130: 9 | G130: 0.02 | H130: Farm Credit Services Commercial Finance Group | I130: United States | J130: Thomson Reuters Eikon, 'Tearsheet 3395210116', viewed in May 2020. | K130: Thomson Reuters | L130: Dairy
A131: Dean Foods | B131: 2017 | C131: 2017-01-04 | D131: Loans | E131: Revolving credit facility | F131: 27.5 | G131: 0.06111111111 | H131: Fifth Third Bancorp | I131: United States | J131: Thomson Reuters Eikon, 'Tearsheet 3395210116', viewed in May 2020. | K131: Thomson Reuters | L131: Dairy
A132: Dean Foods | B132: 2017 | C132: 2017-01-04 | D132: Loans | E132: Revolving credit facility | F132: 5 | G132: 0.01111111111 | H132: Northern Trust | I132: United States | J132: Thomson Reuters Eikon, 'Tearsheet 3395210116', viewed in May 2020. | K132: Thomson Reuters | L132: Dairy
A133: Dean Foods | B133: 2017 | C133: 2017-01-04 | D133: Loans | E133: Revolving credit facility | F133: 20 | G133: 0.04444444444 | H133: Regions Financial | I133: United States | J133: Thomson Reuters Eikon, 'Tearsheet 3395210116', viewed in May 2020. | K133: Thomson Reuters | L133: Dairy
A134: Dean Foods | B134: 2017 | C134: 2017-01-04 | D134: Loans | E134: Revolving credit facility | F134: 27.5 | G134: 0.06111111111 | H134: Truist Financial | I134: United States | J134: Thomson Reuters Eikon, 'Tearsheet 3395210116', viewed in May 2020. | K134: Thomson Reuters | L134: Dairy
A135: Dean Foods | B135: 2017 | C135: 2017-01-04 | D135: Loans | E135: Revolving credit facility | F135: 17 | G135: 0.03777777778 | H135: United Finance | I135: Bangladesh | J135: Thomson Reuters Eikon, 'Tearsheet 3395210116', viewed in May 2020. | K135: Thomson Reuters | L135: Dairy
A136: Dean Foods | B136: 2017 | C136: 2017-01-04 | D136: Loans | E136: Revolving credit facility | F136: 25 | G136: 0.05555555556 | H136: Wells Fargo | I136: United States | J136: Thomson Reuters Eikon, 'Tearsheet 3395210116', viewed in May 2020. | K136: Thomson Reuters | L136: Dairy
A137: Dean Foods | B137: 2015 | C137: 2015-03-17 | D137: Loans | E137: Revolving credit facility | F137: 35 | G137: 0.07777777778 | H137: Bank of America | I137: United States | J137: Thomson Reuters Eikon, 'Tearsheet 3504990116', viewed in May 2020. | K137: Thomson Reuters | L137: Dairy
A138: Dean Foods | B138: 2015 | C138: 2015-03-17 | D138: Loans | E138: Revolving credit facility | F138: 35 | G138: 0.07777777778 | H138: Farm Credit Services Commercial Finance Group | I138: United States | J138: Thomson Reuters Eikon, 'Tearsheet 3504990116', viewed in May 2020. | K138: Thomson Reuters | L138: Dairy
A139: Dean Foods | B139: 2015 | C139: 2015-03-17 | D139: Loans | E139: Revolving credit facility | F139: 35 | G139: 0.07777777778 | H139: JPMorgan Chase | I139: United States | J139: Thomson Reuters Eikon, 'Tearsheet 3504990116', viewed in May 2020. | K139: Thomson Reuters | L139: Dairy
A140: Dean Foods | B140: 2015 | C140: 2015-03-17 | D140: Loans | E140: Revolving credit facility | F140: 35 | G140: 0.07777777778 | H140: Morgan Stanley | I140: United States | J140: Thomson Reuters Eikon, 'Tearsheet 3504990116', viewed in May 2020. | K140: Thomson Reuters | L140: Dairy
A141: Dean Foods | B141: 2015 | C141: 2015-03-17 | D141: Loans | E141: Revolving credit facility | F141: 30 | G141: 0.06666666667 | H141: PNC Financial Services | I141: United States | J141: Thomson Reuters Eikon, 'Tearsheet 3504990116', viewed in May 2020. | K141: Thomson Reuters | L141: Dairy
A142: Dean Foods | B142: 2015 | C142: 2015-03-17 | D142: Loans | E142: Revolving credit facility | F142: 30 | G142: 0.06666666667 | H142: Rabobank | I142: Netherlands | J142: Thomson Reuters Eikon, 'Tearsheet 3504990116', viewed in May 2020. | K142: Thomson Reuters | L142: Dairy
A143: Dean Foods | B143: 2015 | C143: 2015-03-17 | D143: Loans | E143: Revolving credit facility | F143: 30 | G143: 0.06666666667 | H143: Truist Financial | I143: United States | J143: Thomson Reuters Eikon, 'Tearsheet 3504990116', viewed in May 2020. | K143: Thomson Reuters | L143: Dairy
A144: Dean Foods | B144: 2015 | C144: 2015-03-17 | D144: Loans | E144: Revolving credit facility | F144: 20 | G144: 0.04444444444 | H144: Farm Credit Services Commercial Finance Group | I144: United States | J144: Thomson Reuters Eikon, 'Tearsheet 3504990116', viewed in May 2020. | K144: Thomson Reuters | L144: Dairy
A145: Dean Foods | B145: 2015 | C145: 2015-03-17 | D145: Loans | E145: Revolving credit facility | F145: 17 | G145: 0.03777777778 | H145: Compeer Financial | I145: United States | J145: Thomson Reuters Eikon, 'Tearsheet 3504990116', viewed in May 2020. | K145: Thomson Reuters | L145: Dairy
A146: Dean Foods | B146: 2015 | C146: 2015-03-17 | D146: Loans | E146: Revolving credit facility | F146: 20 | G146: 0.04444444444 | H146: Farm Credit Services Commercial Finance Group | I146: United States | J146: Thomson Reuters Eikon, 'Tearsheet 3504990116', viewed in May 2020. | K146: Thomson Reuters | L146: Dairy
A147: Dean Foods | B147: 2015 | C147: 2015-03-17 | D147: Loans | E147: Revolving credit facility | F147: 25 | G147: 0.05555555556 | H147: BNP Paribas | I147: France | J147: Thomson Reuters Eikon, 'Tearsheet 3504990116', viewed in May 2020. | K147: Thomson Reuters | L147: Dairy
A148: Dean Foods | B148: 2015 | C148: 2015-03-17 | D148: Loans | E148: Revolving credit facility | F148: 25 | G148: 0.05555555556 | H148: Truist Financial | I148: United States | J148: Thomson Reuters Eikon, 'Tearsheet 3504990116', viewed in May 2020. | K148: Thomson Reuters | L148: Dairy
A149: Dean Foods | B149: 2015 | C149: 2015-03-17 | D149: Loans | E149: Revolving credit facility | F149: 30 | G149: 0.06666666667 | H149: Crédit Agricole | I149: France | J149: Thomson Reuters Eikon, 'Tearsheet 3504990116', viewed in May 2020. | K149: Thomson Reuters | L149: Dairy
A150: Dean Foods | B150: 2015 | C150: 2015-03-17 | D150: Loans | E150: Revolving credit facility | F150: 17 | G150: 0.03777777778 | H150: Farm Credit Services Commercial Finance Group | I150: United States | J150: Thomson Reuters Eikon, 'Tearsheet 3504990116', viewed in May 2020. | K150: Thomson Reuters | L150: Dairy
A151: Dean Foods | B151: 2015 | C151: 2015-03-17 | D151: Loans | E151: Revolving credit facility | F151: 9 | G151: 0.02 | H151: Farm Credit Services Commercial Finance Group | I151: United States | J151: Thomson Reuters Eikon, 'Tearsheet 3504990116', viewed in May 2020. | K151: Thomson Reuters | L151: Dairy
A152: Dean Foods | B152: 2015 | C152: 2015-03-17 | D152: Loans | E152: Revolving credit facility | F152: 25 | G152: 0.05555555556 | H152: Fifth Third Bancorp | I152: United States | J152: Thomson Reuters Eikon, 'Tearsheet 3504990116', viewed in May 2020. | K152: Thomson Reuters | L152: Dairy
A153: Dean Foods | B153: 2015 | C153: 2015-03-17 | D153: Loans | E153: Revolving credit facility | F153: 5 | G153: 0.01111111111 | H153: Northern Trust | I153: United States | J153: Thomson Reuters Eikon, 'Tearsheet 3504990116', viewed in May 2020. | K153: Thomson Reuters | L153: Dairy
A154: Dean Foods | B154: 2015 | C154: 2015-03-17 | D154: Loans | E154: Revolving credit facility | F154: 10 | G154: 0.02222222222 | H154: Regions Financial | I154: United States | J154: Thomson Reuters Eikon, 'Tearsheet 3504990116', viewed in May 2020. | K154: Thomson Reuters | L154: Dairy
A155: Dean Foods | B155: 2015 | C155: 2015-03-17 | D155: Loans | E155: Revolving credit facility | F155: 17 | G155: 0.03777777778 | H155: United Finance | I155: Bangladesh | J155: Thomson Reuters Eikon, 'Tearsheet 3504990116', viewed in May 2020. | K155: Thomson Reuters | L155: Dairy
A156: Dean Foods | B156: 2019 | C156: 2019-02-22 | D156: Loans | E156: Revolving credit facility | F156: 66.25 | G156: 0.25 | H156: BMO Financial Group | I156: Canada | J156: Thomson Reuters Eikon, 'Tearsheet 3785110116', viewed in May 2020. | K156: Thomson Reuters | L156: Dairy
A157: Dean Foods | B157: 2019 | C157: 2019-02-22 | D157: Loans | E157: Revolving credit facility | F157: 66.25 | G157: 0.25 | H157: Rabobank | I157: Netherlands | J157: Thomson Reuters Eikon, 'Tearsheet 3785110116', viewed in May 2020. | K157: Thomson Reuters | L157: Dairy
A158: Dean Foods | B158: 2019 | C158: 2019-02-22 | D158: Loans | E158: Revolving credit facility | F158: 66.25 | G158: 0.25 | H158: PNC Financial Services | I158: United States | J158: Thomson Reuters Eikon, 'Tearsheet 3785110116', viewed in May 2020. | K158: Thomson Reuters | L158: Dairy
A159: Dean Foods | B159: 2019 | C159: 2019-02-22 | D159: Loans | E159: Revolving credit facility | F159: 33.125 | G159: 0.125 | H159: Farm Credit Services Commercial Finance Group | I159: United States | J159: Thomson Reuters Eikon, 'Tearsheet 3785110116', viewed in May 2020. | K159: Thomson Reuters | L159: Dairy
A160: Dean Foods | B160: 2019 | C160: 2019-02-22 | D160: Loans | E160: Revolving credit facility | F160: 33.125 | G160: 0.125 | H160: ING Group | I160: Netherlands | J160: Thomson Reuters Eikon, 'Tearsheet 3785110116', viewed in May 2020. | K160: Thomson Reuters | L160: Dairy
A161: Dean Foods | B161: 2019 | C161: 2019-11-12 | D161: Loans | E161: Corporate loan | F161: 26.97142857 | G161: 0.1428571429 | H161: Ares Management | I161: United States | J161: Thomson Reuters Eikon, 'Tearsheet 3913940116', viewed in May 2020. | K161: Thomson Reuters | L161: Dairy
A162: Dean Foods | B162: 2019 | C162: 2019-11-12 | D162: Loans | E162: Corporate loan | F162: 26.97142857 | G162: 0.1428571429 | H162: BMO Financial Group | I162: Canada | J162: Thomson Reuters Eikon, 'Tearsheet 3913940116', viewed in May 2020. | K162: Thomson Reuters | L162: Dairy
A163: Dean Foods | B163: 2019 | C163: 2019-11-12 | D163: Loans | E163: Corporate loan | F163: 26.97142857 | G163: 0.1428571429 | H163: CIT Group | I163: United States | J163: Thomson Reuters Eikon, 'Tearsheet 3913940116', viewed in May 2020. | K163: Thomson Reuters | L163: Dairy
A164: Dean Foods | B164: 2019 | C164: 2019-11-12 | D164: Loans | E164: Corporate loan | F164: 26.97142857 | G164: 0.1428571429 | H164: Farm Credit Services Commercial Finance Group | I164: United States | J164: Thomson Reuters Eikon, 'Tearsheet 3913940116', viewed in May 2020. | K164: Thomson Reuters | L164: Dairy
A165: Dean Foods | B165: 2019 | C165: 2019-11-12 | D165: Loans | E165: Corporate loan | F165: 26.97142857 | G165: 0.1428571429 | H165: Rabobank | I165: Netherlands | J165: Thomson Reuters Eikon, 'Tearsheet 3913940116', viewed in May 2020. | K165: Thomson Reuters | L165: Dairy
A166: Dean Foods | B166: 2019 | C166: 2019-11-12 | D166: Loans | E166: Corporate loan | F166: 26.97142857 | G166: 0.1428571429 | H166: ING Group | I166: Netherlands | J166: Thomson Reuters Eikon, 'Tearsheet 3913940116', viewed in May 2020. | K166: Thomson Reuters | L166: Dairy
A167: Dean Foods | B167: 2019 | C167: 2019-11-12 | D167: Loans | E167: Corporate loan | F167: 26.97142857 | G167: 0.1428571429 | H167: PNC Financial Services | I167: United States | J167: Thomson Reuters Eikon, 'Tearsheet 3913940116', viewed in May 2020. | K167: Thomson Reuters | L167: Dairy
A168: Dean Foods | B168: 2019 | C168: 2019-11-12 | D168: Loans | E168: Revolving credit facility | F168: 33.74285714 | G168: 0.1428571429 | H168: Ares Management | I168: United States | J168: Thomson Reuters Eikon, 'Tearsheet 3913941116', viewed in May 2020. | K168: Thomson Reuters | L168: Dairy
A169: Dean Foods | B169: 2019 | C169: 2019-11-12 | D169: Loans | E169: Revolving credit facility | F169: 33.74285714 | G169: 0.1428571429 | H169: BMO Financial Group | I169: Canada | J169: Thomson Reuters Eikon, 'Tearsheet 3913941116', viewed in May 2020. | K169: Thomson Reuters | L169: Dairy
A170: Dean Foods | B170: 2019 | C170: 2019-11-12 | D170: Loans | E170: Revolving credit facility | F170: 33.74285714 | G170: 0.1428571429 | H170: CIT Group | I170: United States | J170: Thomson Reuters Eikon, 'Tearsheet 3913941116', viewed in May 2020. | K170: Thomson Reuters | L170: Dairy
A171: Dean Foods | B171: 2019 | C171: 2019-11-12 | D171: Loans | E171: Revolving credit facility | F171: 33.74285714 | G171: 0.1428571429 | H171: Farm Credit Services Commercial Finance Group | I171: United States | J171: Thomson Reuters Eikon, 'Tearsheet 3913941116', viewed in May 2020. | K171: Thomson Reuters | L171: Dairy
A172: Dean Foods | B172: 2019 | C172: 2019-11-12 | D172: Loans | E172: Revolving credit facility | F172: 33.74285714 | G172: 0.1428571429 | H172: Rabobank | I172: Netherlands | J172: Thomson Reuters Eikon, 'Tearsheet 3913941116', viewed in May 2020. | K172: Thomson Reuters | L172: Dairy
A173: Dean Foods | B173: 2019 | C173: 2019-11-12 | D173: Loans | E173: Revolving credit facility | F173: 33.74285714 | G173: 0.1428571429 | H173: ING Group | I173: Netherlands | J173: Thomson Reuters Eikon, 'Tearsheet 3913941116', viewed in May 2020. | K173: Thomson Reuters | L173: Dairy
A174: Dean Foods | B174: 2019 | C174: 2019-11-12 | D174: Loans | E174: Revolving credit facility | F174: 33.74285714 | G174: 0.1428571429 | H174: PNC Financial Services | I174: United States | J174: Thomson Reuters Eikon, 'Tearsheet 3913941116', viewed in May 2020. | K174: Thomson Reuters | L174: Dairy
A175: Fonterra Co-operative Group Limited | B175: 2011 | C175: 2011-11-01 | D175: Loans | E175: Revolving credit facility | F175: 13.08333342 | G175: 0.3333333356 | H175: ANZ | I175: Australia | J175: Thomson Reuters Eikon, 'Tearsheet 2793402116', viewed in May 2020. | K175: Thomson Reuters | L175: Dairy
A176: Fonterra Co-operative Group Limited | B176: 2011 | C176: 2011-11-01 | D176: Loans | E176: Revolving credit facility | F176: 13.08333315 | G176: 0.3333333287 | H176: National Australia Bank | I176: Australia | J176: Thomson Reuters Eikon, 'Tearsheet 2793402116', viewed in May 2020. | K176: Thomson Reuters | L176: Dairy
A177: Fonterra Co-operative Group Limited | B177: 2011 | C177: 2011-11-01 | D177: Loans | E177: Revolving credit facility | F177: 13.08333342 | G177: 0.3333333356 | H177: Westpac | I177: Australia | J177: Thomson Reuters Eikon, 'Tearsheet 2793402116', viewed in May 2020. | K177: Thomson Reuters | L177: Dairy
A178: Fonterra Co-operative Group Limited | B178: 2011 | C178: 2011-11-01 | D178: Loans | E178: Revolving credit facility | F178: 104.6666656 | G178: 0.3333333299 | H178: ANZ | I178: Australia | J178: Thomson Reuters Eikon, 'Tearsheet 2793403116', viewed in May 2020. | K178: Thomson Reuters | L178: Dairy
A179: Fonterra Co-operative Group Limited | B179: 2011 | C179: 2011-11-01 | D179: Loans | E179: Revolving credit facility | F179: 104.6666688 | G179: 0.3333333403 | H179: National Australia Bank | I179: Australia | J179: Thomson Reuters Eikon, 'Tearsheet 2793403116', viewed in May 2020. | K179: Thomson Reuters | L179: Dairy
A180: Fonterra Co-operative Group Limited | B180: 2011 | C180: 2011-11-01 | D180: Loans | E180: Revolving credit facility | F180: 104.6666656 | G180: 0.3333333299 | H180: Westpac | I180: Australia | J180: Thomson Reuters Eikon, 'Tearsheet 2793403116', viewed in May 2020. | K180: Thomson Reuters | L180: Dairy
A181: Fonterra Co-operative Group Limited | B181: 2011 | C181: 2011-11-01 | D181: Loans | E181: Corporate loan | F181: 36.99 | G181: 0.1111111111 | H181: ANZ | I181: Australia | J181: Thomson Reuters Eikon, 'Tearsheet 2797927116', viewed in May 2020. | K181: Thomson Reuters | L181: Dairy
A182: Fonterra Co-operative Group Limited | B182: 2011 | C182: 2011-11-01 | D182: Loans | E182: Corporate loan | F182: 36.99 | G182: 0.1111111111 | H182: National Australia Bank | I182: Australia | J182: Thomson Reuters Eikon, 'Tearsheet 2797927116', viewed in May 2020. | K182: Thomson Reuters | L182: Dairy
A183: Fonterra Co-operative Group Limited | B183: 2011 | C183: 2011-11-01 | D183: Loans | E183: Corporate loan | F183: 36.99 | G183: 0.1111111111 | H183: Citigroup | I183: United States | J183: Thomson Reuters Eikon, 'Tearsheet 2797927116', viewed in May 2020. | K183: Thomson Reuters | L183: Dairy
A184: Fonterra Co-operative Group Limited | B184: 2011 | C184: 2011-11-01 | D184: Loans | E184: Corporate loan | F184: 36.99 | G184: 0.1111111111 | H184: Rabobank | I184: Netherlands | J184: Thomson Reuters Eikon, 'Tearsheet 2797927116', viewed in May 2020. | K184: Thomson Reuters | L184: Dairy
A185: Fonterra Co-operative Group Limited | B185: 2011 | C185: 2011-11-01 | D185: Loans | E185: Corporate loan | F185: 36.99 | G185: 0.1111111111 | H185: Deutsche Bank | I185: Germany | J185: Thomson Reuters Eikon, 'Tearsheet 2797927116', viewed in May 2020. | K185: Thomson Reuters | L185: Dairy
A186: Fonterra Co-operative Group Limited | B186: 2011 | C186: 2011-11-01 | D186: Loans | E186: Corporate loan | F186: 36.99 | G186: 0.1111111111 | H186: HSBC | I186: United Kingdom | J186: Thomson Reuters Eikon, 'Tearsheet 2797927116', viewed in May 2020. | K186: Thomson Reuters | L186: Dairy
A187: Fonterra Co-operative Group Limited | B187: 2011 | C187: 2011-11-01 | D187: Loans | E187: Corporate loan | F187: 36.99 | G187: 0.1111111111 | H187: JPMorgan Chase | I187: United States | J187: Thomson Reuters Eikon, 'Tearsheet 2797927116', viewed in May 2020. | K187: Thomson Reuters | L187: Dairy
A188: Fonterra Co-operative Group Limited | B188: 2011 | C188: 2011-11-01 | D188: Loans | E188: Corporate loan | F188: 36.99 | G188: 0.1111111111 | H188: Société Générale | I188: France | J188: Thomson Reuters Eikon, 'Tearsheet 2797927116', viewed in May 2020. | K188: Thomson Reuters | L188: Dairy
A189: Fonterra Co-operative Group Limited | B189: 2011 | C189: 2011-11-01 | D189: Loans | E189: Corporate loan | F189: 36.99 | G189: 0.1111111111 | H189: Westpac | I189: Australia | J189: Thomson Reuters Eikon, 'Tearsheet 2797927116', viewed in May 2020. | K189: Thomson Reuters | L189: Dairy
A190: Fonterra Co-operative Group Limited | B190: 2011 | C190: 2011-11-01 | D190: Loans | E190: Revolving credit facility | F190: 74.76 | G190: 0.1111111111 | H190: ANZ | I190: Australia | J190: Thomson Reuters Eikon, 'Tearsheet 2797929116', viewed in May 2020. | K190: Thomson Reuters | L190: Dairy
A191: Fonterra Co-operative Group Limited | B191: 2011 | C191: 2011-11-01 | D191: Loans | E191: Revolving credit facility | F191: 74.76 | G191: 0.1111111111 | H191: National Australia Bank | I191: Australia | J191: Thomson Reuters Eikon, 'Tearsheet 2797929116', viewed in May 2020. | K191: Thomson Reuters | L191: Dairy
A192: Fonterra Co-operative Group Limited | B192: 2011 | C192: 2011-11-01 | D192: Loans | E192: Revolving credit facility | F192: 74.76 | G192: 0.1111111111 | H192: Citigroup | I192: United States | J192: Thomson Reuters Eikon, 'Tearsheet 2797929116', viewed in May 2020. | K192: Thomson Reuters | L192: Dairy
A193: Fonterra Co-operative Group Limited | B193: 2011 | C193: 2011-11-01 | D193: Loans | E193: Revolving credit facility | F193: 74.76 | G193: 0.1111111111 | H193: Rabobank | I193: Netherlands | J193: Thomson Reuters Eikon, 'Tearsheet 2797929116', viewed in May 2020. | K193: Thomson Reuters | L193: Dairy
A194: Fonterra Co-operative Group Limited | B194: 2011 | C194: 2011-11-01 | D194: Loans | E194: Revolving credit facility | F194: 74.76 | G194: 0.1111111111 | H194: Deutsche Bank | I194: Germany | J194: Thomson Reuters Eikon, 'Tearsheet 2797929116', viewed in May 2020. | K194: Thomson Reuters | L194: Dairy
A195: Fonterra Co-operative Group Limited | B195: 2011 | C195: 2011-11-01 | D195: Loans | E195: Revolving credit facility | F195: 74.76 | G195: 0.1111111111 | H195: HSBC | I195: United Kingdom | J195: Thomson Reuters Eikon, 'Tearsheet 2797929116', viewed in May 2020. | K195: Thomson Reuters | L195: Dairy
A196: Fonterra Co-operative Group Limited | B196: 2011 | C196: 2011-11-01 | D196: Loans | E196: Revolving credit facility | F196: 74.76 | G196: 0.1111111111 | H196: JPMorgan Chase | I196: United States | J196: Thomson Reuters Eikon, 'Tearsheet 2797929116', viewed in May 2020. | K196: Thomson Reuters | L196: Dairy
A197: Fonterra Co-operative Group Limited | B197: 2011 | C197: 2011-11-01 | D197: Loans | E197: Revolving credit facility | F197: 74.76 | G197: 0.1111111111 | H197: Société Générale | I197: France | J197: Thomson Reuters Eikon, 'Tearsheet 2797929116', viewed in May 2020. | K197: Thomson Reuters | L197: Dairy
A198: Fonterra Co-operative Group Limited | B198: 2011 | C198: 2011-11-01 | D198: Loans | E198: Revolving credit facility | F198: 74.76 | G198: 0.1111111111 | H198: Westpac | I198: Australia | J198: Thomson Reuters Eikon, 'Tearsheet 2797929116', viewed in May 2020. | K198: Thomson Reuters | L198: Dairy
A199: Fonterra Co-operative Group Limited | B199: 2011 | C199: 2011-11-01 | D199: Loans | E199: Corporate loan | F199: 164.985 | G199: 0.2 | H199: ANZ | I199: Australia | J199: Thomson Reuters Eikon, 'Tearsheet 2797933116', viewed in May 2020. | K199: Thomson Reuters | L199: Dairy
A200: Fonterra Co-operative Group Limited | B200: 2011 | C200: 2011-11-01 | D200: Loans | E200: Corporate loan | F200: 164.985 | G200: 0.2 | H200: National Australia Bank | I200: Australia | J200: Thomson Reuters Eikon, 'Tearsheet 2797933116', viewed in May 2020. | K200: Thomson Reuters | L200: Dairy
... 6180 more rows

Sheet Scope
A1: Group | B1: RAW DATA - Ultimate Parent Name | C1: RAW DATA - Borrower Name | D1: In scope? | E1: Sector | F1: Note
A2: ABP Food Group | B2: ABP Food Group (Ireland) | C2: ABP Food Group (Ireland) | D2: Yes | E2: Meat
A3: Arab Company for Livestock Development | B3: Arab Company for Livestock Development (Saudi Arabia) | C3: Arab Company for Livestock Development (Saudi Arabia) | D3: Yes | E3: Meat
A4: Arla Foods | B4: Arla Foods (Denmark) | C4: Arla Foods (Denmark) | D4: Yes | E4: Dairy
A5: Arla Foods | B5: Arla Foods Finance A/S | C5: Arla Foods Finance A/S | D5: Yes | E5: Dairy | F5: Financial vehicle
A6: BRF | B6: Brf | C6: Brf | D6: Yes | E6: Meat
A7: BRF | B7: Brf - Brasil Foods Sa | C7: Brf - Brasil Foods Sa | D7: Yes | E7: Meat
A8: BRF | B8: Brf - Brasil Foods Sa, Itajai, Sc | C8: Brf - Brasil Foods Sa, Itajai, Sc | D8: Yes | E8: Meat
A9: BRF | B9: Brf Brasil Foods S A | C9: Brf Brasil Foods S A | D9: Yes | E9: Meat
A10: BRF | B10: Brf Brasil Foods Sa | C10: Brf Brasil Foods Sa | D10: Yes | E10: Meat
A11: BRF | B11: Brf Gmbh | C11: Brf Gmbh | D11: Yes | E11: Meat
A12: BRF | B12: Brf S.A. | C12: Brf S.A. | D12: Yes | E12: Meat
A13: BRF | B13: BRF S.A. (Brazil) | C13: BRF S.A. (Brazil) | D13: Yes | E13: Meat
A14: BRF | B14: BRF SA | C14: BRF SA | D14: Yes | E14: Meat
A15: BRF | B15: Brf Sa, Itajai, Sc | C15: Brf Sa, Itajai, Sc | D15: Yes | E15: Meat
A16: California Dairies | B16: California Dairies Inc | C16: California Dairies Inc | D16: Yes | E16: Dairy
A17: California Dairies | B17: California Dairies, Inc. (US) | C17: California Dairies, Inc. (US) | D17: Yes | E17: Dairy
A18: Cargill | B18: Albain Bidco Norway | C18: Albain Bidco Norway | D18: No | E18: Meat | F18: Renamed Ewos. Ewos is Cargill Aqua Nutrition's product and services brand.
A19: Cargill | B19: Cargill Agricola | C19: Cargill Agricola | D19: Yes | E19: Meat
A20: Cargill | B20: Cargill Agricola Sa | C20: Cargill Agricola Sa | D20: Yes | E20: Meat
A21: Cargill | B21: Cargill Americas Peru Sr | C21: Cargill Americas Peru Sr | D21: Yes | E21: Meat
A22: Cargill | B22: Cargill Asia Pacific Tre | C22: Cargill Asia Pacific Tre | D22: Yes | E22: Meat | F22: Financial vehicle
A23: Cargill | B23: Cargill Asia Pacific Treasu | C23: Cargill Asia Pacific Treasu | D23: Yes | E23: Meat | F23: Financial vehicle
A24: Cargill | B24: Cargill Asia Pacific Treasury | C24: Cargill Asia Pacific Treasury | D24: Yes | E24: Meat | F24: Financial vehicle
A25: Cargill | B25: Cargill Global Funding | C25: Cargill Global Funding | D25: Yes | E25: Meat | F25: Financial vehicle
A26: Cargill | B26: Cargill Global Funding Plc | C26: Cargill Global Funding Plc | D26: Yes | E26: Meat | F26: Financial vehicle
A27: Cargill | B27: Cargill Inc | C27: Cargill Inc | D27: Yes | E27: Meat
A28: Cargill | B28: Cargill Inc (Mtn) (Book Entry) | C28: Cargill Inc (Mtn) (Book Entry) | D28: Yes | E28: Meat
A29: Cargill | B29: Cargill, Inc. (US) | C29: Cargill, Inc. (US) | D29: Yes | E29: Meat
A30: Cargill | B30: Cemoi Group | C30: Cemoi Group | D30: No | E30: Meat | F30: Chocolate producer
A31: Cargill | B31: Horizon Milling Llc | C31: Horizon Milling Llc | D31: No | E31: Meat | F31: Flour
A32: Cargill | B32: Imc Global Inc | C32: Imc Global Inc | D32: No | E32: Meat | F32: Mining
A33: Cargill | B33: Nova Austral S.A. | C33: Nova Austral S.A. | D33: No | E33: Meat | F33: Salmon
A34: Cargill | B34: Nova Austral Sa | C34: Nova Austral Sa | D34: No | E34: Meat | F34: Salmon
A35: Cargill | B35: Pet Hungaria Kft | C35: Pet Hungaria Kft | D35: Yes | E35: Meat | F35: Pet food
A36: Cargill | B36: Sjc Bioenergia Sa | C36: Sjc Bioenergia Sa | D36: No | E36: Meat | F36: Energy
A37: Cargill | B37: Temco Llc | C37: Temco Llc | D37: Yes | E37: Meat | F37: Flour
A38: Cargill | B38: Teys Bros Pty Ltd | C38: Teys Bros Pty Ltd | D38: Yes | E38: Meat | F38: Meat processor
A39: Cargill | B39: The Mosaic Co | C39: The Mosaic Co | D39: Yes | E39: Meat | F39: Phosphate and potash
A40: Charoen Pokphand Group | B40: Bellisio Foods Inc | C40: Bellisio Foods Inc | D40: Yes | E40: Meat
A41: Charoen Pokphand Group | B41: Charoen Pokphand Foods | C41: Charoen Pokphand Foods | D41: Yes | E41: Meat
A42: Charoen Pokphand Group | B42: Charoen Pokphand Foods PCL | C42: Charoen Pokphand Foods PCL | D42: Yes | E42: Meat
A43: Charoen Pokphand Group | B43: Charoen Pokphand Group Co Ltd | C43: Charoen Pokphand Group Co Ltd | D43: Yes | E43: Meat
A44: Charoen Pokphand Group | B44: Charoen Pokphand Indonesia | C44: Charoen Pokphand Indonesia | D44: Yes | E44: Meat
A45: Charoen Pokphand Group | B45: Charoen Pokphand Industry Co Ltd | C45: Charoen Pokphand Industry Co Ltd | D45: Yes | E45: Meat
A46: Charoen Pokphand Group | B46: Cp Foods Holdings Ltd | C46: Cp Foods Holdings Ltd | D46: Yes | E46: Meat
A47: Charoen Pokphand Group | B47: CP Group (Thailand) | C47: CP Group (Thailand) | D47: Yes | E47: Meat
A48: Charoen Pokphand Group | B48: Cp Hldg(Bvi)Invest Co Ltd | C48: Cp Hldg(Bvi)Invest Co Ltd | D48: Yes | E48: Meat | F48: Financial vehicle
A49: Charoen Pokphand Group | B49: Cp Lotus Corp | C49: Cp Lotus Corp | D49: No | E49: Meat | F49: Supermarkets
A50: Charoen Pokphand Group | B50: Cp Pokphand Co Ltd | C50: Cp Pokphand Co Ltd | D50: Yes | E50: Meat
A51: Charoen Pokphand Group | B51: Cp Qiaoshang Property Dvlpmnt | C51: Cp Qiaoshang Property Dvlpmnt | D51: No | E51: Meat | F51: Real estate
A52: Charoen Pokphand Group | B52: Cpf (Thailand) Pcl | C52: Cpf (Thailand) Pcl | D52: Yes | E52: Meat
A53: Charoen Pokphand Group | B53: Cpf (Thailand) Public Company Limited | C53: Cpf (Thailand) Public Company Limited | D53: Yes | E53: Meat
A54: Charoen Pokphand Group | B54: Cpf Investment Ltd | C54: Cpf Investment Ltd | D54: Yes | E54: Meat
A55: Charoen Pokphand Group | B55: Cpf Netherlands Bv | C55: Cpf Netherlands Bv | D55: Yes | E55: Meat
A56: Charoen Pokphand Group | B56: Cpf Thailand Pcl | C56: Cpf Thailand Pcl | D56: Yes | E56: Meat
A57: Charoen Pokphand Group | B57: Ct Bright Holdings Ltd | C57: Ct Bright Holdings Ltd | D57: Yes | E57: Meat | F57: Holding
A58: Charoen Pokphand Group | B58: Hylife Ltd | C58: Hylife Ltd | D58: Yes | E58: Meat | F58: Pork producer
A59: Charoen Pokphand Group | B59: Shanghai Lotus Supermarket | C59: Shanghai Lotus Supermarket | D59: No | E59: Meat | F59: Supermarkets
A60: Charoen Pokphand Group | B60: Worth Access Trading Ltd | C60: Worth Access Trading Ltd | D60: Yes | E60: Meat | F60: Financial vehicle
A61: China Yurun Food Group Limited | B61: China Yurun Food Group Limited (China) | C61: China Yurun Food Group Limited (China) | D61: Yes | E61: Meat
A62: China Yurun Food Group Limited | B62: China Yurun Food Group Ltd | C62: China Yurun Food Group Ltd | D62: Yes | E62: Meat
A63: China Yurun Food Group Limited | B63: Nanjing Yurun Food Co Ltd | C63: Nanjing Yurun Food Co Ltd | D63: Yes | E63: Meat | F63: Meat
A64: Coren Group | B64: Coren Group (Spain) | C64: Coren Group (Spain) | D64: Yes | E64: Meat
A65: Dairy Farmers of America | B65: DairiConcepts LP | C65: DairiConcepts LP | D65: Yes | E65: Dairy | F65: Dairy
A66: Dairy Farmers of America | B66: Dairy Farmers Of America | C66: Dairy Farmers Of America | D66: Yes | E66: Dairy
A67: Dairy Farmers of America | B67: Dairy Farmers of America Coop | C67: Dairy Farmers of America Coop | D67: Yes | E67: Dairy
A68: Dairy Farmers of America | B68: Dairy Farmers Of America Inc | C68: Dairy Farmers Of America Inc | D68: Yes | E68: Dairy
A69: Dairy Farmers of America | B69: Dairy Farmers of America, Inc. (US) | C69: Dairy Farmers of America, Inc. (US) | D69: Yes | E69: Dairy
A70: Dairy Farmers of America | B70: National Dairy Holdings LP | C70: National Dairy Holdings LP | D70: Yes | E70: Dairy | F70: Dairy
A71: Danish Crown | B71: Danish Crown | C71: Danish Crown | D71: Yes | E71: Meat
A72: Danish Crown | B72: Danish Crown AmbA (Denmark) | C72: Danish Crown AmbA (Denmark) | D72: Yes | E72: Meat
A73: Danish Crown | B73: Danish Crown As | C73: Danish Crown As | D73: Yes | E73: Meat
A74: Danone | B74: Al Safi Danone For Dairy Pro | C74: Al Safi Danone For Dairy Pro | D74: Yes | E74: Dairy | F74: Dairy
A75: Danone | B75: Danone | C75: Danone | D75: Yes | E75: Dairy
A76: Danone | B76: Danone SA | C76: Danone SA | D76: Yes | E76: Dairy
A77: Danone | B77: Danone SA (France) | C77: Danone SA (France) | D77: Yes | E77: Dairy
A78: Danone | B78: Danone, Paris | C78: Danone, Paris | D78: Yes | E78: Dairy
A79: Danone | B79: The WhiteWave Foods Co | C79: The WhiteWave Foods Co | D79: Yes | E79: Dairy
A80: Danone | B80: Whitewave Foods Co | C80: Whitewave Foods Co | D80: Yes | E80: Dairy
A81: Dean Foods | B81: Danone | C81: Dean Foods (US) | D81: Yes | E81: Dairy
A82: Dean Foods | B82: Danone | C82: Dean Foods Co | D82: Yes | E82: Dairy
A83: Dean Foods | B83: Danone | C83: Dean Foods Co, Dallas, Tx | D83: Yes | E83: Dairy
A84: Dean Foods | B84: Danone | C84: Dean Foods Inc | D84: Yes | E84: Dairy
A85: Dean Foods | B85: Danone | C85: Dean Specialty Foods Group LLC | D85: Yes | E85: Dairy
A86: DMK Deutsches Milchkontor | B86: Dmk Deutsches Milchkonto | C86: Dmk Deutsches Milchkonto | D86: Yes | E86: Meat
A87: DMK Deutsches Milchkontor | B87: Dmk Deutsches Milchkontor | C87: Dmk Deutsches Milchkontor | D87: Yes | E87: Meat
A88: DMK Deutsches Milchkontor | B88: Dmk Deutsches Milchkontor Gmbh | C88: Dmk Deutsches Milchkontor Gmbh | D88: Yes | E88: Meat
A89: DMK Deutsches Milchkontor | B89: DMK Deutsches Milchkontor GmbH (Germany) | C89: DMK Deutsches Milchkontor GmbH (Germany) | D89: Yes | E89: Meat
A90: Fonterra Co-operative Group Limited | B90: DMV-Fonterra Excipients GmbH | C90: DMV-Fonterra Excipients GmbH | D90: No | E90: Dairy | F90: Pharmaceutical
A91: Fonterra Co-operative Group Limited | B91: Fonterra Co-operative Group | C91: Fonterra Co-operative Group | D91: Yes | E91: Dairy
A92: Fonterra Co-operative Group Limited | B92: Fonterra Co-operative Group Limited (New Zealand | C92: Fonterra Co-operative Group Limited (New Zealand | D92: Yes | E92: Dairy
A93: Fonterra Co-operative Group Limited | B93: Fonterra Co-Operative Group Ltd | C93: Fonterra Co-Operative Group Ltd | D93: Yes | E93: Dairy
A94: Fonterra Co-operative Group Limited | B94: Fonterra Cooperative Grp | C94: Fonterra Cooperative Grp | D94: Yes | E94: Dairy
A95: Fonterra Co-operative Group Limited | B95: Fonterra Co-operative Grp Ltd | C95: Fonterra Co-operative Grp Ltd | D95: Yes | E95: Dairy
A96: Fonterra Co-operative Group Limited | B96: New Zealand Milk (Australasia) Pty Ltd | C96: New Zealand Milk (Australasia) Pty Ltd | D96: Yes | E96: Dairy
A97: Fonterra Co-operative Group Limited | B97: New Zealand Milk Pty Ltd | C97: New Zealand Milk Pty Ltd | D97: Yes | E97: Dairy
A98: FrieslandCampina | B98: FrieslandCampina (Netherlands) | C98: FrieslandCampina (Netherlands) | D98: Yes | E98: Dairy
A99: FrieslandCampina | B99: Frieslandcampina Investments | C99: Frieslandcampina Investments | D99: Yes | E99: Dairy | F99: Financial vehicle
A100: FrieslandCampina | B100: Royal Frieslandcampina Nv | C100: Royal Frieslandcampina Nv | D100: Yes | E100: Dairy | F100: Dairy
A101: Groupe Bigard | B101: Groupe Bigard SA | C101: Groupe Bigard SA | D101: Yes | E101: Meat
A102: Groupe Bigard | B102: Groupe Bigard SA (France) | C102: Groupe Bigard SA (France) | D102: Yes | E102: Meat
A103: Groupe Bigard | B103: Groupe Bigard Sadir | C103: Groupe Bigard Sadir | D103: Yes | E103: Meat
A104: Guangdong Wens Foodstuff Group | B104: Guangdong Wen's Foodstuff Group Co Ltd | C104: Guangdong Wen's Foodstuff Group Co Ltd | D104: Yes | E104: Meat
A105: Guangdong Wens Foodstuff Group | B105: Guangdong Wens Foodstuff Group Co., Ltd. (China) | C105: Guangdong Wens Foodstuff Group Co., Ltd. (China) | D105: Yes | E105: Meat
A106: Guangdong Wens Foodstuff Group | B106: Wens Foodstuff Group | C106: Wens Foodstuff Group | D106: Yes | E106: Meat
A107: Guangdong Wens Foodstuff Group | B107: Wens Foodstuff Group Co Ltd | C107: Wens Foodstuff Group Co Ltd | D107: Yes | E107: Meat
A108: Hormel Foods Corporation | B108: Columbus Manufacturing | C108: Columbus Manufacturing | D108: Yes | E108: Meat | F108: Meat
A109: Hormel Foods Corporation | B109: Hormel Foods Corp | C109: Hormel Foods Corp | D109: Yes | E109: Meat
A110: Hormel Foods Corporation | B110: Hormel Foods Corporation | C110: Hormel Foods Corporation | D110: Yes | E110: Meat
A111: Hormel Foods Corporation | B111: Hormel Foods Corporation (US) | C111: Hormel Foods Corporation (US) | D111: Yes | E111: Meat
A112: Industrias Bachoco | B112: Industrias Bachoco | C112: Industrias Bachoco | D112: Yes | E112: Meat
A113: Industrias Bachoco | B113: Industrias Bachoco Sa De Cv, Mexico | C113: Industrias Bachoco Sa De Cv, Mexico | D113: Yes | E113: Meat
A114: Industrias Bachoco | B114: Industrias Bachoco SAB De CV | C114: Industrias Bachoco SAB De CV | D114: Yes | E114: Meat
A115: Industrias Bachoco | B115: Industrias Bachoco, S.A.B. de C.V. | C115: Industrias Bachoco, S.A.B. de C.V. | D115: Yes | E115: Meat
A116: Industrias Bachoco | B116: Industrias Bachoco, S.A.B. de C.V. (Mexico) | C116: Industrias Bachoco, S.A.B. de C.V. (Mexico) | D116: Yes | E116: Meat
A117: JBS | B117: Avicola Pilgrim'S Pride | C117: Avicola Pilgrim'S Pride | D117: Yes | E117: Meat | F117: Chicken
A118: JBS | B118: Bremen Acquisition Llc | C118: Bremen Acquisition Llc | D118: No | E118: Meat | F118: Vehicle for acquisition in US
A119: JBS | B119: Jbs Confinamento Ltda | C119: Jbs Confinamento Ltda | D119: Yes | E119: Meat
A120: JBS | B120: Jbs Food Canada Inc | C120: Jbs Food Canada Inc | D120: Yes | E120: Meat
A121: JBS | B121: Jbs Investments Gmbh | C121: Jbs Investments Gmbh | D121: Yes | E121: Meat | F121: Financial vehicle
A122: JBS | B122: Jbs Investments Ii Gmbh | C122: Jbs Investments Ii Gmbh | D122: Yes | E122: Meat | F122: Financial vehicle
A123: JBS | B123: Jbs Invts Gmbh | C123: Jbs Invts Gmbh | D123: Yes | E123: Meat | F123: Financial vehicle
A124: JBS | B124: Jbs Invts Ii Gmbh | C124: Jbs Invts Ii Gmbh | D124: Yes | E124: Meat
A125: JBS | B125: JBS S.A. (Brazil) | C125: JBS S.A. (Brazil) | D125: Yes | E125: Meat
A126: JBS | B126: Jbs S/A | C126: Jbs S/A | D126: Yes | E126: Meat
A127: JBS | B127: JBS SA | C127: JBS SA | D127: Yes | E127: Meat
A128: JBS | B128: Jbs Usa Llc / Jbs Usa Fin Inc | C128: Jbs Usa Llc / Jbs Usa Fin Inc | D128: Yes | E128: Meat | F128: Financial vehicle
A129: JBS | B129: Jbs Usa Lux | C129: Jbs Usa Lux | D129: Yes | E129: Meat
A130: JBS | B130: Jbs Usa Lux S.A. | C130: Jbs Usa Lux S.A. | D130: Yes | E130: Meat
A131: JBS | B131: Jbs Usa Lux Sa | C131: Jbs Usa Lux Sa | D131: Yes | E131: Meat
A132: JBS | B132: Moy Park Holdings Europe | C132: Moy Park Holdings Europe | D132: Yes | E132: Meat | F132: Poultry
A133: JBS | B133: Pilgrim'S Pride Corp | C133: Pilgrim'S Pride Corp | D133: Yes | E133: Meat | F133: Chicken
A134: JBS | B134: Pilgrims Pride Corp New | C134: Pilgrims Pride Corp New | D134: Yes | E134: Meat | F134: Chicken
A135: Koch Foods | B135: Koch Foods Inc | C135: Koch Foods Inc | D135: Yes | E135: Meat
A136: Koch Foods | B136: Koch Foods, Inc. (US) | C136: Koch Foods, Inc. (US) | D136: Yes | E136: Meat
A137: Le Groupe Lactalis | B137: B.S.A. Finances | C137: B.S.A. Finances | D137: Yes | E137: Dairy
A138: Le Groupe Lactalis | B138: Foodmaster International | C138: Foodmaster International | D138: Yes | E138: Dairy | F138: Dairy
A139: Le Groupe Lactalis | B139: Groupe Lactalis Sa | C139: Groupe Lactalis Sa | D139: Yes | E139: Dairy
A140: Le Groupe Lactalis | B140: Le Groupe Lactalis (France) | C140: Le Groupe Lactalis (France) | D140: Yes | E140: Dairy
A141: Le Groupe Lactalis | B141: Parmalat Dairy & Bakery | C141: Parmalat Dairy & Bakery | D141: Yes | E141: Dairy | F141: Dairy
A142: Le Groupe Lactalis | B142: Parmalat Spa | C142: Parmalat Spa | D142: Yes | E142: Dairy | F142: Dairy
A143: Le Groupe Lactalis | B143: Quesos Forlasa Sa | C143: Quesos Forlasa Sa | D143: Yes | E143: Dairy | F143: Dairy
A144: Marfrig Global Foods | B144: Marb Bondco Plc | C144: Marb Bondco Plc | D144: Yes | E144: Meat | F144: Financial vehicle
A145: Marfrig Global Foods | B145: Marfrig | C145: Marfrig | D145: Yes | E145: Meat
A146: Marfrig Global Foods | B146: Marfrig Global Foods S.A. (Brazil) | C146: Marfrig Global Foods S.A. (Brazil) | D146: Yes | E146: Meat
A147: Marfrig Global Foods | B147: Marfrig Global Foods SA | C147: Marfrig Global Foods SA | D147: Yes | E147: Meat
A148: Marfrig Global Foods | B148: Marfrig Hldgs Europe B V | C148: Marfrig Hldgs Europe B V | D148: Yes | E148: Meat
A149: Marfrig Global Foods | B149: Marfrig Holdings (Europe) Bv | C149: Marfrig Holdings (Europe) Bv | D149: Yes | E149: Meat
A150: Marfrig Global Foods | B150: Nbm Us Hldgs Inc | C150: Nbm Us Hldgs Inc | D150: Yes | E150: Meat
A151: Marfrig Global Foods | B151: Nbm Us Holdings Inc | C151: Nbm Us Holdings Inc | D151: Yes | E151: Meat
A152: Marfrig Global Foods | B152: Quickfood Sa | C152: Quickfood Sa | D152: Yes | E152: Meat | F152: Food processing
A153: Minerva Foods | B153: Minerva | C153: Minerva | D153: Yes | E153: Meat
A154: Minerva Foods | B154: Minerva Foods S.A. (Brazil) | C154: Minerva Foods S.A. (Brazil) | D154: Yes | E154: Meat
A155: Minerva Foods | B155: Minerva Luxembourg S A | C155: Minerva Luxembourg S A | D155: Yes | E155: Meat
A156: Minerva Foods | B156: Minerva Luxembourg Sa | C156: Minerva Luxembourg Sa | D156: Yes | E156: Meat
A157: Minerva Foods | B157: Minerva S.A. | C157: Minerva S.A. | D157: Yes | E157: Meat
A158: Minerva Foods | B158: Minerva SA | C158: Minerva SA | D158: Yes | E158: Meat
A159: National Beef Packing Company | B159: Marfrig Global Foods | C159: National Beef Packing Co Ll | D159: Yes | E159: Meat
A160: National Beef Packing Company | B160: Marfrig Global Foods | C160: National Beef Packing Company, LLC (US) | D160: Yes | E160: Meat
A161: Nestlé | B161: Alcon Japan Ltd | C161: Alcon Japan Ltd | D161: No | E161: Dairy | F161: Medical
A162: Nestlé | B162: Alcon Laboratories Inc | C162: Alcon Laboratories Inc | D162: No | E162: Dairy | F162: Medical
A163: Nestlé | B163: Atrium Innovations Inc | C163: Atrium Innovations Inc | D163: Yes | E163: Dairy | F163: Nutritional health products
A164: Nestlé | B164: Dreyers Grand Ice Cream Inc | C164: Dreyers Grand Ice Cream Inc | D164: Yes | E164: Dairy | F164: Dairy
A165: Nestlé | B165: Findus | C165: Findus | D165: Yes | E165: Dairy | F165: Frozen food
A166: Nestlé | B166: Findus Pik S.C.A., Luxembourg | C166: Findus Pik S.C.A., Luxembourg | D166: Yes | E166: Dairy | F166: Frozen food
A167: Nestlé | B167: Froneri Ltd | C167: Froneri Ltd | D167: Yes | E167: Dairy | F167: Dairy
A168: Nestlé | B168: Nestle | C168: Nestle | D168: Yes | E168: Dairy
A169: Nestlé | B169: Nestle (Malaysia) Bhd | C169: Nestle (Malaysia) Bhd | D169: Yes | E169: Dairy
A170: Nestlé | B170: Nestle Australia Ltd-Peters | C170: Nestle Australia Ltd-Peters | D170: Yes | E170: Dairy
A171: Nestlé | B171: Nestle Finance International Ltd | C171: Nestle Finance International Ltd | D171: Yes | E171: Dairy | F171: Financial vehicle
A172: Nestlé | B172: Nestle Finance International Ltd, Luxembourg | C172: Nestle Finance International Ltd, Luxembourg | D172: Yes | E172: Dairy | F172: Financial vehicle
A173: Nestlé | B173: Nestle Finance Intl Ltd | C173: Nestle Finance Intl Ltd | D173: Yes | E173: Dairy | F173: Financial vehicle
A174: Nestlé | B174: Nestle Holdings | C174: Nestle Holdings | D174: Yes | E174: Dairy
A175: Nestlé | B175: Nestle Holdings Inc | C175: Nestle Holdings Inc | D175: Yes | E175: Dairy
A176: Nestlé | B176: Nestle Holdings Inc, Glendale, Ca | C176: Nestle Holdings Inc, Glendale, Ca | D176: Yes | E176: Dairy
A177: Nestlé | B177: Nestle India Ltd | C177: Nestle India Ltd | D177: Yes | E177: Dairy
A178: Nestlé | B178: Nestle Milpak Ltd | C178: Nestle Milpak Ltd | D178: Yes | E178: Dairy
A179: Nestlé | B179: Nestle Nigeria Plc | C179: Nestle Nigeria Plc | D179: Yes | E179: Dairy
A180: Nestlé | B180: Nestle Pakistan Ltd | C180: Nestle Pakistan Ltd | D180: Yes | E180: Dairy
A181: Nestlé | B181: Nestle Philippines Inc | C181: Nestle Philippines Inc | D181: Yes | E181: Dairy
A182: Nestlé | B182: Nestlé S.A. (Switzerland) | C182: Nestlé S.A. (Switzerland) | D182: Yes | E182: Dairy
A183: Nestlé | B183: Nestle SA | C183: Nestle SA | D183: Yes | E183: Dairy
A184: Nestlé | B184: Nestle SA-Sasso Olive Oil | C184: Nestle SA-Sasso Olive Oil | D184: No | E184: Dairy | F184: Olive oil
A185: Nestlé | B185: Nestle Unternehmungen | C185: Nestle Unternehmungen | D185: Yes | E185: Dairy | F185: Holding
A186: Nestlé | B186: Nestle-Findus Frozen Food Bus | C186: Nestle-Findus Frozen Food Bus | D186: Yes | E186: Dairy | F186: Frozen food
A187: New Hope Group | B187: New Hope Group, Ltd. (China) | C187: New Hope Group, Ltd. (China) | D187: Yes | E187: Meat
A188: New Hope Group | B188: New Hope Liuhe Co Ltd | C188: New Hope Liuhe Co Ltd | D188: Yes | E188: Meat
A189: New Hope Group | B189: New Hope Singapore | C189: New Hope Singapore | D189: Yes | E189: Meat
A190: NH Foods | B190: Axyz Co Ltd | C190: Axyz Co Ltd | D190: Yes | E190: Meat | F190: Chicken
A191: NH Foods | B191: Nh Foods Ltd | C191: Nh Foods Ltd | D191: Yes | E191: Meat
A192: NH Foods | B192: NH Foods Ltd. (Japan) | C192: NH Foods Ltd. (Japan) | D192: Yes | E192: Meat
A193: NH Foods | B193: Tsit Wing International Hold | C193: Tsit Wing International Hold | D193: Yes | E193: Meat
A194: NH Foods | B194: Tsit Wing International Holdings Ltd | C194: Tsit Wing International Holdings Ltd | D194: Yes | E194: Meat
A195: Perdue Farms | B195: Perdue Farms Inc | C195: Perdue Farms Inc | D195: Yes | E195: Meat
A196: Perdue Farms | B196: Perdue Farms, Inc. (US) | C196: Perdue Farms, Inc. (US) | D196: Yes | E196: Meat
A197: Perdue Farms | B197: Sioux Preme Packing Co | C197: Sioux Preme Packing Co | D197: Yes | E197: Meat | F197: Meat packing
A198: Saputo | B198: Dairy Crest Group PLC | C198: Dairy Crest Group PLC | D198: Yes | E198: Dairy | F198: Dairy
A199: Saputo | B199: Saputo Dairy Australia Pty Ltd | C199: Saputo Dairy Australia Pty Ltd | D199: Yes | E199: Dairy
A200: Saputo | B200: Saputo Foods Ltd | C200: Saputo Foods Ltd | D200: Yes | E200: Dairy
... 20 more rows
